Workbook

Sheet Menu
Z1: 2
Z4: 2
A6: Central Texas Extension District - 8
D8: Budgets
D11: Forage Crops
D13: =CoastalEstablishFarmland!A3 -> Coastal Bermudagrass Establishment - Farmland
D14: =CoastalEstablishNative!A3 -> Coastal Bermudagrass Establishment - Native Prairie
D15: =CoastalHay!A3 -> Coastal Bermudagrass Hay
D16: =CoastalPasture!A3 -> Coastal Bermudagrass Pasture
D17: =SmallGrainGrazing!A3 -> Small Grain with Grazing
B18: Comparative Returns | D18: =CornSilageDryland!A3 -> RR Corn Silage - Dryland
D19: =CornSilageIrrigated!A3 -> RR Corn Silage - Irrigated
B20: Links
D21: Field Crops
D23: =Barley!A3 -> Malting Barley
D24: =Canola!A3 -> Canola
D25: =+Corn!A3 -> Herbicide Resistant Corn
D26: =CornReducedTill!A3 -> Herbicide Resistant Corn - Reduced Tillage
D27: =Cotton!A3 -> Stacked Cotton
D28: =OatsGrain!A3 -> Oats for Grain
D29: =Sorghum!A3 -> Grain Sorghum
D30: =Wheat!A3 -> Hard Red Winter Wheat
D32: Livestock
D34: =+CowCalfImprove!A3 -> Cow-Calf Improved Pasture
D35: =CowCalfNative!A3 -> Cow-Calf Native Pasture
D36: =+StockersNative!A3 -> Stockers on Native Pasture
D38: Other Budgets
D40: ='Livestock Budget'!A3 -> Livestock Budget
D41: ='Crop Budget'!A3 -> Crop Enterprise
A58: Developed by Jason Johnson, Associate Professor and Extension Economist, Texas A&M AgriLife Extension, 254-968-4144.

Sheet Links
B2: Texas Crop and Livestock Budgets
B3: A Program of the Texas A&M AgriLife Extension Service
B4: Agricultural Economics Department, The Texas A&M University System
B6: Developed by Texas A&M AgriLife Extension Service Economists and Other Specialists
B8: Contact Us | G8: Clickable Logos
B10: Resources
B12: Decision Aids (includes Machinery Cost Estimator)
B14: Custom Rate Survey
B16: Basis Data
B18: Master Marketer
B20: Extension Ag Economics
B22: Department of Agricultural Economics
B24: Menu Page
B26: Links last checked 4/17/2020

Sheet Corn
A1: Projections for Planning Purposes Only -- Not to be Used without Updating
A2: 2021 Estimated Costs and Returns per Acre
A3: Herbicide Resistant Corn
A4: Enter your name for this budget in the cell above.
A5: Enter Your Values in the cells highlighed in MAROON.
E6: Your Acres | R6: Your
C7: Crop Acres | D7: 500 | L7: Your | Q7: Enterprise | R7: Enterprise
E8: Your | H8: Your | I8: Cash | J8: Your | K8: Landlord | L8: Landlord | N8: Your | P8: Your | Q8: Total | R8: Total
A9: REVENUE | D9: Quantity | E9: Quantity | F9: Units | G9: $/Unit | H9: $/Unit | I9: Total | J9: Total | K9: Share | L9: Share | M9: Landlord | N9: Landlord | O9: Tenant | P9: Tenant | Q9: (500 acres) | R9: ="(" & E7 & " acres)" -> ( acres)
B10: Corn | D10: 90 | F10: Bushel | G10: 4.2 | I10: 378 | J10: =E10*H10 -> 0 | K10: 0 | M10: 0 | N10: =J10*L10 -> 0 | O10: 378 | P10: =+J10-N10 -> 0 | Q10: 189000 | R10: =+J10*E$7 -> 0
D11: 0 | G11: 0 | I11: 0 | J11: 0 | K11: 0 | M11: 0 | N11: 0 | O11: 0 | P11: 0 | Q11: 0 | R11: 0
D12: 0 | G12: 0 | I12: 0 | J12: 0 | K12: 0 | M12: 0 | N12: 0 | O12: 0 | P12: 0 | Q12: 0 | R12: 0
A13: Total Revenue | I13: 378 | J13: =SUM(J10:J12) -> 0 | M13: 0 | N13: =SUM(N10:N12) -> 0 | O13: 378 | P13: =SUM(P10:P12) -> 0 | Q13: 189000 | R13: =SUM(R10:R12) -> 0
Q14: Enterprise | R14: Enterprise
A15: VARIABLE COSTS | D15: Quantity | E15: Quantity | F15: Units | G15: $/Unit | H15: $/Unit | I15: Total | J15: Total | K15: Share | L15: Share | M15: Landlord | N15: Landlord | O15: Tenant | P15: Tenant | Q15: Total | R15: Total
A16: Production Costs
B17: Fertilizer
C18: Fertilizer - N, P, Zinc, S | D18: 1 | F18: Acre | G18: 100 | I18: 100 | J18: =E18*H18 -> 0 | K18: 0 | M18: 0 | N18: =J18*L18 -> 0 | O18: 100 | P18: =+J18-N18 -> 0 | Q18: 50000 | R18: =+J18*E$7 -> 0
B19: Herbicide
C20: Herbicide, Atrazine | D20: 2 | F20: Pound | G20: 4 | I20: 8 | J20: 0 | K20: 0 | M20: 0 | N20: 0 | O20: 8 | P20: 0 | Q20: 4000 | R20: 0
C21: Corn Herbicide | D21: 32 | F21: Ounce | G21: 0.2 | I21: 6.4 | J21: 0 | K21: 0 | M21: 0 | N21: 0 | O21: 6.4 | P21: 0 | Q21: 3200 | R21: 0
C22: Weed Burndown | D22: 32 | F22: Ounce | G22: 0.2 | I22: 6.4 | J22: 0 | K22: 0 | M22: 0 | N22: 0 | O22: 6.4 | P22: 0 | Q22: 3200 | R22: 0
B23: Seed
C24: Herbicide Resistant Corn Seed | D24: 1 | F24: Acre | G24: 85 | I24: 85 | J24: 0 | K24: 0 | M24: 0 | N24: 0 | O24: 85 | P24: 0 | Q24: 42500 | R24: 0
B25: Miscellaneous
C26: Insurance - Corn 70% | D26: 1 | F26: Acre | G26: 20 | I26: 20 | J26: 0 | K26: 0 | M26: 0 | N26: 0 | O26: 20 | P26: 0 | Q26: 10000 | R26: 0
C27: Insurance - Corn SCO | D27: 1 | F27: Acre | G27: 4 | I27: 4 | J27: 0 | K27: 0 | M27: 0 | N27: 0 | O27: 4 | P27: 0 | Q27: 2000 | R27: 0
B28: Custom
C29: Liquid Fertilizer Rig | D29: 1 | F29: Acre | G29: 4 | I29: 4 | J29: 0 | K29: 0 | M29: 0 | N29: 0 | O29: 4 | P29: 0 | Q29: 2000 | R29: 0
C30: Custom Grain Haul | D30: 90 | F30: Bushel | G30: 0.2 | I30: 18 | J30: 0 | K30: 0 | M30: 0 | N30: 0 | O30: 18 | P30: 0 | Q30: 9000 | R30: 0
B31: Insecticide
C32: Corn Insecticide | D32: 1 | F32: Acre | G32: 14.41 | I32: 14.41 | J32: 0 | K32: 0 | M32: 0 | N32: 0 | O32: 14.41 | P32: 0 | Q32: 7205 | R32: 0
D33: 0 | G33: 0 | I33: 0 | J33: 0 | K33: 0 | M33: 0 | N33: 0 | O33: 0 | P33: 0 | Q33: 0 | R33: 0
D34: 0 | G34: 0 | I34: 0 | J34: 0 | K34: 0 | M34: 0 | N34: 0 | O34: 0 | P34: 0 | Q34: 0 | R34: 0
D35: 0 | G35: 0 | I35: 0 | J35: =E35*H35 -> 0 | K35: 0 | M35: 0 | N35: =J35*L35 -> 0 | O35: 0 | P35: =+J35-N35 -> 0 | Q35: 0 | R35: =+J35*E$7 -> 0
B36: Machinery Labor
C37: Tractors/Self-Propelled | D37: 0.94 | F37: Hour | G37: 10 | I37: 9.4 | J37: =E37*H37 -> 0 | K37: 0 | M37: 0 | N37: =J37*L37 -> 0 | O37: 9.4 | P37: =+J37-N37 -> 0 | Q37: 4700 | R37: =+J37*E$7 -> 0
C38: Other Labor | D38: 0 | F38: Hour | G38: 10 | I38: 0 | J38: =E38*H38 -> 0 | K38: 0 | M38: 0 | N38: =J38*L38 -> 0 | O38: 0 | P38: =+J38-N38 -> 0 | Q38: 0 | R38: =+J38*E$7 -> 0
B40: Diesel Fuel
C41: Pickup/General Use Equipment | D41: 1 | F41: Acre | G41: 0 | I41: 0 | J41: =E41*H41 -> 0 | K41: 0 | M41: 0 | N41: =J41*L41 -> 0 | O41: 0 | P41: =+J41-N41 -> 0 | Q41: 0 | R41: =+J41*E$7 -> 0
C42: Tractors/Self-Propelled | D42: 9.14 | F42: Gallon | G42: 2.4 | I42: 21.936 | J42: =E42*H42 -> 0 | K42: 0 | M42: 0 | N42: =J42*L42 -> 0 | O42: 21.936 | P42: =+J42-N42 -> 0 | Q42: 10968 | R42: =+J42*E$7 -> 0
B44: Gasoline
C45: Pickup/General Use Equipment | D45: 1 | F45: Acre | G45: 3.225 | I45: 3.225 | J45: =E45*H45 -> 0 | K45: 0 | M45: 0 | N45: =J45*L45 -> 0 | O45: 3.225 | P45: =+J45-N45 -> 0 | Q45: 1612.5 | R45: =+J45*E$7 -> 0
C46: Tractors/Self-Propelled | D46: 0 | F46: Gallon | G46: 2.15 | I46: 0 | J46: =E46*H46 -> 0 | K46: 0 | M46: 0 | N46: =J46*L46 -> 0 | O46: 0 | P46: =+J46-N46 -> 0 | Q46: 0 | R46: =+J46*E$7 -> 0
B48: Repairs & Maintenance
C49: Pickup/General Use Equipment | D49: 1 | F49: Acre | G49: 0.672 | I49: 0.672 | J49: =E49*H49 -> 0 | K49: 0 | M49: 0 | N49: =J49*L49 -> 0 | O49: 0.672 | P49: =+J49-N49 -> 0 | Q49: 336 | R49: =+J49*E$7 -> 0
C50: Irrigation Equipment | D50: 1 | F50: Acre | G50: 0 | I50: 0 | J50: 0 | K50: 0 | M50: 0 | N50: 0 | O50: 0 | P50: 0 | Q50: 0 | R50: 0
C51: Tractors/Self-Propelled | D51: 1 | F51: Acre | G51: 34.96215611 | I51: 34.96215611 | J51: 0 | K51: 0 | M51: 0 | N51: 0 | O51: 34.96215611 | P51: 0 | Q51: 17481.07806 | R51: 0
C52: Implements | D52: 1 | F52: Acre | G52: 24.18113855 | I52: 24.18113855 | J52: 0 | K52: 0 | M52: 0 | N52: 0 | O52: 24.18113855 | P52: 0 | Q52: 12090.56928 | R52: 0
I53: 0 | J53: 0 | K53: 0 | M53: 0 | N53: 0 | O53: 0 | P53: 0 | Q53: 0 | R53: =+J53*E$7 -> 0
I54: 0 | J54: 0 | K54: 0 | M54: 0 | N54: 0 | O54: 0 | P54: 0 | Q54: 0 | R54: 0
B55: Interest on Credit Line | G55: 0.0475 | I55: 7.801704028 | J55: =+SUM(J17:J54)/2*H55 -> 0 | M55: 0 | N55: =+SUM(N17:N54)/2*L55 -> 0 | O55: 7.801704028 | P55: =+SUM(P17:P54)/2*L55 -> 0 | Q55: 3900.852014 | R55: =+J55*E$7 -> 0
A56: Total Variable Costs | I56: 368.3879987 | J56: =SUM(J18:J55) -> 0 | M56: 0 | N56: =SUM(N18:N55) -> 0 | O56: 368.3879987 | P56: =SUM(P18:P55) -> 0 | Q56: 184193.9993 | R56: =SUM(R18:R55) -> 0
A57: Planned Returns Above Variable Costs: | I57: 9.612001307 | J57: =+J13-J56 -> 0 | M57: 0 | N57: =+N13-N56 -> 0 | O57: 9.612001307 | P57: =+P13-P56 -> 0 | Q57: 4806.000653 | R57: =+R13-R56 -> 0
B58: Breakeven Price to Cover Variable Costs | G58: 4.093199985 | H58: =IF(E10=0,"n/a",(YVarExp-(YTotExp+YTotRet-J10))/E10) -> n/a | I58: Bushel
Q59: Enterprise | R59: Enterprise
A60: FIXED COSTS | D60: Quantity | E60: Quantity | F60: Units | G60: $/Unit | H60: $/Unit | J60: Total | K60: Share | L60: Share | M60: Landlord | N60: Landlord | O60: Tenant | P60: Tenant | Q60: Total | R60: Total
B61: Machinery Depreciation
C62: Pickup/General Use Equipment | D62: 1 | F62: Acre | G62: 0.6972 | I62: 0.6972 | J62: =E62*H62 -> 0 | K62: 0 | M62: 0 | N62: =J62*L62 -> 0 | O62: 0.6972 | P62: =+J62-N62 -> 0 | Q62: 348.6 | R62: =+J62*E$7 -> 0
C63: Tractors/Self-Propelled | D63: 1 | F63: Acre | G63: 33.44063037 | I63: 33.44063037 | J63: 0 | K63: 0 | M63: 0 | N63: =J63*L63 -> 0 | O63: 33.44063037 | P63: 0 | Q63: 16720.31519 | R63: 0
C64: Implements | D64: 1 | F64: Acre | G64: 29.93714633 | I64: 29.93714633 | J64: 0 | K64: 0 | M64: 0 | N64: =J64*L64 -> 0 | O64: 29.93714633 | P64: 0 | Q64: 14968.57317 | R64: 0
B65: Equipment Investment
C66: Pickup/General Use Equipment | D66: 4.914 | F66: Dollars | G66: 0.06 | I66: 0.29484 | J66: =E66*H66 -> 0 | K66: 0 | M66: 0 | N66: =J66*L66 -> 0 | O66: 0.29484 | P66: =+J66-N66 -> 0 | Q66: 147.42 | R66: =+J66*E$7 -> 0
C67: Tractors/Self-Propelled | D67: 255.1417169 | F67: Dollars | G67: 0.06 | I67: 15.30850302 | J67: 0 | K67: 0 | M67: 0 | N67: =J67*L67 -> 0 | O67: 15.30850302 | P67: 0 | Q67: 7654.251508 | R67: 0
C68: Implements | D68: 152.0048371 | F68: Dollars | G68: 0.06 | I68: 9.120290228 | J68: 0 | K68: 0 | M68: 0 | N68: =J68*L68 -> 0 | O68: 9.120290228 | P68: 0 | Q68: 4560.145114 | R68: 0
B69: Salaried Labor | D69: 1 | F69: Acre | G69: 0 | I69: 0 | J69: 0 | K69: 0 | M69: 0 | N69: =J69*L69 -> 0 | O69: 0 | P69: =+J69-N69 -> 0 | Q69: 0 | R69: =+J69*E$7 -> 0
B70: Management Fee, Owner/Operator Labor | D70: 1 | F70: Acre | G70: 0 | I70: 0 | J70: 0 | K70: 0 | M70: 0 | N70: 0 | O70: 0 | P70: 0 | Q70: 0 | R70: 0
B71: Allocated Establishment Cost | D71: 1 | F71: Acre | G71: 0 | I71: 0 | J71: 0 | K71: 0 | M71: 0 | N71: 0 | O71: 0 | P71: 0 | Q71: 0 | R71: 0
B72: Corn Land Rent | D72: 1 | F72: Acre | G72: 50 | I72: 50 | J72: 0 | K72: 0 | M72: 0 | N72: 0 | O72: 50 | P72: 0 | Q72: 25000 | R72: 0
B73: Property Taxes | D73: 1 | F73: Acre | G73: 0 | I73: 0 | J73: =E73*H73 -> 0 | K73: 0 | M73: 0 | N73: 0 | O73: 0 | P73: 0 | Q73: 0 | R73: =+J73*E$7 -> 0
B74: Whole Farm Insurance | D74: 1 | F74: Acre | G74: 0 | I74: 0 | J74: 0 | K74: 0 | M74: 0 | N74: 0 | O74: 0 | P74: 0 | Q74: 0 | R74: 0
D75: 1 | G75: 0 | I75: 0 | J75: 0 | K75: 0 | M75: 0 | N75: 0 | O75: 0 | P75: 0 | Q75: 0 | R75: 0
D76: 1 | G76: 0 | I76: 0 | J76: 0 | K76: 0 | M76: 0 | N76: 0 | O76: 0 | P76: 0 | Q76: 0 | R76: 0
A77: Total Fixed Costs | I77: 138.7986099 | J77: =+SUM(J62:J76) -> 0 | M77: 0 | N77: =+SUM(N62:N76) -> 0 | O77: 138.7986099 | P77: =+SUM(P62:P76) -> 0 | Q77: 69399.30497 | R77: =+SUM(R62:R76) -> 0
A78: Total Specified Costs | I78: 507.1866086 | J78: =+J56+J77 -> 0 | M78: 0 | N78: =+N56+N77 -> 0 | O78: 507.1866086 | P78: =+P56+P77 -> 0 | Q78: 253593.3043 | R78: =+R56+R77 -> 0
A80: Returns Above Specified Costs | I80: -129.1866086 | J80: =+J13-J78 -> 0 | M80: 0 | N80: =+N13-N78 -> 0 | O80: -129.1866086 | P80: =+P13-P78 -> 0 | Q80: -64593.30432 | R80: =+R13-R78 -> 0
A82: Breakeven Price to Cover Total Costs | G82: 5.635406763 | H82: =IF(E10=0,"n/a",(YTotExp-(YTotExp+YTotRet-J10))/E10) -> n/a | I82: Bushel
D84: Example Breakeven Prices
B85: Example | C85: Example | D85: To Cover | G85: To Cover
B86: Yield | C86: Yield | D86: Variable | G86: Total
B87: Percent | C87: Bushel | D87: Costs | G87: Costs
B88: 0.75 | C88: 67.5 | D88: 5.457599981 | G88: 7.513875684
B89: 0.9 | C89: 81 | D89: 4.547999984 | G89: 6.26156307
B90: 1 | C90: 90 | D90: 4.093199985 | G90: 5.635406763
B91: 1.1 | C91: 99 | D91: 3.721090896 | G91: 5.123097057
B92: 1.25 | C92: 112.5 | D92: 3.274559988 | G92: 4.50832541
D94: Your Breakeven Prices
B95: Your | C95: Your | E95: To Cover | H95: To Cover
B96: Yield | C96: Yield | E96: Variable | H96: Total
B97: Percent | C97: Bushel | E97: Costs | H97: Costs
B98: 0.75 | C98: =E10*YPER1 -> 0 | E98: =IF($E$10=0,0,(YVarExp-(YTotExp+YTotRet-J10))/($E$10*YPER1)) -> 0 | H98: =IF($E$10=0,0,(YTotExp-(YTotExp+YTotRet-J10))/($E$10*YPER1)) -> 0
B99: 0.9 | C99: =E10*YPER2 -> 0 | E99: =IF($E$10=0,0,(YVarExp-(YTotExp+YTotRet-J10))/($E$10*YPER2)) -> 0 | H99: =IF($E$10=0,0,(YTotExp-(YTotExp+YTotRet-J10))/($E$10*YPER2)) -> 0
B100: 1 | C100: =+E10 -> 0 | E100: =IF($E$10=0,0,(YVarExp-(YTotExp+YTotRet-J10))/($E$10*YPER3)) -> 0 | H100: =IF($E$10=0,0,(YTotExp-(YTotExp+YTotRet-J10))/($E$10*YPER3)) -> 0
B101: 1.1 | C101: =E10*YPER4 -> 0 | E101: =IF($E$10=0,0,(YVarExp-(YTotExp+YTotRet-J10))/($E$10*YPER4)) -> 0 | H101: =IF($E$10=0,0,(YTotExp-(YTotExp+YTotRet-J10))/($E$10*YPER4)) -> 0
B102: 1.25 | C102: =E10*YPER5 -> 0 | E102: =IF($E$10=0,0,(YVarExp-(YTotExp+YTotRet-J10))/($E$10*YPER5)) -> 0 | H102: =IF($E$10=0,0,(YTotExp-(YTotExp+YTotRet-J10))/($E$10*YPER5)) -> 0
A104: Developed by Jason Johnson, Associate Professor and Extension Economist, Texas A&M AgriLife Extension, 254-968-4144.
A106: Information presented is prepared solely as a general guide and not intended to recognize or predict the costs and returns from any one operation. Brand names are mentioned only as examples and imply no endorsement.

Sheet CornReducedTill
A1: Projections for Planning Purposes Only -- Not to be Used without Updating
A2: 2021 Estimated Costs and Returns per Acre
A3: Herbicide Resistant Corn - Reduced Tillage
A4: Enter your name for this budget in the cell above.
A5: Enter Your Values in the cells highlighed in MAROON.
E6: Your Acres | R6: Your
C7: Crop Acres | D7: 500 | L7: Your | Q7: Enterprise | R7: Enterprise
E8: Your | H8: Your | I8: Cash | J8: Your | K8: Landlord | L8: Landlord | N8: Your | P8: Your | Q8: Total | R8: Total
A9: REVENUE | D9: Quantity | E9: Quantity | F9: Units | G9: $/Unit | H9: $/Unit | I9: Total | J9: Total | K9: Share | L9: Share | M9: Landlord | N9: Landlord | O9: Tenant | P9: Tenant | Q9: (500 acres) | R9: ="(" & E7 & " acres)" -> ( acres)
B10: Corn | D10: 90 | F10: Bushel | G10: 4.2 | I10: 378 | J10: =E10*H10 -> 0 | K10: 0 | M10: 0 | N10: =J10*L10 -> 0 | O10: 378 | P10: =+J10-N10 -> 0 | Q10: 189000 | R10: =+J10*E$7 -> 0
D11: 0 | G11: 0 | I11: 0 | J11: 0 | K11: 0 | M11: 0 | N11: 0 | O11: 0 | P11: =+J11-N11 -> 0 | Q11: 0 | R11: 0
D12: 0 | G12: 0 | I12: 0 | J12: 0 | K12: 0 | M12: 0 | N12: 0 | O12: 0 | P12: 0 | Q12: 0 | R12: 0
A13: Total Revenue | I13: 378 | J13: =SUM(J10:J12) -> 0 | M13: 0 | N13: =SUM(N10:N12) -> 0 | O13: 378 | P13: =SUM(P10:P12) -> 0 | Q13: 189000 | R13: =SUM(R10:R12) -> 0
Q14: Enterprise | R14: Enterprise
A15: VARIABLE COSTS | D15: Quantity | E15: Quantity | F15: Units | G15: $/Unit | H15: $/Unit | I15: Total | J15: Total | K15: Share | L15: Share | M15: Landlord | N15: Landlord | O15: Tenant | P15: Tenant | Q15: Total | R15: Total
A16: Production Costs
B17: Custom
C18: Liquid Fertilizer Rig | D18: 1 | F18: Acre | G18: 4 | I18: 4 | J18: =E18*H18 -> 0 | K18: 0 | M18: 0 | N18: =J18*L18 -> 0 | O18: 4 | P18: =+J18-N18 -> 0 | Q18: 2000 | R18: =+J18*E$7 -> 0
C19: Custom Grain Haul | D19: 90 | F19: Bushel | G19: 0.2 | I19: 18 | J19: 0 | K19: 0 | M19: 0 | N19: 0 | O19: 18 | P19: 0 | Q19: 9000 | R19: 0
B20: Fertilizer
C21: Fertilizer - N, P, Zinc, S | D21: 1 | F21: Acre | G21: 100 | I21: 100 | J21: 0 | K21: 0 | M21: 0 | N21: 0 | O21: 100 | P21: 0 | Q21: 50000 | R21: 0
B22: Herbicide
C23: Herbicide, Atrazine | D23: 2 | F23: Pound | G23: 4 | I23: 8 | J23: 0 | K23: 0 | M23: 0 | N23: 0 | O23: 8 | P23: 0 | Q23: 4000 | R23: 0
C24: Corn Herbicide | D24: 32 | F24: Ounce | G24: 0.2 | I24: 6.4 | J24: 0 | K24: 0 | M24: 0 | N24: 0 | O24: 6.4 | P24: 0 | Q24: 3200 | R24: 0
C25: Weed Burndown | D25: 32 | F25: Ounce | G25: 0.2 | I25: 6.4 | J25: 0 | K25: 0 | M25: 0 | N25: 0 | O25: 6.4 | P25: 0 | Q25: 3200 | R25: 0
B26: Insecticide
C27: Corn Insecticide | D27: 1 | F27: Acre | G27: 14.41 | I27: 14.41 | J27: 0 | K27: 0 | M27: 0 | N27: 0 | O27: 14.41 | P27: 0 | Q27: 7205 | R27: 0
B28: Miscellaneous
C29: Insurance - Corn 70% | D29: 1 | F29: Acre | G29: 20 | I29: 20 | J29: 0 | K29: 0 | M29: 0 | N29: 0 | O29: 20 | P29: 0 | Q29: 10000 | R29: 0
C30: Insurance - Corn SCO | D30: 1 | F30: Acre | G30: 4 | I30: 4 | J30: 0 | K30: 0 | M30: 0 | N30: 0 | O30: 4 | P30: 0 | Q30: 2000 | R30: 0
B31: Seed
C32: Herbicide Resistant Corn Seed | D32: 1 | F32: Acre | G32: 85 | I32: 85 | J32: 0 | K32: 0 | M32: 0 | N32: 0 | O32: 85 | P32: 0 | Q32: 42500 | R32: 0
D33: 0 | G33: 0 | I33: 0 | J33: 0 | K33: 0 | M33: 0 | N33: 0 | O33: 0 | P33: 0 | Q33: 0 | R33: 0
D34: 0 | G34: 0 | I34: 0 | J34: 0 | K34: 0 | M34: 0 | N34: 0 | O34: 0 | P34: 0 | Q34: 0 | R34: 0
D35: 0 | G35: 0 | I35: 0 | J35: =E35*H35 -> 0 | K35: 0 | M35: 0 | N35: =J35*L35 -> 0 | O35: 0 | P35: =+J35-N35 -> 0 | Q35: 0 | R35: =+J35*E$7 -> 0
B36: Machinery Labor
C37: Tractors/Self-Propelled | D37: 0.88 | F37: Hour | G37: 10 | I37: 8.8 | J37: =E37*H37 -> 0 | K37: 0 | M37: 0 | N37: =J37*L37 -> 0 | O37: 8.8 | P37: =+J37-N37 -> 0 | Q37: 4400 | R37: =+J37*E$7 -> 0
C38: Other Labor | D38: 0 | F38: Hour | G38: 10 | I38: 0 | J38: =E38*H38 -> 0 | K38: 0 | M38: 0 | N38: =J38*L38 -> 0 | O38: 0 | P38: =+J38-N38 -> 0 | Q38: 0 | R38: =+J38*E$7 -> 0
B40: Diesel Fuel
C41: Pickup/General Use Equipment | D41: 1 | F41: Acre | G41: 0 | I41: 0 | J41: =E41*H41 -> 0 | K41: 0 | M41: 0 | N41: =J41*L41 -> 0 | O41: 0 | P41: =+J41-N41 -> 0 | Q41: 0 | R41: =+J41*E$7 -> 0
C42: Tractors/Self-Propelled | D42: 8.5 | F42: Gallon | G42: 2.4 | I42: 20.4 | J42: =E42*H42 -> 0 | K42: 0 | M42: 0 | N42: =J42*L42 -> 0 | O42: 20.4 | P42: =+J42-N42 -> 0 | Q42: 10200 | R42: =+J42*E$7 -> 0
B44: Gasoline
C45: Pickup/General Use Equipment | D45: 1 | F45: Acre | G45: 3.225 | I45: 3.225 | J45: =E45*H45 -> 0 | K45: 0 | M45: 0 | N45: =J45*L45 -> 0 | O45: 3.225 | P45: =+J45-N45 -> 0 | Q45: 1612.5 | R45: =+J45*E$7 -> 0
C46: Tractors/Self-Propelled | D46: 0 | F46: Gallon | G46: 2.15 | I46: 0 | J46: =E46*H46 -> 0 | K46: 0 | M46: 0 | N46: =J46*L46 -> 0 | O46: 0 | P46: =+J46-N46 -> 0 | Q46: 0 | R46: =+J46*E$7 -> 0
B48: Repairs & Maintenance
C49: Pickup/General Use Equipment | D49: 1 | F49: Acre | G49: 0.672 | I49: 0.672 | J49: =E49*H49 -> 0 | K49: 0 | M49: 0 | N49: =J49*L49 -> 0 | O49: 0.672 | P49: =+J49-N49 -> 0 | Q49: 336 | R49: =+J49*E$7 -> 0
C50: Irrigation Equipment | D50: 1 | F50: Acre | G50: 0 | I50: 0 | J50: 0 | K50: 0 | M50: 0 | N50: 0 | O50: 0 | P50: 0 | Q50: 0 | R50: 0
C51: Tractors/Self-Propelled | D51: 1 | F51: Acre | G51: 33.32108093 | I51: 33.32108093 | J51: 0 | K51: 0 | M51: 0 | N51: 0 | O51: 33.32108093 | P51: 0 | Q51: 16660.54046 | R51: 0
C52: Implements | D52: 1 | F52: Acre | G52: 20.78703358 | I52: 20.78703358 | J52: 0 | K52: 0 | M52: 0 | N52: 0 | O52: 20.78703358 | P52: 0 | Q52: 10393.51679 | R52: 0
I53: 0 | J53: 0 | K53: 0 | M53: 0 | N53: 0 | O53: 0 | P53: 0 | Q53: 0 | R53: 0
I54: 0 | J54: 0 | K54: 0 | M54: 0 | N54: 0 | O54: 0 | P54: 0 | Q54: 0 | R54: 0
B55: Interest on Credit Line | G55: 0.0475 | I55: 7.59725959 | J55: =+SUM(J17:J54)/2*H55 -> 0 | M55: 0 | N55: =+SUM(N17:N54)/2*L55 -> 0 | O55: 7.59725959 | P55: =+SUM(P17:P54)/2*L55 -> 0 | Q55: 3798.629795 | R55: =+J55*E$7 -> 0
A56: Total Variable Costs | I56: 361.0123741 | J56: =SUM(J18:J55) -> 0 | M56: 0 | N56: =SUM(N18:N55) -> 0 | O56: 361.0123741 | P56: =SUM(P18:P55) -> 0 | Q56: 180506.1871 | R56: =SUM(R18:R55) -> 0
A57: Planned Returns Above Variable Costs: | I57: 16.9876259 | J57: =+J13-J56 -> 0 | M57: 0 | N57: =+N13-N56 -> 0 | O57: 16.9876259 | P57: =+P13-P56 -> 0 | Q57: 8493.81295 | R57: =+R13-R56 -> 0
B58: Breakeven Price to Cover Variable Costs | G58: 4.011248601 | H58: =IF(E10=0,"n/a",(YVarExp-(YTotExp+YTotRet-J10))/E10) -> n/a | I58: Bushel
Q59: Enterprise | R59: Enterprise
A60: FIXED COSTS | D60: Quantity | E60: Quantity | F60: Units | G60: $/Unit | H60: $/Unit | I60: Total | J60: Total | K60: Share | L60: Share | M60: Landlord | N60: Landlord | O60: Tenant | P60: Tenant | Q60: Total | R60: Total
B61: Machinery Depreciation
C62: Pickup/General Use Equipment | D62: 1 | F62: Acre | G62: 0.6972 | I62: 0.6972 | J62: =E62*H62 -> 0 | K62: 0 | M62: 0 | N62: =J62*L62 -> 0 | O62: 0.6972 | P62: =+J62-N62 -> 0 | Q62: 348.6 | R62: =+J62*E$7 -> 0
C63: Tractors/Self-Propelled | D63: 1 | F63: Acre | G63: 31.74485268 | I63: 31.74485268 | J63: 0 | K63: 0 | M63: 0 | N63: =J63*L63 -> 0 | O63: 31.74485268 | P63: 0 | Q63: 15872.42634 | R63: 0
C64: Implements | D64: 1 | F64: Acre | G64: 26.62375928 | I64: 26.62375928 | J64: 0 | K64: 0 | M64: 0 | N64: =J64*L64 -> 0 | O64: 26.62375928 | P64: 0 | Q64: 13311.87964 | R64: 0
B65: Equipment Investment
C66: Pickup/General Use Equipment | D66: 4.914 | F66: Dollars | G66: 0.06 | I66: 0.29484 | J66: =E66*H66 -> 0 | K66: 0 | M66: 0 | N66: =J66*L66 -> 0 | O66: 0.29484 | P66: =+J66-N66 -> 0 | Q66: 147.42 | R66: =+J66*E$7 -> 0
C67: Tractors/Self-Propelled | D67: 241.9310617 | F67: Dollars | G67: 0.06 | I67: 14.5158637 | J67: 0 | K67: 0 | M67: 0 | N67: =J67*L67 -> 0 | O67: 14.5158637 | P67: 0 | Q67: 7257.931851 | R67: 0
C68: Implements | D68: 137.8309036 | F68: Dollars | G68: 0.06 | I68: 8.269854217 | J68: 0 | K68: 0 | M68: 0 | N68: =J68*L68 -> 0 | O68: 8.269854217 | P68: 0 | Q68: 4134.927109 | R68: 0
B69: Salaried Labor | D69: 1 | F69: Acre | G69: 0 | I69: 0 | J69: 0 | K69: 0 | M69: 0 | N69: =J69*L69 -> 0 | O69: 0 | P69: =+J69-N69 -> 0 | Q69: 0 | R69: =+J69*E$7 -> 0
B70: Management Fee, Owner/Operator Labor | D70: 1 | F70: Acre | G70: 0 | I70: 0 | J70: 0 | K70: 0 | M70: 0 | N70: 0 | O70: 0 | P70: 0 | Q70: 0 | R70: 0
B71: Allocated Establishment Cost | D71: 1 | F71: Acre | G71: 0 | I71: 0 | J71: 0 | K71: 0 | M71: 0 | N71: 0 | O71: 0 | P71: 0 | Q71: 0 | R71: 0
B72: Corn Land Rent | D72: 1 | F72: Acre | G72: 50 | I72: 50 | J72: 0 | K72: 0 | M72: 0 | N72: 0 | O72: 50 | P72: 0 | Q72: 25000 | R72: 0
B73: Property Taxes | D73: 1 | F73: Acre | G73: 0 | I73: 0 | J73: 0 | K73: 0 | M73: 0 | N73: 0 | O73: 0 | P73: 0 | Q73: 0 | R73: 0
B74: Whole Farm Insurance | D74: 1 | F74: Acre | G74: 0 | I74: 0 | J74: 0 | K74: 0 | M74: 0 | N74: 0 | O74: 0 | P74: 0 | Q74: 0 | R74: 0
D75: 1 | G75: 0 | I75: 0 | J75: 0 | K75: 0 | M75: 0 | N75: 0 | O75: 0 | P75: 0 | Q75: 0 | R75: 0
D76: 1 | G76: 0 | I76: 0 | J76: =E76*H76 -> 0 | K76: 0 | M76: 0 | N76: 0 | O76: 0 | P76: 0 | Q76: 0 | R76: 0
A77: Total Fixed Costs | I77: 132.1463699 | J77: =+SUM(J62:J76) -> 0 | M77: 0 | N77: =+SUM(N62:N76) -> 0 | O77: 132.1463699 | P77: =+SUM(P62:P76) -> 0 | Q77: 66073.18494 | R77: =+SUM(R62:R76) -> 0
A78: Total Specified Costs | I78: 493.158744 | J78: =+J56+J77 -> 0 | M78: 0 | N78: =+N56+N77 -> 0 | O78: 493.158744 | P78: =+P56+P77 -> 0 | Q78: 246579.372 | R78: =+R56+R77 -> 0
A80: Returns Above Specified Costs | I80: -115.158744 | J80: =+J13-J78 -> 0 | M80: 0 | N80: =+N13-N78 -> 0 | O80: -115.158744 | P80: =+P13-P78 -> 0 | Q80: -57579.37199 | R80: =+R13-R78 -> 0
A82: Breakeven Price to Cover Total Costs | G82: 5.4795416 | H82: =IF(E10=0,"n/a",(YTotExp-(YTotExp+YTotRet-J10))/E10) -> n/a | I82: Bushel
D84: Example Breakeven Prices
B85: Example | C85: Example | D85: To Cover | G85: To Cover
B86: Yield | C86: Yield | D86: Variable | G86: Total
B87: Percent | C87: Bushel | D87: Costs | G87: Costs
B88: 0.75 | C88: 67.5 | D88: 5.348331468 | G88: 7.306055466
B89: 0.9 | C89: 81 | D89: 4.45694289 | G89: 6.088379555
B90: 1 | C90: 90 | D90: 4.011248601 | G90: 5.4795416
B91: 1.1 | C91: 99 | D91: 3.646589637 | G91: 4.981401454
B92: 1.25 | C92: 112.5 | D92: 3.208998881 | G92: 4.38363328
D94: Your Breakeven Prices
B95: Your | C95: Your | E95: To Cover | H95: To Cover
B96: Yield | C96: Yield | E96: Variable | H96: Total
B97: Percent | C97: Bushel | E97: Costs | H97: Costs
B98: 0.75 | C98: =E10*YPER1 -> 0 | E98: =IF($E$10=0,0,(YVarExp-(YTotExp+YTotRet-J10))/($E$10*YPER1)) -> 0 | H98: =IF($E$10=0,0,(YTotExp-(YTotExp+YTotRet-J10))/($E$10*YPER1)) -> 0
B99: 0.9 | C99: =E10*YPER2 -> 0 | E99: =IF($E$10=0,0,(YVarExp-(YTotExp+YTotRet-J10))/($E$10*YPER2)) -> 0 | H99: =IF($E$10=0,0,(YTotExp-(YTotExp+YTotRet-J10))/($E$10*YPER2)) -> 0
B100: 1 | C100: =+E10 -> 0 | E100: =IF($E$10=0,0,(YVarExp-(YTotExp+YTotRet-J10))/($E$10*YPER3)) -> 0 | H100: =IF($E$10=0,0,(YTotExp-(YTotExp+YTotRet-J10))/($E$10*YPER3)) -> 0
B101: 1.1 | C101: =E10*YPER4 -> 0 | E101: =IF($E$10=0,0,(YVarExp-(YTotExp+YTotRet-J10))/($E$10*YPER4)) -> 0 | H101: =IF($E$10=0,0,(YTotExp-(YTotExp+YTotRet-J10))/($E$10*YPER4)) -> 0
B102: 1.25 | C102: =E10*YPER5 -> 0 | E102: =IF($E$10=0,0,(YVarExp-(YTotExp+YTotRet-J10))/($E$10*YPER5)) -> 0 | H102: =IF($E$10=0,0,(YTotExp-(YTotExp+YTotRet-J10))/($E$10*YPER5)) -> 0
A104: Developed by Jason Johnson, Associate Professor and Extension Economist, Texas A&M AgriLife Extension, 254-968-4144.
A106: Information presented is prepared solely as a general guide and not intended to recognize or predict the costs and returns from any one operation. Brand names are mentioned only as examples and imply no endorsement.

Sheet Cotton
A1: Projections for Planning Purposes Only -- Not to be Used without Updating
A2: 2021 Estimated Costs and Returns per Acre
A3: Stacked Cotton
A4: Enter your name for this budget in the cell above.
A5: Enter Your Values in the cells highlighed in MAROON.
E6: Your Acres | R6: Your
C7: Crop Acres | D7: 500 | L7: Your | Q7: Enterprise | R7: Enterprise
E8: Your | H8: Your | I8: Cash | J8: Your | K8: Landlord | L8: Landlord | N8: Your | P8: Your | Q8: Total | R8: Total
A9: REVENUE | D9: Quantity | E9: Quantity | F9: Units | G9: $/Unit | H9: $/Unit | I9: Total | J9: Total | K9: Share | L9: Share | M9: Landlord | N9: Landlord | O9: Tenant | P9: Tenant | Q9: (500 acres) | R9: ="(" & E7 & " acres)" -> ( acres)
B10: Cotton Lint | D10: 500 | F10: Pound | G10: 0.7 | I10: 350 | J10: =E10*H10 -> 0 | K10: 0 | M10: 0 | N10: =J10*L10 -> 0 | O10: 350 | P10: =+J10-N10 -> 0 | Q10: 175000 | R10: =+J10*E$7 -> 0
B11: Cottonseed | D11: 0.33 | F11: Ton | G11: 225 | I11: 74.25 | J11: 0 | K11: 0 | M11: 0 | N11: 0 | O11: 74.25 | P11: =+J11-N11 -> 0 | Q11: 37125 | R11: 0
D12: 0 | G12: 0 | I12: 0 | J12: 0 | K12: 0 | M12: 0 | N12: 0 | O12: 0 | P12: 0 | Q12: 0 | R12: 0
D13: 0 | G13: 0 | I13: 0 | J13: 0 | K13: 0 | M13: 0 | N13: 0 | O13: 0 | P13: 0 | Q13: 0 | R13: 0
A14: Total Revenue | I14: 424.25 | J14: =SUM(J10:J13) -> 0 | M14: 0 | N14: =SUM(N10:N13) -> 0 | O14: 424.25 | P14: =SUM(P10:P13) -> 0 | Q14: 212125 | R14: =SUM(R10:R13) -> 0
Q15: Enterprise | R15: Enterprise
A16: VARIABLE COSTS | D16: Quantity | E16: Quantity | F16: Units | G16: $/Unit | H16: $/Unit | I16: Total | J16: Total | K16: Share | L16: Share | M16: Landlord | N16: Landlord | O16: Tenant | P16: Tenant | Q16: Total | R16: Total
A17: Production Costs
B18: Fertilizer
C19: Fertilizer - N, P, K | D19: 1 | F19: Acre | G19: 80 | I19: 80 | J19: =E19*H19 -> 0 | K19: 0 | M19: 0 | N19: =J19*L19 -> 0 | O19: 80 | P19: =+J19-N19 -> 0 | Q19: 40000 | R19: =+J19*E$7 -> 0
B20: Herbicide
C21: Yellow Herbicide | D21: 1 | F21: Acre | G21: 4 | I21: 4 | J21: 0 | K21: 0 | M21: 0 | N21: 0 | O21: 4 | P21: 0 | Q21: 2000 | R21: 0
C22: Planting Burndown | D22: 32 | F22: Ounce | G22: 0.2 | I22: 6.4 | J22: 0 | K22: 0 | M22: 0 | N22: 0 | O22: 6.4 | P22: 0 | Q22: 3200 | R22: 0
C23: Herbicide 1st Application | D23: 32 | F23: Ounce | G23: 0.2 | I23: 6.4 | J23: 0 | K23: 0 | M23: 0 | N23: 0 | O23: 6.4 | P23: 0 | Q23: 3200 | R23: 0
C24: Herbicide 2nd Application | D24: 32 | F24: Ounce | G24: 0.2 | I24: 6.4 | J24: 0 | K24: 0 | M24: 0 | N24: 0 | O24: 6.4 | P24: 0 | Q24: 3200 | R24: 0
B25: Seed
C26: Stacked Cotton Seed | D26: 1 | F26: Acre | G26: 35 | I26: 35 | J26: 0 | K26: 0 | M26: 0 | N26: 0 | O26: 35 | P26: 0 | Q26: 17500 | R26: 0
C27: Herbicide Tech Fee | D27: 1 | F27: Acre | G27: 18 | I27: 18 | J27: 0 | K27: 0 | M27: 0 | N27: 0 | O27: 18 | P27: 0 | Q27: 9000 | R27: 0
C28: bt Tech Fee | D28: 1 | F28: Acre | G28: 9 | I28: 9 | J28: 0 | K28: 0 | M28: 0 | N28: 0 | O28: 9 | P28: 0 | Q28: 4500 | R28: 0
B29: Miscellaneous
C30: Insurance - Cotton | D30: 1 | F30: Acre | G30: 20 | I30: 20 | J30: 0 | K30: 0 | M30: 0 | N30: 0 | O30: 20 | P30: 0 | Q30: 10000 | R30: 0
C31: Insurance - Cotton SCO/STAX | D31: 1 | F31: Acre | G31: 5 | I31: 5 | J31: 0 | K31: 0 | M31: 0 | N31: 0 | O31: 5 | P31: 0 | Q31: 2500 | R31: 0
B32: Insecticide
C33: Insecticide 1st Application | D33: 1 | F33: Acre | G33: 4 | I33: 4 | J33: 0 | K33: 0 | M33: 0 | N33: 0 | O33: 4 | P33: 0 | Q33: 2000 | R33: 0
C34: Insecticide 2nd Application | D34: 1 | F34: Acre | G34: 4 | I34: 4 | J34: 0 | K34: 0 | M34: 0 | N34: 0 | O34: 4 | P34: 0 | Q34: 2000 | R34: 0
C35: Boll Weevil Eradication | D35: 1 | F35: Acre | G35: 10 | I35: 10 | J35: 0 | K35: 0 | M35: 0 | N35: 0 | O35: 10 | P35: 0 | Q35: 5000 | R35: 0
B36: Other Chemicals
C37: Defoliant | D37: 1 | F37: Acre | G37: 12 | I37: 12 | J37: 0 | K37: 0 | M37: 0 | N37: 0 | O37: 12 | P37: 0 | Q37: 6000 | R37: 0
C38: Dessicant | D38: 1 | F38: Acre | G38: 10 | I38: 10 | J38: 0 | K38: 0 | M38: 0 | N38: 0 | O38: 10 | P38: 0 | Q38: 5000 | R38: 0
B39: Custom
C40: Stripping | D40: 500 | F40: Pound | G40: 0.12 | I40: 60 | J40: 0 | K40: 0 | M40: 0 | N40: 0 | O40: 60 | P40: 0 | Q40: 30000 | R40: 0
C41: Ginning | D41: 500 | F41: Pound | G41: 0.12 | I41: 60 | J41: 0 | K41: 0 | M41: 0 | N41: 0 | O41: 60 | P41: 0 | Q41: 30000 | R41: 0
D42: 0 | G42: 0 | I42: 0 | J42: 0 | K42: 0 | M42: 0 | N42: 0 | O42: 0 | P42: 0 | Q42: 0 | R42: 0
D43: 0 | G43: 0 | I43: 0 | J43: 0 | K43: 0 | M43: 0 | N43: 0 | O43: 0 | P43: 0 | Q43: 0 | R43: 0
D44: 0 | G44: 0 | I44: 0 | J44: =E44*H44 -> 0 | K44: 0 | M44: 0 | N44: =J44*L44 -> 0 | O44: 0 | P44: =+J44-N44 -> 0 | Q44: 0 | R44: =+J44*E$7 -> 0
B45: Machinery Labor
C46: Tractors/Self-Propelled | D46: 0.86 | F46: Hour | G46: 10 | I46: 8.6 | J46: =E46*H46 -> 0 | K46: 0 | M46: 0 | N46: =J46*L46 -> 0 | O46: 8.6 | P46: =+J46-N46 -> 0 | Q46: 4300 | R46: =+J46*E$7 -> 0
C47: Other Labor | D47: 0 | F47: Hour | G47: 10 | I47: 0 | J47: =E47*H47 -> 0 | K47: 0 | M47: 0 | N47: =J47*L47 -> 0 | O47: 0 | P47: =+J47-N47 -> 0 | Q47: 0 | R47: =+J47*E$7 -> 0
B49: Diesel Fuel
C50: Pickup/General Use Equipment | D50: 1 | F50: Acre | G50: 0 | I50: 0 | J50: =E50*H50 -> 0 | K50: 0 | M50: 0 | N50: =J50*L50 -> 0 | O50: 0 | P50: =+J50-N50 -> 0 | Q50: 0 | R50: =+J50*E$7 -> 0
C51: Tractors/Self-Propelled | D51: 7.17 | F51: Gallon | G51: 2.4 | I51: 17.208 | J51: =E51*H51 -> 0 | K51: 0 | M51: 0 | N51: =J51*L51 -> 0 | O51: 17.208 | P51: =+J51-N51 -> 0 | Q51: 8604 | R51: =+J51*E$7 -> 0
B53: Gasoline
C54: Pickup/General Use Equipment | D54: 1 | F54: Acre | G54: 3.225 | I54: 3.225 | J54: =E54*H54 -> 0 | K54: 0 | M54: 0 | N54: =J54*L54 -> 0 | O54: 3.225 | P54: =+J54-N54 -> 0 | Q54: 1612.5 | R54: =+J54*E$7 -> 0
C55: Tractors/Self-Propelled | D55: 0 | F55: Gallon | G55: 2.15 | I55: 0 | J55: =E55*H55 -> 0 | K55: 0 | M55: 0 | N55: =J55*L55 -> 0 | O55: 0 | P55: =+J55-N55 -> 0 | Q55: 0 | R55: =+J55*E$7 -> 0
B57: Repairs & Maintenance
C58: Pickup/General Use Equipment | D58: 1 | F58: Acre | G58: 0.672 | I58: 0.672 | J58: =E58*H58 -> 0 | K58: 0 | M58: 0 | N58: =J58*L58 -> 0 | O58: 0.672 | P58: =+J58-N58 -> 0 | Q58: 336 | R58: =+J58*E$7 -> 0
C59: Irrigation Equipment | D59: 1 | F59: Acre | G59: 0 | I59: 0 | J59: 0 | K59: 0 | M59: 0 | N59: 0 | O59: 0 | P59: 0 | Q59: 0 | R59: 0
C60: Tractors/Self-Propelled | D60: 1 | F60: Acre | G60: 17.97020756 | I60: 17.97020756 | J60: 0 | K60: 0 | M60: 0 | N60: 0 | O60: 17.97020756 | P60: 0 | Q60: 8985.103782 | R60: 0
C61: Implements | D61: 1 | F61: Acre | G61: 21.70950194 | I61: 21.70950194 | J61: 0 | K61: 0 | M61: 0 | N61: 0 | O61: 21.70950194 | P61: 0 | Q61: 10854.75097 | R61: 0
I62: 0 | J62: 0 | K62: 0 | M62: 0 | N62: 0 | O62: 0 | P62: 0 | Q62: 0 | R62: 0
I63: 0 | J63: 0 | K63: 0 | M63: 0 | N63: 0 | O63: 0 | P63: 0 | Q63: 0 | R63: 0
B64: Interest on Credit Line | G64: 0.0475 | I64: 6.466121206 | J64: =+SUM(J18:J63)/2*H64 -> 0 | M64: 0 | N64: =+SUM(N18:N63)/2*L64 -> 0 | O64: 6.466121206 | P64: =+SUM(P18:P63)/2*L64 -> 0 | Q64: 3233.060603 | R64: =+J64*E$7 -> 0
A65: Total Variable Costs | I65: 426.0508307 | J65: =SUM(J19:J64) -> 0 | M65: 0 | N65: =SUM(N19:N64) -> 0 | O65: 426.0508307 | P65: =SUM(P19:P64) -> 0 | Q65: 213025.4154 | R65: =SUM(R19:R64) -> 0
A66: Planned Returns Above Variable Costs: | I66: -1.80083071 | J66: =+J14-J65 -> 0 | M66: 0 | N66: =+N14-N65 -> 0 | O66: -1.80083071 | P66: =+P14-P65 -> 0 | Q66: -900.4153548 | R66: =+R14-R65 -> 0
B67: Breakeven Price to Cover Variable Costs | G67: 0.7036016614 | H67: =IF(E10=0,"n/a",(YVarExp-(YTotExp+YTotRet-J10))/E10) -> n/a | I67: Pound
Q68: Enterprise | R68: Enterprise
A69: FIXED COSTS | D69: Quantity | E69: Quantity | F69: Units | G69: $/Unit | H69: $/Unit | I69: Total | J69: Total | K69: Share | L69: Share | M69: Landlord | N69: Landlord | O69: Tenant | P69: Tenant | Q69: Total | R69: Total
B70: Machinery Depreciation
C71: Pickup/General Use Equipment | D71: 1 | F71: Acre | G71: 0.6972 | I71: 0.6972 | J71: =E71*H71 -> 0 | K71: 0 | M71: 0 | N71: =J71*L71 -> 0 | O71: 0.6972 | P71: =+J71-N71 -> 0 | Q71: 348.6 | R71: =+J71*E$7 -> 0
C72: Tractors/Self-Propelled | D72: 1 | F72: Acre | G72: 18.56921448 | I72: 18.56921448 | J72: 0 | K72: 0 | M72: 0 | N72: =J72*L72 -> 0 | O72: 18.56921448 | P72: 0 | Q72: 9284.607241 | R72: 0
C73: Implements | D73: 1 | F73: Acre | G73: 27.82875436 | I73: 27.82875436 | J73: 0 | K73: 0 | M73: 0 | N73: =J73*L73 -> 0 | O73: 27.82875436 | P73: 0 | Q73: 13914.37718 | R73: 0
B74: Equipment Investment
C75: Pickup/General Use Equipment | D75: 4.914 | F75: Dollars | G75: 0.06 | I75: 0.29484 | J75: =E75*H75 -> 0 | K75: 0 | M75: 0 | N75: =J75*L75 -> 0 | O75: 0.29484 | P75: =+J75-N75 -> 0 | Q75: 147.42 | R75: =+J75*E$7 -> 0
C76: Tractors/Self-Propelled | D76: 144.6601709 | F76: Dollars | G76: 0.06 | I76: 8.679610253 | J76: 0 | K76: 0 | M76: 0 | N76: =J76*L76 -> 0 | O76: 8.679610253 | P76: 0 | Q76: 4339.805127 | R76: 0
C77: Implements | D77: 119.045227 | F77: Dollars | G77: 0.06 | I77: 7.14271362 | J77: 0 | K77: 0 | M77: 0 | N77: =J77*L77 -> 0 | O77: 7.14271362 | P77: 0 | Q77: 3571.35681 | R77: 0
B78: Salaried Labor | D78: 1 | F78: Acre | G78: 0 | I78: 0 | J78: 0 | K78: 0 | M78: 0 | N78: =J78*L78 -> 0 | O78: 0 | P78: =+J78-N78 -> 0 | Q78: 0 | R78: =+J78*E$7 -> 0
B79: Management Fee, Owner/Operator Labor | D79: 1 | F79: Acre | G79: 0 | I79: 0 | J79: 0 | K79: 0 | M79: 0 | N79: 0 | O79: 0 | P79: 0 | Q79: 0 | R79: 0
B80: Allocated Establishment Cost | D80: 1 | F80: Acre | G80: 0 | I80: 0 | J80: 0 | K80: 0 | M80: 0 | N80: 0 | O80: 0 | P80: 0 | Q80: 0 | R80: 0
B81: Cotton Land Rent | D81: 1 | F81: Acre | G81: 50 | I81: 50 | J81: 0 | K81: 0 | M81: 0 | N81: 0 | O81: 50 | P81: 0 | Q81: 25000 | R81: 0
B82: Property Taxes | D82: 1 | F82: Acre | G82: 0 | I82: 0 | J82: 0 | K82: 0 | M82: 0 | N82: 0 | O82: 0 | P82: 0 | Q82: 0 | R82: 0
B83: Whole Farm Insurance | D83: 1 | F83: Acre | G83: 0 | I83: 0 | J83: 0 | K83: 0 | M83: 0 | N83: 0 | O83: 0 | P83: 0 | Q83: 0 | R83: 0
D84: 1 | G84: 0 | I84: 0 | J84: 0 | K84: 0 | M84: 0 | N84: 0 | O84: 0 | P84: 0 | Q84: 0 | R84: 0
D85: 1 | G85: 0 | I85: 0 | J85: =E85*H85 -> 0 | K85: 0 | M85: 0 | N85: 0 | O85: 0 | P85: 0 | Q85: 0 | R85: 0
A86: Total Fixed Costs | I86: 113.2123327 | J86: =+SUM(J71:J85) -> 0 | M86: 0 | N86: =+SUM(N71:N85) -> 0 | O86: 113.2123327 | P86: =+SUM(P71:P85) -> 0 | Q86: 56606.16636 | R86: =+SUM(R71:R85) -> 0
A87: Total Specified Costs | I87: 539.2631634 | J87: =+J65+J86 -> 0 | M87: 0 | N87: =+N65+N86 -> 0 | O87: 539.2631634 | P87: =+P65+P86 -> 0 | Q87: 269631.5817 | R87: =+R65+R86 -> 0
A89: Returns Above Specified Costs | I89: -115.0131634 | J89: =+J14-J87 -> 0 | M89: 0 | N89: =+N14-N87 -> 0 | O89: -115.0131634 | P89: =+P14-P87 -> 0 | Q89: -57506.58172 | R89: =+R14-R87 -> 0
A91: Breakeven Price to Cover Total Costs | G91: 0.9300263269 | H91: =IF(E10=0,"n/a",(YTotExp-(YTotExp+YTotRet-J10))/E10) -> n/a | I91: Pound
D93: Example Breakeven Prices
B94: Example | C94: Example | D94: To Cover | G94: To Cover
B95: Yield | C95: Yield | D95: Variable | G95: Total
B96: Percent | C96: Pound | D96: Costs | G96: Costs
B97: 0.75 | C97: 375 | D97: 0.9381355486 | G97: 1.240035102
B98: 0.9 | C98: 450 | D98: 0.7817796238 | G98: 1.033362585
B99: 1 | C99: 500 | D99: 0.7036016614 | G99: 0.9300263269
B100: 1.1 | C100: 550 | D100: 0.639637874 | G100: 0.845478479
B101: 1.25 | C101: 625 | D101: 0.5628813291 | G101: 0.7440210615
D103: Your Breakeven Prices
B104: Your | C104: Your | E104: To Cover | H104: To Cover
B105: Yield | C105: Yield | E105: Variable | H105: Total
B106: Percent | C106: Pound | E106: Costs | H106: Costs
B107: 0.75 | C107: =E10*YPER1 -> 0 | E107: =IF($E$10=0,0,(YVarExp-(YTotExp+YTotRet-J10))/($E$10*YPER1)) -> 0 | H107: =IF($E$10=0,0,(YTotExp-(YTotExp+YTotRet-J10))/($E$10*YPER1)) -> 0
B108: 0.9 | C108: =E10*YPER2 -> 0 | E108: =IF($E$10=0,0,(YVarExp-(YTotExp+YTotRet-J10))/($E$10*YPER2)) -> 0 | H108: =IF($E$10=0,0,(YTotExp-(YTotExp+YTotRet-J10))/($E$10*YPER2)) -> 0
B109: 1 | C109: =+E10 -> 0 | E109: =IF($E$10=0,0,(YVarExp-(YTotExp+YTotRet-J10))/($E$10*YPER3)) -> 0 | H109: =IF($E$10=0,0,(YTotExp-(YTotExp+YTotRet-J10))/($E$10*YPER3)) -> 0
B110: 1.1 | C110: =E10*YPER4 -> 0 | E110: =IF($E$10=0,0,(YVarExp-(YTotExp+YTotRet-J10))/($E$10*YPER4)) -> 0 | H110: =IF($E$10=0,0,(YTotExp-(YTotExp+YTotRet-J10))/($E$10*YPER4)) -> 0
B111: 1.25 | C111: =E10*YPER5 -> 0 | E111: =IF($E$10=0,0,(YVarExp-(YTotExp+YTotRet-J10))/($E$10*YPER5)) -> 0 | H111: =IF($E$10=0,0,(YTotExp-(YTotExp+YTotRet-J10))/($E$10*YPER5)) -> 0
A113: Developed by Jason Johnson, Associate Professor and Extension Economist, Texas A&M AgriLife Extension, 254-968-4144.
A115: Information presented is prepared solely as a general guide and not intended to recognize or predict the costs and returns from any one operation. Brand names are mentioned only as examples and imply no endorsement.

Sheet CoastalEstablishFarmland
A1: Projections for Planning Purposes Only -- Not to be Used without Updating
A2: 2021 Estimated Costs and Returns per Acre
A3: Coastal Bermudagrass Establishment - Farmland
A4: Enter your name for this budget in the cell above.
A5: Enter Your Values in the cells highlighed in MAROON.
E6: Your Acres | R6: Your
C7: Crop Acres | D7: 100 | L7: Your | Q7: Enterprise | R7: Enterprise
E8: Your | H8: Your | I8: Cash | J8: Your | K8: Landlord | L8: Landlord | N8: Your | P8: Your | Q8: Total | R8: Total
A9: REVENUE | D9: Quantity | E9: Quantity | F9: Units | G9: $/Unit | H9: $/Unit | I9: Total | J9: Total | K9: Share | L9: Share | M9: Landlord | N9: Landlord | O9: Tenant | P9: Tenant | Q9: (100 acres) | R9: ="(" & E7 & " acres)" -> ( acres)
B10: 0 | D10: 0 | G10: 0 | I10: 0 | J10: =E10*H10 -> 0 | K10: 0 | M10: 0 | N10: =J10*L10 -> 0 | O10: 0 | P10: =+J10-N10 -> 0 | Q10: 0 | R10: =+J10*E$7 -> 0
D11: 0 | G11: 0 | I11: 0 | J11: 0 | K11: 0 | M11: 0 | N11: 0 | O11: 0 | P11: =+J11-N11 -> 0 | Q11: 0 | R11: 0
D12: 0 | G12: 0 | I12: 0 | J12: 0 | K12: 0 | M12: 0 | N12: 0 | O12: 0 | P12: 0 | Q12: 0 | R12: 0
A13: Total Revenue | I13: 0 | J13: =SUM(J10:J12) -> 0 | M13: 0 | N13: =SUM(N10:N12) -> 0 | O13: 0 | P13: =SUM(P10:P12) -> 0 | Q13: 0 | R13: =SUM(R10:R12) -> 0
Q14: Enterprise | R14: Enterprise
A15: VARIABLE COSTS | D15: Quantity | E15: Quantity | F15: Units | G15: $/Unit | H15: $/Unit | I15: Total | J15: Total | K15: Share | L15: Share | M15: Landlord | N15: Landlord | O15: Tenant | P15: Tenant | Q15: Total | R15: Total
A16: Production Costs
B17: Custom
C18: Custom Sprig | D18: 1 | F18: Acre | G18: 70 | I18: 70 | J18: =E18*H18 -> 0 | K18: 0 | M18: 0 | N18: =J18*L18 -> 0 | O18: 70 | P18: =+J18-N18 -> 0 | Q18: 7000 | R18: =+J18*E$7 -> 0
B19: Fertilizer
C20: 18-46-0 | D20: 100 | F20: Pound | G20: 0.29 | I20: 29 | J20: 0 | K20: 0 | M20: 0 | N20: 0 | O20: 29 | P20: 0 | Q20: 2900 | R20: 0
C21: 46-0-0 | D21: 100 | F21: Pound | G21: 0.21 | I21: 21 | J21: 0 | K21: 0 | M21: 0 | N21: 0 | O21: 21 | P21: 0 | Q21: 2100 | R21: 0
B22: Seed
C23: Bermuda Sprigs | D23: 30 | F23: Bushel | G23: 1.5 | I23: 45 | J23: 0 | K23: 0 | M23: 0 | N23: 0 | O23: 45 | P23: 0 | Q23: 4500 | R23: 0
D24: 0 | G24: 0 | I24: 0 | J24: 0 | K24: 0 | M24: 0 | N24: 0 | O24: 0 | P24: 0 | Q24: 0 | R24: 0
D25: 0 | G25: 0 | I25: 0 | J25: 0 | K25: 0 | M25: 0 | N25: 0 | O25: 0 | P25: 0 | Q25: 0 | R25: 0
D26: 0 | G26: 0 | I26: 0 | J26: =E26*H26 -> 0 | K26: 0 | M26: 0 | N26: =J26*L26 -> 0 | O26: 0 | P26: =+J26-N26 -> 0 | Q26: 0 | R26: =+J26*E$7 -> 0
B27: Machinery Labor
C28: Tractors/Self-Propelled | D28: 0.71 | F28: Hour | G28: 10 | I28: 7.1 | J28: =E28*H28 -> 0 | K28: 0 | M28: 0 | N28: =J28*L28 -> 0 | O28: 7.1 | P28: =+J28-N28 -> 0 | Q28: 710 | R28: =+J28*E$7 -> 0
C29: Other Labor | D29: 0 | F29: Hour | G29: 10 | I29: 0 | J29: =E29*H29 -> 0 | K29: 0 | M29: 0 | N29: =J29*L29 -> 0 | O29: 0 | P29: =+J29-N29 -> 0 | Q29: 0 | R29: =+J29*E$7 -> 0
B31: Diesel Fuel
C32: Pickup/General Use Equipment | D32: 1 | F32: Acre | G32: 0 | I32: 0 | J32: =E32*H32 -> 0 | K32: 0 | M32: 0 | N32: =J32*L32 -> 0 | O32: 0 | P32: =+J32-N32 -> 0 | Q32: 0 | R32: =+J32*E$7 -> 0
C33: Tractors/Self-Propelled | D33: 2.31 | F33: Gallon | G33: 2.4 | I33: 5.544 | J33: =E33*H33 -> 0 | K33: 0 | M33: 0 | N33: =J33*L33 -> 0 | O33: 5.544 | P33: =+J33-N33 -> 0 | Q33: 554.4 | R33: =+J33*E$7 -> 0
B35: Gasoline
C36: Pickup/General Use Equipment | D36: 1 | F36: Acre | G36: 0 | I36: 0 | J36: =E36*H36 -> 0 | K36: 0 | M36: 0 | N36: =J36*L36 -> 0 | O36: 0 | P36: =+J36-N36 -> 0 | Q36: 0 | R36: =+J36*E$7 -> 0
C37: Tractors/Self-Propelled | D37: 0 | F37: Gallon | G37: 2.15 | I37: 0 | J37: =E37*H37 -> 0 | K37: 0 | M37: 0 | N37: =J37*L37 -> 0 | O37: 0 | P37: =+J37-N37 -> 0 | Q37: 0 | R37: =+J37*E$7 -> 0
B39: Repairs & Maintenance
C40: Pickup/General Use Equipment | D40: 1 | F40: Acre | G40: 0 | I40: 0 | J40: =E40*H40 -> 0 | K40: 0 | M40: 0 | N40: =J40*L40 -> 0 | O40: 0 | P40: =+J40-N40 -> 0 | Q40: 0 | R40: =+J40*E$7 -> 0
C41: Irrigation Equipment | D41: 1 | F41: Acre | G41: 0 | I41: 0 | J41: 0 | K41: 0 | M41: 0 | N41: 0 | O41: 0 | P41: 0 | Q41: 0 | R41: 0
C42: Tractors/Self-Propelled | D42: 1 | F42: Acre | G42: 3.015654692 | I42: 3.015654692 | J42: 0 | K42: 0 | M42: 0 | N42: 0 | O42: 3.015654692 | P42: 0 | Q42: 301.5654692 | R42: 0
C43: Implements | D43: 1 | F43: Acre | G43: 3.049463997 | I43: 3.049463997 | J43: 0 | K43: 0 | M43: 0 | N43: 0 | O43: 3.049463997 | P43: 0 | Q43: 304.9463997 | R43: 0
I44: 0 | J44: 0 | K44: 0 | M44: 0 | N44: 0 | O44: 0 | P44: 0 | Q44: 0 | R44: 0
I45: 0 | J45: 0 | K45: 0 | M45: 0 | N45: 0 | O45: 0 | P45: 0 | Q45: 0 | R45: 0
B46: Interest on Credit Line | G46: 0.0475 | I46: 4.193486665 | J46: =+SUM(J17:J45)/2*H46 -> 0 | M46: 0 | N46: =+SUM(N17:N45)/2*L46 -> 0 | O46: 4.193486665 | P46: =+SUM(P17:P45)/2*L46 -> 0 | Q46: 419.3486665 | R46: =+J46*E$7 -> 0
A47: Total Variable Costs | I47: 187.9026054 | J47: =SUM(J18:J46) -> 0 | M47: 0 | N47: =SUM(N18:N46) -> 0 | O47: 187.9026054 | P47: =SUM(P18:P46) -> 0 | Q47: 18790.26054 | R47: =SUM(R18:R46) -> 0
A48: Planned Returns Above Variable Costs: | I48: -187.9026054 | J48: =+J13-J47 -> 0 | M48: 0 | N48: =+N13-N47 -> 0 | O48: -187.9026054 | P48: =+P13-P47 -> 0 | Q48: -18790.26054 | R48: =+R13-R47 -> 0
B49: Breakeven Price to Cover Variable Costs | G49: n/a | H49: =IF(E10=0,"n/a",(YVarExp-(YTotExp+YTotRet-J10))/E10) -> n/a
Q50: Enterprise | R50: Enterprise
A51: FIXED COSTS | D51: Quantity | E51: Quantity | F51: Units | G51: $/Unit | H51: $/Unit | I51: Total | J51: Total | K51: Share | L51: Share | M51: Landlord | N51: Landlord | O51: Tenant | P51: Tenant | Q51: Total | R51: Total
B52: Machinery Depreciation
C53: Tractors/Self-Propelled | D53: 1 | F53: Acre | G53: 2.492941212 | I53: 2.492941212 | J53: =E53*H53 -> 0 | K53: 0 | M53: 0 | N53: =J53*L53 -> 0 | O53: 2.492941212 | P53: =+J53-N53 -> 0 | Q53: 249.2941212 | R53: =+J53*E$7 -> 0
C54: Implements | D54: 1 | F54: Acre | G54: 3.851913186 | I54: 3.851913186 | J54: 0 | K54: 0 | M54: 0 | N54: =J54*L54 -> 0 | O54: 3.851913186 | P54: 0 | Q54: 385.1913186 | R54: 0
B55: Equipment Investment
C56: Tractors/Self-Propelled | D56: 19.42081621 | F56: Dollars | G56: 0.06 | I56: 1.165248973 | J56: =E56*H56 -> 0 | K56: 0 | M56: 0 | N56: =J56*L56 -> 0 | O56: 1.165248973 | P56: =+J56-N56 -> 0 | Q56: 116.5248973 | R56: =+J56*E$7 -> 0
C57: Implements | D57: 16.61193626 | F57: Dollars | G57: 0.06 | I57: 0.9967161758 | J57: 0 | K57: 0 | M57: 0 | N57: =J57*L57 -> 0 | O57: 0.9967161758 | P57: 0 | Q57: 99.67161758 | R57: 0
B58: Salaried Labor | D58: 1 | F58: Acre | G58: 0 | I58: 0 | J58: 0 | K58: 0 | M58: 0 | N58: =J58*L58 -> 0 | O58: 0 | P58: =+J58-N58 -> 0 | Q58: 0 | R58: =+J58*E$7 -> 0
B59: Management Fee, Owner/Operator Labor | D59: 1 | F59: Acre | G59: 0 | I59: 0 | J59: 0 | K59: 0 | M59: 0 | N59: 0 | O59: 0 | P59: 0 | Q59: 0 | R59: 0
B60: Allocated Establishment Cost | D60: 1 | F60: Acre | G60: 0 | I60: 0 | J60: 0 | K60: 0 | M60: 0 | N60: 0 | O60: 0 | P60: 0 | Q60: 0 | R60: 0
B61: None | D61: 1 | F61: Acre | G61: 0 | I61: 0 | J61: 0 | K61: 0 | M61: 0 | N61: 0 | O61: 0 | P61: 0 | Q61: 0 | R61: 0
B62: Property Taxes | D62: 1 | F62: Acre | G62: 0 | I62: 0 | J62: 0 | K62: 0 | M62: 0 | N62: 0 | O62: 0 | P62: 0 | Q62: 0 | R62: 0
B63: Whole Farm Insurance | D63: 1 | F63: Acre | G63: 0 | I63: 0 | J63: 0 | K63: 0 | M63: 0 | N63: 0 | O63: 0 | P63: 0 | Q63: 0 | R63: 0
D64: 1 | G64: 0 | I64: 0 | J64: 0 | K64: 0 | M64: 0 | N64: 0 | O64: 0 | P64: 0 | Q64: 0 | R64: 0
D65: 1 | G65: 0 | I65: 0 | J65: =E65*H65 -> 0 | K65: 0 | M65: 0 | N65: 0 | O65: 0 | P65: 0 | Q65: 0 | R65: 0
A66: Total Fixed Costs | I66: 8.506819546 | J66: =+SUM(J53:J65) -> 0 | M66: 0 | N66: =+SUM(N53:N65) -> 0 | O66: 8.506819546 | P66: =+SUM(P53:P65) -> 0 | Q66: 850.6819546 | R66: =+SUM(R53:R65) -> 0
A67: Total Specified Costs | I67: 196.4094249 | J67: =+J47+J66 -> 0 | M67: 0 | N67: =+N47+N66 -> 0 | O67: 196.4094249 | P67: =+P47+P66 -> 0 | Q67: 19640.94249 | R67: =+R47+R66 -> 0
A69: Returns Above Specified Costs | I69: -196.4094249 | J69: =+J13-J67 -> 0 | M69: 0 | N69: =+N13-N67 -> 0 | O69: -196.4094249 | P69: =+P13-P67 -> 0 | Q69: -19640.94249 | R69: =+R13-R67 -> 0
A71: Breakeven Price to Cover Total Costs | G71: n/a | H71: =IF(E10=0,"n/a",(YTotExp-(YTotExp+YTotRet-J10))/E10) -> n/a
D73: Example Breakeven Prices
B74: Example | C74: Example | D74: To Cover | G74: To Cover
B75: Yield | C75: Yield | D75: Variable | G75: Total
B76: Percent | D76: Costs | G76: Costs
B77: 0.75 | C77: 0 | D77: 0 | G77: 0
B78: 0.9 | C78: 0 | D78: 0 | G78: 0
B79: 1 | C79: 0 | D79: 0 | G79: 0
B80: 1.1 | C80: 0 | D80: 0 | G80: 0
B81: 1.25 | C81: 0 | D81: 0 | G81: 0
D83: Your Breakeven Prices
B84: Your | C84: Your | E84: To Cover | H84: To Cover
B85: Yield | C85: Yield | E85: Variable | H85: Total
B86: Percent | E86: Costs | H86: Costs
B87: 0.75 | C87: =E10*YPER1 -> 0 | E87: =IF($E$10=0,0,(YVarExp-(YTotExp+YTotRet-J10))/($E$10*YPER1)) -> 0 | H87: =IF($E$10=0,0,(YTotExp-(YTotExp+YTotRet-J10))/($E$10*YPER1)) -> 0
B88: 0.9 | C88: =E10*YPER2 -> 0 | E88: =IF($E$10=0,0,(YVarExp-(YTotExp+YTotRet-J10))/($E$10*YPER2)) -> 0 | H88: =IF($E$10=0,0,(YTotExp-(YTotExp+YTotRet-J10))/($E$10*YPER2)) -> 0
B89: 1 | C89: =+E10 -> 0 | E89: =IF($E$10=0,0,(YVarExp-(YTotExp+YTotRet-J10))/($E$10*YPER3)) -> 0 | H89: =IF($E$10=0,0,(YTotExp-(YTotExp+YTotRet-J10))/($E$10*YPER3)) -> 0
B90: 1.1 | C90: =E10*YPER4 -> 0 | E90: =IF($E$10=0,0,(YVarExp-(YTotExp+YTotRet-J10))/($E$10*YPER4)) -> 0 | H90: =IF($E$10=0,0,(YTotExp-(YTotExp+YTotRet-J10))/($E$10*YPER4)) -> 0
B91: 1.25 | C91: =E10*YPER5 -> 0 | E91: =IF($E$10=0,0,(YVarExp-(YTotExp+YTotRet-J10))/($E$10*YPER5)) -> 0 | H91: =IF($E$10=0,0,(YTotExp-(YTotExp+YTotRet-J10))/($E$10*YPER5)) -> 0
A93: Developed by Jason Johnson, Associate Professor and Extension Economist, Texas A&M AgriLife Extension, 254-968-4144.
A95: Information presented is prepared solely as a general guide and not intended to recognize or predict the costs and returns from any one operation. Brand names are mentioned only as examples and imply no endorsement.

Sheet CoastalEstablishNative
A1: Projections for Planning Purposes Only -- Not to be Used without Updating
A2: 2021 Estimated Costs and Returns per Acre
A3: Coastal Bermudagrass Establishment - Native Prairie
A4: Enter your name for this budget in the cell above.
A5: Enter Your Values in the cells highlighed in MAROON.
E6: Your Acres | R6: Your
C7: Crop Acres | D7: 100 | L7: Your | Q7: Enterprise | R7: Enterprise
E8: Your | H8: Your | I8: Cash | J8: Your | K8: Landlord | L8: Landlord | N8: Your | P8: Your | Q8: Total | R8: Total
A9: REVENUE | D9: Quantity | E9: Quantity | F9: Units | G9: $/Unit | H9: $/Unit | I9: Total | J9: Total | K9: Share | L9: Share | M9: Landlord | N9: Landlord | O9: Tenant | P9: Tenant | Q9: (100 acres) | R9: ="(" & E7 & " acres)" -> ( acres)
B10: 0 | D10: 0 | G10: 0 | I10: 0 | J10: =E10*H10 -> 0 | K10: 0 | M10: 0 | N10: =J10*L10 -> 0 | O10: 0 | P10: =+J10-N10 -> 0 | Q10: 0 | R10: =+J10*E$7 -> 0
D11: 0 | G11: 0 | I11: 0 | J11: 0 | K11: 0 | M11: 0 | N11: 0 | O11: 0 | P11: =+J11-N11 -> 0 | Q11: 0 | R11: 0
D12: 0 | G12: 0 | I12: 0 | J12: 0 | K12: 0 | M12: 0 | N12: 0 | O12: 0 | P12: 0 | Q12: 0 | R12: 0
A13: Total Revenue | I13: 0 | J13: =SUM(J10:J12) -> 0 | M13: 0 | N13: =SUM(N10:N12) -> 0 | O13: 0 | P13: =SUM(P10:P12) -> 0 | Q13: 0 | R13: =SUM(R10:R12) -> 0
Q14: Enterprise | R14: Enterprise
A15: VARIABLE COSTS | D15: Quantity | E15: Quantity | F15: Units | G15: $/Unit | H15: $/Unit | I15: Total | J15: Total | K15: Share | L15: Share | M15: Landlord | N15: Landlord | O15: Tenant | P15: Tenant | Q15: Total | R15: Total
A16: Production Costs
B17: Custom
C18: Tree & Brush Removal | D18: 1 | F18: Acre | G18: 150 | I18: 150 | J18: =E18*H18 -> 0 | K18: 0 | M18: 0 | N18: =J18*L18 -> 0 | O18: 150 | P18: =+J18-N18 -> 0 | Q18: 15000 | R18: =+J18*E$7 -> 0
C19: Custom Sprig | D19: 1 | F19: Acre | G19: 70 | I19: 70 | J19: 0 | K19: 0 | M19: 0 | N19: 0 | O19: 70 | P19: 0 | Q19: 7000 | R19: 0
B20: Fertilizer
C21: 18-46-0 | D21: 100 | F21: Pound | G21: 0.29 | I21: 29 | J21: 0 | K21: 0 | M21: 0 | N21: 0 | O21: 29 | P21: 0 | Q21: 2900 | R21: 0
C22: 46-0-0 | D22: 100 | F22: Pound | G22: 0.21 | I22: 21 | J22: 0 | K22: 0 | M22: 0 | N22: 0 | O22: 21 | P22: 0 | Q22: 2100 | R22: 0
B23: Seed
C24: Bermuda Sprigs | D24: 30 | F24: Bushel | G24: 1.5 | I24: 45 | J24: 0 | K24: 0 | M24: 0 | N24: 0 | O24: 45 | P24: 0 | Q24: 4500 | R24: 0
D25: 0 | G25: 0 | I25: 0 | J25: 0 | K25: 0 | M25: 0 | N25: 0 | O25: 0 | P25: 0 | Q25: 0 | R25: 0
D26: 0 | G26: 0 | I26: 0 | J26: 0 | K26: 0 | M26: 0 | N26: 0 | O26: 0 | P26: 0 | Q26: 0 | R26: 0
D27: 0 | G27: 0 | I27: 0 | J27: =E27*H27 -> 0 | K27: 0 | M27: 0 | N27: =J27*L27 -> 0 | O27: 0 | P27: =+J27-N27 -> 0 | Q27: 0 | R27: =+J27*E$7 -> 0
B28: Machinery Labor
C29: Tractors/Self-Propelled | D29: 1.02 | F29: Hour | G29: 10 | I29: 10.2 | J29: =E29*H29 -> 0 | K29: 0 | M29: 0 | N29: =J29*L29 -> 0 | O29: 10.2 | P29: =+J29-N29 -> 0 | Q29: 1020 | R29: =+J29*E$7 -> 0
C30: Other Labor | D30: 0 | F30: Hour | G30: 10 | I30: 0 | J30: =E30*H30 -> 0 | K30: 0 | M30: 0 | N30: =J30*L30 -> 0 | O30: 0 | P30: =+J30-N30 -> 0 | Q30: 0 | R30: =+J30*E$7 -> 0
B32: Diesel Fuel
C33: Pickup/General Use Equipment | D33: 1 | F33: Acre | G33: 0 | I33: 0 | J33: =E33*H33 -> 0 | K33: 0 | M33: 0 | N33: =J33*L33 -> 0 | O33: 0 | P33: =+J33-N33 -> 0 | Q33: 0 | R33: =+J33*E$7 -> 0
C34: Tractors/Self-Propelled | D34: 3.32 | F34: Gallon | G34: 2.4 | I34: 7.968 | J34: =E34*H34 -> 0 | K34: 0 | M34: 0 | N34: =J34*L34 -> 0 | O34: 7.968 | P34: =+J34-N34 -> 0 | Q34: 796.8 | R34: =+J34*E$7 -> 0
B36: Gasoline
C37: Pickup/General Use Equipment | D37: 1 | F37: Acre | G37: 0 | I37: 0 | J37: =E37*H37 -> 0 | K37: 0 | M37: 0 | N37: =J37*L37 -> 0 | O37: 0 | P37: =+J37-N37 -> 0 | Q37: 0 | R37: =+J37*E$7 -> 0
C38: Tractors/Self-Propelled | D38: 0 | F38: Gallon | G38: 2.15 | I38: 0 | J38: =E38*H38 -> 0 | K38: 0 | M38: 0 | N38: =J38*L38 -> 0 | O38: 0 | P38: =+J38-N38 -> 0 | Q38: 0 | R38: =+J38*E$7 -> 0
B40: Repairs & Maintenance
C41: Pickup/General Use Equipment | D41: 1 | F41: Acre | G41: 0 | I41: 0 | J41: =E41*H41 -> 0 | K41: 0 | M41: 0 | N41: =J41*L41 -> 0 | O41: 0 | P41: =+J41-N41 -> 0 | Q41: 0 | R41: =+J41*E$7 -> 0
C42: Irrigation Equipment | D42: 1 | F42: Acre | G42: 0 | I42: 0 | J42: 0 | K42: 0 | M42: 0 | N42: 0 | O42: 0 | P42: 0 | Q42: 0 | R42: 0
C43: Tractors/Self-Propelled | D43: 1 | F43: Acre | G43: 4.324294094 | I43: 4.324294094 | J43: 0 | K43: 0 | M43: 0 | N43: 0 | O43: 4.324294094 | P43: 0 | Q43: 432.4294094 | R43: 0
C44: Implements | D44: 1 | F44: Acre | G44: 5.817418221 | I44: 5.817418221 | J44: 0 | K44: 0 | M44: 0 | N44: 0 | O44: 5.817418221 | P44: 0 | Q44: 581.7418221 | R44: 0
I45: 0 | J45: 0 | K45: 0 | M45: 0 | N45: 0 | O45: 0 | P45: 0 | Q45: 0 | R45: 0
I46: 0 | J46: 0 | K46: 0 | M46: 0 | N46: 0 | O46: 0 | P46: 0 | Q46: 0 | R46: 0
B47: Interest on Credit Line | G47: 0.0475 | I47: 12.02573692 | J47: =+SUM(J17:J46)/2*H47 -> 0 | M47: 0 | N47: =+SUM(N17:N46)/2*L47 -> 0 | O47: 12.02573692 | P47: =+SUM(P17:P46)/2*L47 -> 0 | Q47: 1202.573692 | R47: =+J47*E$7 -> 0
A48: Total Variable Costs | I48: 355.3354492 | J48: =SUM(J18:J47) -> 0 | M48: 0 | N48: =SUM(N18:N47) -> 0 | O48: 355.3354492 | P48: =SUM(P18:P47) -> 0 | Q48: 35533.54492 | R48: =SUM(R18:R47) -> 0
A49: Planned Returns Above Variable Costs: | I49: -355.3354492 | J49: =+J13-J48 -> 0 | M49: 0 | N49: =+N13-N48 -> 0 | O49: -355.3354492 | P49: =+P13-P48 -> 0 | Q49: -35533.54492 | R49: =+R13-R48 -> 0
B50: Breakeven Price to Cover Variable Costs | G50: n/a | H50: =IF(E10=0,"n/a",(YVarExp-(YTotExp+YTotRet-J10))/E10) -> n/a
Q51: Enterprise | R51: Enterprise
A52: FIXED COSTS | D52: Quantity | E52: Quantity | F52: Units | G52: $/Unit | H52: $/Unit | I52: Total | J52: Total | K52: Share | L52: Share | M52: Landlord | N52: Landlord | O52: Tenant | P52: Tenant | Q52: Total | R52: Total
B53: Machinery Depreciation
C54: Tractors/Self-Propelled | D54: 1 | F54: Acre | G54: 3.574749785 | I54: 3.574749785 | J54: =E54*H54 -> 0 | K54: 0 | M54: 0 | N54: =J54*L54 -> 0 | O54: 3.574749785 | P54: =+J54-N54 -> 0 | Q54: 357.4749785 | R54: =+J54*E$7 -> 0
C55: Implements | D55: 1 | F55: Acre | G55: 7.111980807 | I55: 7.111980807 | J55: 0 | K55: 0 | M55: 0 | N55: =J55*L55 -> 0 | O55: 7.111980807 | P55: 0 | Q55: 711.1980807 | R55: 0
B56: Equipment Investment
C57: Tractors/Self-Propelled | D57: 27.84845397 | F57: Dollars | G57: 0.06 | I57: 1.670907238 | J57: =E57*H57 -> 0 | K57: 0 | M57: 0 | N57: =J57*L57 -> 0 | O57: 1.670907238 | P57: =+J57-N57 -> 0 | Q57: 167.0907238 | R57: =+J57*E$7 -> 0
C58: Implements | D58: 30.55778109 | F58: Dollars | G58: 0.06 | I58: 1.833466865 | J58: 0 | K58: 0 | M58: 0 | N58: =J58*L58 -> 0 | O58: 1.833466865 | P58: 0 | Q58: 183.3466865 | R58: 0
B59: Salaried Labor | D59: 1 | F59: Acre | G59: 0 | I59: 0 | J59: 0 | K59: 0 | M59: 0 | N59: =J59*L59 -> 0 | O59: 0 | P59: =+J59-N59 -> 0 | Q59: 0 | R59: =+J59*E$7 -> 0
B60: Management Fee, Owner/Operator Labor | D60: 1 | F60: Acre | G60: 0 | I60: 0 | J60: 0 | K60: 0 | M60: 0 | N60: 0 | O60: 0 | P60: 0 | Q60: 0 | R60: 0
B61: Allocated Establishment Cost | D61: 1 | F61: Acre | G61: 0 | I61: 0 | J61: 0 | K61: 0 | M61: 0 | N61: 0 | O61: 0 | P61: 0 | Q61: 0 | R61: 0
B62: None | D62: 1 | F62: Acre | G62: 0 | I62: 0 | J62: 0 | K62: 0 | M62: 0 | N62: 0 | O62: 0 | P62: 0 | Q62: 0 | R62: 0
B63: Property Taxes | D63: 1 | F63: Acre | G63: 0 | I63: 0 | J63: 0 | K63: 0 | M63: 0 | N63: 0 | O63: 0 | P63: 0 | Q63: 0 | R63: 0
B64: Whole Farm Insurance | D64: 1 | F64: Acre | G64: 0 | I64: 0 | J64: 0 | K64: 0 | M64: 0 | N64: 0 | O64: 0 | P64: 0 | Q64: 0 | R64: 0
D65: 1 | G65: 0 | I65: 0 | J65: 0 | K65: 0 | M65: 0 | N65: 0 | O65: 0 | P65: 0 | Q65: 0 | R65: 0
D66: 1 | G66: 0 | I66: 0 | J66: =E66*H66 -> 0 | K66: 0 | M66: 0 | N66: 0 | O66: 0 | P66: 0 | Q66: 0 | R66: 0
A67: Total Fixed Costs | I67: 14.1911047 | J67: =+SUM(J54:J66) -> 0 | M67: 0 | N67: =+SUM(N54:N66) -> 0 | O67: 14.1911047 | P67: =+SUM(P54:P66) -> 0 | Q67: 1419.11047 | R67: =+SUM(R54:R66) -> 0
A68: Total Specified Costs | I68: 369.5265539 | J68: =+J48+J67 -> 0 | M68: 0 | N68: =+N48+N67 -> 0 | O68: 369.5265539 | P68: =+P48+P67 -> 0 | Q68: 36952.65539 | R68: =+R48+R67 -> 0
A70: Returns Above Specified Costs | I70: -369.5265539 | J70: =+J13-J68 -> 0 | M70: 0 | N70: =+N13-N68 -> 0 | O70: -369.5265539 | P70: =+P13-P68 -> 0 | Q70: -36952.65539 | R70: =+R13-R68 -> 0
A72: Breakeven Price to Cover Total Costs | G72: n/a | H72: =IF(E10=0,"n/a",(YTotExp-(YTotExp+YTotRet-J10))/E10) -> n/a
D74: Example Breakeven Prices
B75: Example | C75: Example | D75: To Cover | G75: To Cover
B76: Yield | C76: Yield | D76: Variable | G76: Total
B77: Percent | D77: Costs | G77: Costs
B78: 0.75 | C78: 0 | D78: 0 | G78: 0
B79: 0.9 | C79: 0 | D79: 0 | G79: 0
B80: 1 | C80: 0 | D80: 0 | G80: 0
B81: 1.1 | C81: 0 | D81: 0 | G81: 0
B82: 1.25 | C82: 0 | D82: 0 | G82: 0
D84: Your Breakeven Prices
B85: Your | C85: Your | E85: To Cover | H85: To Cover
B86: Yield | C86: Yield | E86: Variable | H86: Total
B87: Percent | E87: Costs | H87: Costs
B88: 0.75 | C88: =E10*YPER1 -> 0 | E88: =IF($E$10=0,0,(YVarExp-(YTotExp+YTotRet-J10))/($E$10*YPER1)) -> 0 | H88: =IF($E$10=0,0,(YTotExp-(YTotExp+YTotRet-J10))/($E$10*YPER1)) -> 0
B89: 0.9 | C89: =E10*YPER2 -> 0 | E89: =IF($E$10=0,0,(YVarExp-(YTotExp+YTotRet-J10))/($E$10*YPER2)) -> 0 | H89: =IF($E$10=0,0,(YTotExp-(YTotExp+YTotRet-J10))/($E$10*YPER2)) -> 0
B90: 1 | C90: =+E10 -> 0 | E90: =IF($E$10=0,0,(YVarExp-(YTotExp+YTotRet-J10))/($E$10*YPER3)) -> 0 | H90: =IF($E$10=0,0,(YTotExp-(YTotExp+YTotRet-J10))/($E$10*YPER3)) -> 0
B91: 1.1 | C91: =E10*YPER4 -> 0 | E91: =IF($E$10=0,0,(YVarExp-(YTotExp+YTotRet-J10))/($E$10*YPER4)) -> 0 | H91: =IF($E$10=0,0,(YTotExp-(YTotExp+YTotRet-J10))/($E$10*YPER4)) -> 0
B92: 1.25 | C92: =E10*YPER5 -> 0 | E92: =IF($E$10=0,0,(YVarExp-(YTotExp+YTotRet-J10))/($E$10*YPER5)) -> 0 | H92: =IF($E$10=0,0,(YTotExp-(YTotExp+YTotRet-J10))/($E$10*YPER5)) -> 0
A94: Developed by Jason Johnson, Associate Professor and Extension Economist, Texas A&M AgriLife Extension, 254-968-4144.
A96: Information presented is prepared solely as a general guide and not intended to recognize or predict the costs and returns from any one operation. Brand names are mentioned only as examples and imply no endorsement.

Sheet CoastalHay
A1: Projections for Planning Purposes Only -- Not to be Used without Updating
A2: 2021 Estimated Costs and Returns per Acre
A3: Coastal Bermudagrass Hay
A4: Enter your name for this budget in the cell above.
A5: Enter Your Values in the cells highlighed in MAROON.
E6: Your Acres | R6: Your
C7: Crop Acres | D7: 100 | L7: Your | Q7: Enterprise | R7: Enterprise
E8: Your | H8: Your | I8: Cash | J8: Your | K8: Landlord | L8: Landlord | N8: Your | P8: Your | Q8: Total | R8: Total
A9: REVENUE | D9: Quantity | E9: Quantity | F9: Units | G9: $/Unit | H9: $/Unit | I9: Total | J9: Total | K9: Share | L9: Share | M9: Landlord | N9: Landlord | O9: Tenant | P9: Tenant | Q9: (100 acres) | R9: ="(" & E7 & " acres)" -> ( acres)
B10: Bermuda Hay | D10: 6 | F10: Roll | G10: 70 | I10: 420 | J10: =E10*H10 -> 0 | K10: 0 | M10: 0 | N10: =J10*L10 -> 0 | O10: 420 | P10: =+J10-N10 -> 0 | Q10: 42000 | R10: =+J10*E$7 -> 0
D11: 0 | G11: 0 | I11: 0 | J11: 0 | K11: 0 | M11: 0 | N11: 0 | O11: 0 | P11: =+J11-N11 -> 0 | Q11: 0 | R11: 0
D12: 0 | G12: 0 | I12: 0 | J12: 0 | K12: 0 | M12: 0 | N12: 0 | O12: 0 | P12: 0 | Q12: 0 | R12: 0
A13: Total Revenue | I13: 420 | J13: =SUM(J10:J12) -> 0 | M13: 0 | N13: =SUM(N10:N12) -> 0 | O13: 420 | P13: =SUM(P10:P12) -> 0 | Q13: 42000 | R13: =SUM(R10:R12) -> 0
Q14: Enterprise | R14: Enterprise
A15: VARIABLE COSTS | D15: Quantity | E15: Quantity | F15: Units | G15: $/Unit | H15: $/Unit | I15: Total | J15: Total | K15: Share | L15: Share | M15: Landlord | N15: Landlord | O15: Tenant | P15: Tenant | Q15: Total | R15: Total
A16: Production Costs
B17: Custom
C18: Land Renovation | D18: 1 | F18: Acre | G18: 10 | I18: 10 | J18: =E18*H18 -> 0 | K18: 0 | M18: 0 | N18: =J18*L18 -> 0 | O18: 10 | P18: =+J18-N18 -> 0 | Q18: 1000 | R18: =+J18*E$7 -> 0
C19: Custom Spray | D19: 3 | F19: Acre | G19: 8 | I19: 24 | J19: 0 | K19: 0 | M19: 0 | N19: 0 | O19: 24 | P19: 0 | Q19: 2400 | R19: 0
C20: Cut and Bale | D20: 3 | F20: Acre | G20: 30 | I20: 90 | J20: 0 | K20: 0 | M20: 0 | N20: 0 | O20: 90 | P20: 0 | Q20: 9000 | R20: 0
B21: Fertilizer
C22: 24-6-12 | D22: 300 | F22: Pound | G22: 0.25 | I22: 75 | J22: 0 | K22: 0 | M22: 0 | N22: 0 | O22: 75 | P22: 0 | Q22: 7500 | R22: 0
C23: 34-0-0 | D23: 300 | F23: Pound | G23: 0.2 | I23: 60 | J23: 0 | K23: 0 | M23: 0 | N23: 0 | O23: 60 | P23: 0 | Q23: 6000 | R23: 0
B24: Insecticide
C25: Hay Pre and Post Herbicide | D25: 1 | F25: Acre | G25: 9 | I25: 9 | J25: 0 | K25: 0 | M25: 0 | N25: 0 | O25: 9 | P25: 0 | Q25: 900 | R25: 0
D26: 0 | G26: 0 | I26: 0 | J26: 0 | K26: 0 | M26: 0 | N26: 0 | O26: 0 | P26: 0 | Q26: 0 | R26: 0
D27: 0 | G27: 0 | I27: 0 | J27: 0 | K27: 0 | M27: 0 | N27: 0 | O27: 0 | P27: 0 | Q27: 0 | R27: 0
D28: 0 | G28: 0 | I28: 0 | J28: =E28*H28 -> 0 | K28: 0 | M28: 0 | N28: =J28*L28 -> 0 | O28: 0 | P28: =+J28-N28 -> 0 | Q28: 0 | R28: =+J28*E$7 -> 0
B29: Machinery Labor
C30: Tractors/Self-Propelled | D30: 1.42 | F30: Hour | G30: 10 | I30: 14.2 | J30: =E30*H30 -> 0 | K30: 0 | M30: 0 | N30: =J30*L30 -> 0 | O30: 14.2 | P30: =+J30-N30 -> 0 | Q30: 1420 | R30: =+J30*E$7 -> 0
C31: Other Labor | D31: 0 | F31: Hour | G31: 10 | I31: 0 | J31: =E31*H31 -> 0 | K31: 0 | M31: 0 | N31: =J31*L31 -> 0 | O31: 0 | P31: =+J31-N31 -> 0 | Q31: 0 | R31: =+J31*E$7 -> 0
B33: Diesel Fuel
C34: Pickup/General Use Equipment | D34: 1 | F34: Acre | G34: 0 | I34: 0 | J34: =E34*H34 -> 0 | K34: 0 | M34: 0 | N34: =J34*L34 -> 0 | O34: 0 | P34: =+J34-N34 -> 0 | Q34: 0 | R34: =+J34*E$7 -> 0
C35: Tractors/Self-Propelled | D35: 4.63 | F35: Gallon | G35: 2.4 | I35: 11.112 | J35: =E35*H35 -> 0 | K35: 0 | M35: 0 | N35: =J35*L35 -> 0 | O35: 11.112 | P35: =+J35-N35 -> 0 | Q35: 1111.2 | R35: =+J35*E$7 -> 0
B37: Gasoline
C38: Pickup/General Use Equipment | D38: 1 | F38: Acre | G38: 0 | I38: 0 | J38: =E38*H38 -> 0 | K38: 0 | M38: 0 | N38: =J38*L38 -> 0 | O38: 0 | P38: =+J38-N38 -> 0 | Q38: 0 | R38: =+J38*E$7 -> 0
C39: Tractors/Self-Propelled | D39: 0 | F39: Gallon | G39: 2.15 | I39: 0 | J39: =E39*H39 -> 0 | K39: 0 | M39: 0 | N39: =J39*L39 -> 0 | O39: 0 | P39: =+J39-N39 -> 0 | Q39: 0 | R39: =+J39*E$7 -> 0
B41: Repairs & Maintenance
C42: Pickup/General Use Equipment | D42: 1 | F42: Acre | G42: 0 | I42: 0 | J42: =E42*H42 -> 0 | K42: 0 | M42: 0 | N42: =J42*L42 -> 0 | O42: 0 | P42: =+J42-N42 -> 0 | Q42: 0 | R42: =+J42*E$7 -> 0
C43: Irrigation Equipment | D43: 1 | F43: Acre | G43: 0 | I43: 0 | J43: 0 | K43: 0 | M43: 0 | N43: 0 | O43: 0 | P43: 0 | Q43: 0 | R43: 0
C44: Tractors/Self-Propelled | D44: 1 | F44: Acre | G44: 6.033605528 | I44: 6.033605528 | J44: 0 | K44: 0 | M44: 0 | N44: 0 | O44: 6.033605528 | P44: 0 | Q44: 603.3605528 | R44: 0
C45: Implements | D45: 1 | F45: Acre | G45: 0.2605355691 | I45: 0.2605355691 | J45: 0 | K45: 0 | M45: 0 | N45: 0 | O45: 0.2605355691 | P45: 0 | Q45: 26.05355691 | R45: 0
I46: 0 | J46: 0 | K46: 0 | M46: 0 | N46: 0 | O46: 0 | P46: 0 | Q46: 0 | R46: 0
I47: 0 | J47: 0 | K47: 0 | M47: 0 | N47: 0 | O47: 0 | P47: 0 | Q47: 0 | R47: 0
B48: Interest on Credit Line | G48: 0.0475 | I48: 3.548247596 | J48: =+SUM(J17:J47)/2*H48 -> 0 | M48: 0 | N48: =+SUM(N17:N47)/2*L48 -> 0 | O48: 3.548247596 | P48: =+SUM(P17:P47)/2*L48 -> 0 | Q48: 354.8247596 | R48: =+J48*E$7 -> 0
A49: Total Variable Costs | I49: 303.1543887 | J49: =SUM(J18:J48) -> 0 | M49: 0 | N49: =SUM(N18:N48) -> 0 | O49: 303.1543887 | P49: =SUM(P18:P48) -> 0 | Q49: 30315.43887 | R49: =SUM(R18:R48) -> 0
A50: Planned Returns Above Variable Costs: | I50: 116.8456113 | J50: =+J13-J49 -> 0 | M50: 0 | N50: =+N13-N49 -> 0 | O50: 116.8456113 | P50: =+P13-P49 -> 0 | Q50: 11684.56113 | R50: =+R13-R49 -> 0
B51: Breakeven Price to Cover Variable Costs | G51: 50.52573145 | H51: =IF(E10=0,"n/a",(YVarExp-(YTotExp+YTotRet-J10))/E10) -> n/a | I51: Roll
Q52: Enterprise | R52: Enterprise
A53: FIXED COSTS | D53: Quantity | E53: Quantity | F53: Units | G53: $/Unit | H53: $/Unit | I53: Total | J53: Total | K53: Share | L53: Share | M53: Landlord | N53: Landlord | O53: Tenant | P53: Tenant | Q53: Total | R53: Total
B54: Machinery Depreciation
C55: Tractors/Self-Propelled | D55: 1 | F55: Acre | G55: 4.98778057 | I55: 4.98778057 | J55: =E55*H55 -> 0 | K55: 0 | M55: 0 | N55: =J55*L55 -> 0 | O55: 4.98778057 | P55: =+J55-N55 -> 0 | Q55: 498.778057 | R55: =+J55*E$7 -> 0
C56: Implements | D56: 1 | F56: Acre | G56: 0.5654293183 | I56: 0.5654293183 | J56: 0 | K56: 0 | M56: 0 | N56: =J56*L56 -> 0 | O56: 0.5654293183 | P56: 0 | Q56: 56.54293183 | R56: 0
B57: Equipment Investment
C58: Tractors/Self-Propelled | D58: 38.8564196 | F58: Dollars | G58: 0.06 | I58: 2.331385176 | J58: =E58*H58 -> 0 | K58: 0 | M58: 0 | N58: =J58*L58 -> 0 | O58: 2.331385176 | P58: =+J58-N58 -> 0 | Q58: 233.1385176 | R58: =+J58*E$7 -> 0
C59: Implements | D59: 3.502768814 | F59: Dollars | G59: 0.06 | I59: 0.2101661289 | J59: 0 | K59: 0 | M59: 0 | N59: =J59*L59 -> 0 | O59: 0.2101661289 | P59: 0 | Q59: 21.01661289 | R59: 0
B60: Salaried Labor | D60: 1 | F60: Acre | G60: 0 | I60: 0 | J60: 0 | K60: 0 | M60: 0 | N60: =J60*L60 -> 0 | O60: 0 | P60: =+J60-N60 -> 0 | Q60: 0 | R60: =+J60*E$7 -> 0
B61: Management Fee, Owner/Operator Labor | D61: 1 | F61: Acre | G61: 0 | I61: 0 | J61: 0 | K61: 0 | M61: 0 | N61: 0 | O61: 0 | P61: 0 | Q61: 0 | R61: 0
B62: Allocated Establishment Cost | D62: 1 | F62: Acre | G62: 0 | I62: 0 | J62: 0 | K62: 0 | M62: 0 | N62: 0 | O62: 0 | P62: 0 | Q62: 0 | R62: 0
B63: None | D63: 1 | F63: Acre | G63: 0 | I63: 0 | J63: 0 | K63: 0 | M63: 0 | N63: 0 | O63: 0 | P63: 0 | Q63: 0 | R63: 0
B64: Property Taxes | D64: 1 | F64: Acre | G64: 0 | I64: 0 | J64: 0 | K64: 0 | M64: 0 | N64: 0 | O64: 0 | P64: 0 | Q64: 0 | R64: 0
B65: Whole Farm Insurance | D65: 1 | F65: Acre | G65: 0 | I65: 0 | J65: 0 | K65: 0 | M65: 0 | N65: 0 | O65: 0 | P65: 0 | Q65: 0 | R65: 0
D66: 1 | G66: 0 | I66: 0 | J66: 0 | K66: 0 | M66: 0 | N66: 0 | O66: 0 | P66: 0 | Q66: 0 | R66: 0
D67: 1 | G67: 0 | I67: 0 | J67: =E67*H67 -> 0 | K67: 0 | M67: 0 | N67: 0 | O67: 0 | P67: 0 | Q67: 0 | R67: 0
A68: Total Fixed Costs | I68: 8.094761193 | J68: =+SUM(J55:J67) -> 0 | M68: 0 | N68: =+SUM(N55:N67) -> 0 | O68: 8.094761193 | P68: =+SUM(P55:P67) -> 0 | Q68: 809.4761193 | R68: =+SUM(R55:R67) -> 0
A69: Total Specified Costs | I69: 311.2491499 | J69: =+J49+J68 -> 0 | M69: 0 | N69: =+N49+N68 -> 0 | O69: 311.2491499 | P69: =+P49+P68 -> 0 | Q69: 31124.91499 | R69: =+R49+R68 -> 0
A71: Returns Above Specified Costs | I71: 108.7508501 | J71: =+J13-J69 -> 0 | M71: 0 | N71: =+N13-N69 -> 0 | O71: 108.7508501 | P71: =+P13-P69 -> 0 | Q71: 10875.08501 | R71: =+R13-R69 -> 0
A73: Breakeven Price to Cover Total Costs | G73: 51.87485831 | H73: =IF(E10=0,"n/a",(YTotExp-(YTotExp+YTotRet-J10))/E10) -> n/a | I73: Roll
D75: Example Breakeven Prices
B76: Example | C76: Example | D76: To Cover | G76: To Cover
B77: Yield | C77: Yield | D77: Variable | G77: Total
B78: Percent | C78: Roll | D78: Costs | G78: Costs
B79: 0.75 | C79: 4.5 | D79: 67.36764193 | G79: 69.16647775
B80: 0.9 | C80: 5.4 | D80: 56.13970161 | G80: 57.63873146
B81: 1 | C81: 6 | D81: 50.52573145 | G81: 51.87485831
B82: 1.1 | C82: 6.6 | D82: 45.93248314 | G82: 47.1589621
B83: 1.25 | C83: 7.5 | D83: 40.42058516 | G83: 41.49988665
D85: Your Breakeven Prices
B86: Your | C86: Your | E86: To Cover | H86: To Cover
B87: Yield | C87: Yield | E87: Variable | H87: Total
B88: Percent | C88: Roll | E88: Costs | H88: Costs
B89: 0.75 | C89: =E10*YPER1 -> 0 | E89: =IF($E$10=0,0,(YVarExp-(YTotExp+YTotRet-J10))/($E$10*YPER1)) -> 0 | H89: =IF($E$10=0,0,(YTotExp-(YTotExp+YTotRet-J10))/($E$10*YPER1)) -> 0
B90: 0.9 | C90: =E10*YPER2 -> 0 | E90: =IF($E$10=0,0,(YVarExp-(YTotExp+YTotRet-J10))/($E$10*YPER2)) -> 0 | H90: =IF($E$10=0,0,(YTotExp-(YTotExp+YTotRet-J10))/($E$10*YPER2)) -> 0
B91: 1 | C91: =+E10 -> 0 | E91: =IF($E$10=0,0,(YVarExp-(YTotExp+YTotRet-J10))/($E$10*YPER3)) -> 0 | H91: =IF($E$10=0,0,(YTotExp-(YTotExp+YTotRet-J10))/($E$10*YPER3)) -> 0
B92: 1.1 | C92: =E10*YPER4 -> 0 | E92: =IF($E$10=0,0,(YVarExp-(YTotExp+YTotRet-J10))/($E$10*YPER4)) -> 0 | H92: =IF($E$10=0,0,(YTotExp-(YTotExp+YTotRet-J10))/($E$10*YPER4)) -> 0
B93: 1.25 | C93: =E10*YPER5 -> 0 | E93: =IF($E$10=0,0,(YVarExp-(YTotExp+YTotRet-J10))/($E$10*YPER5)) -> 0 | H93: =IF($E$10=0,0,(YTotExp-(YTotExp+YTotRet-J10))/($E$10*YPER5)) -> 0
A95: Developed by Jason Johnson, Associate Professor and Extension Economist, Texas A&M AgriLife Extension, 254-968-4144.
A97: Information presented is prepared solely as a general guide and not intended to recognize or predict the costs and returns from any one operation. Brand names are mentioned only as examples and imply no endorsement.

Sheet CoastalPasture
A1: Projections for Planning Purposes Only -- Not to be Used without Updating
A2: 2021 Estimated Costs and Returns per Acre
A3: Coastal Bermudagrass Pasture
A4: Enter your name for this budget in the cell above.
A5: Enter Your Values in the cells highlighed in MAROON.
E6: Your Acres | R6: Your
C7: Crop Acres | D7: 100 | L7: Your | Q7: Enterprise | R7: Enterprise
E8: Your | H8: Your | I8: Cash | J8: Your | K8: Landlord | L8: Landlord | N8: Your | P8: Your | Q8: Total | R8: Total
A9: REVENUE | D9: Quantity | E9: Quantity | F9: Units | G9: $/Unit | H9: $/Unit | I9: Total | J9: Total | K9: Share | L9: Share | M9: Landlord | N9: Landlord | O9: Tenant | P9: Tenant | Q9: (100 acres) | R9: ="(" & E7 & " acres)" -> ( acres)
B10: Livestock Grazing | D10: 5 | F10: AUM | G10: 22 | I10: 110 | J10: =E10*H10 -> 0 | K10: 0 | M10: 0 | N10: =J10*L10 -> 0 | O10: 110 | P10: =+J10-N10 -> 0 | Q10: 11000 | R10: =+J10*E$7 -> 0
D11: 0 | G11: 0 | I11: 0 | J11: 0 | K11: 0 | M11: 0 | N11: 0 | O11: 0 | P11: =+J11-N11 -> 0 | Q11: 0 | R11: 0
D12: 0 | G12: 0 | I12: 0 | J12: 0 | K12: 0 | M12: 0 | N12: 0 | O12: 0 | P12: 0 | Q12: 0 | R12: 0
A13: Total Revenue | I13: 110 | J13: =SUM(J10:J12) -> 0 | M13: 0 | N13: =SUM(N10:N12) -> 0 | O13: 110 | P13: =SUM(P10:P12) -> 0 | Q13: 11000 | R13: =SUM(R10:R12) -> 0
Q14: Enterprise | R14: Enterprise
A15: VARIABLE COSTS | D15: Quantity | E15: Quantity | F15: Units | G15: $/Unit | H15: $/Unit | I15: Total | J15: Total | K15: Share | L15: Share | M15: Landlord | N15: Landlord | O15: Tenant | P15: Tenant | Q15: Total | R15: Total
A16: Production Costs
B17: Custom
C18: Custom Spray | D18: 2 | F18: Acre | G18: 8 | I18: 16 | J18: =E18*H18 -> 0 | K18: 0 | M18: 0 | N18: =J18*L18 -> 0 | O18: 16 | P18: =+J18-N18 -> 0 | Q18: 1600 | R18: =+J18*E$7 -> 0
B19: Fertilizer
C20: 24-6-12 | D20: 200 | F20: Pound | G20: 0.25 | I20: 50 | J20: 0 | K20: 0 | M20: 0 | N20: 0 | O20: 50 | P20: 0 | Q20: 5000 | R20: 0
B21: Herbicide
C22: Herbicide, Pasture | D22: 1 | F22: Acre | G22: 8 | I22: 8 | J22: 0 | K22: 0 | M22: 0 | N22: 0 | O22: 8 | P22: 0 | Q22: 800 | R22: 0
D23: 0 | G23: 0 | I23: 0 | J23: 0 | K23: 0 | M23: 0 | N23: 0 | O23: 0 | P23: 0 | Q23: 0 | R23: 0
D24: 0 | G24: 0 | I24: 0 | J24: 0 | K24: 0 | M24: 0 | N24: 0 | O24: 0 | P24: 0 | Q24: 0 | R24: 0
D25: 0 | G25: 0 | I25: 0 | J25: =E25*H25 -> 0 | K25: 0 | M25: 0 | N25: =J25*L25 -> 0 | O25: 0 | P25: =+J25-N25 -> 0 | Q25: 0 | R25: =+J25*E$7 -> 0
B26: Machinery Labor
C27: Tractors/Self-Propelled | D27: 0 | F27: Hour | G27: 10 | I27: 0 | J27: =E27*H27 -> 0 | K27: 0 | M27: 0 | N27: =J27*L27 -> 0 | O27: 0 | P27: =+J27-N27 -> 0 | Q27: 0 | R27: =+J27*E$7 -> 0
C28: Other Labor | D28: 0 | F28: Hour | G28: 10 | I28: 0 | J28: =E28*H28 -> 0 | K28: 0 | M28: 0 | N28: =J28*L28 -> 0 | O28: 0 | P28: =+J28-N28 -> 0 | Q28: 0 | R28: =+J28*E$7 -> 0
B30: Diesel Fuel
C31: Pickup/General Use Equipment | D31: 1 | F31: Acre | G31: 0 | I31: 0 | J31: =E31*H31 -> 0 | K31: 0 | M31: 0 | N31: =J31*L31 -> 0 | O31: 0 | P31: =+J31-N31 -> 0 | Q31: 0 | R31: =+J31*E$7 -> 0
C32: Tractors/Self-Propelled | D32: 0 | F32: Gallon | G32: 2.4 | I32: 0 | J32: =E32*H32 -> 0 | K32: 0 | M32: 0 | N32: =J32*L32 -> 0 | O32: 0 | P32: =+J32-N32 -> 0 | Q32: 0 | R32: =+J32*E$7 -> 0
B34: Gasoline
C35: Pickup/General Use Equipment | D35: 1 | F35: Acre | G35: 0 | I35: 0 | J35: =E35*H35 -> 0 | K35: 0 | M35: 0 | N35: =J35*L35 -> 0 | O35: 0 | P35: =+J35-N35 -> 0 | Q35: 0 | R35: =+J35*E$7 -> 0
C36: Tractors/Self-Propelled | D36: 0 | F36: Gallon | G36: 2.15 | I36: 0 | J36: =E36*H36 -> 0 | K36: 0 | M36: 0 | N36: =J36*L36 -> 0 | O36: 0 | P36: =+J36-N36 -> 0 | Q36: 0 | R36: =+J36*E$7 -> 0
B38: Repairs & Maintenance
C39: Pickup/General Use Equipment | D39: 1 | F39: Acre | G39: 0 | I39: 0 | J39: =E39*H39 -> 0 | K39: 0 | M39: 0 | N39: =J39*L39 -> 0 | O39: 0 | P39: =+J39-N39 -> 0 | Q39: 0 | R39: =+J39*E$7 -> 0
C40: Irrigation Equipment | D40: 1 | F40: Acre | G40: 0 | I40: 0 | J40: 0 | K40: 0 | M40: 0 | N40: 0 | O40: 0 | P40: 0 | Q40: 0 | R40: 0
C41: Tractors/Self-Propelled | D41: 1 | F41: Acre | G41: 0 | I41: 0 | J41: 0 | K41: 0 | M41: 0 | N41: 0 | O41: 0 | P41: 0 | Q41: 0 | R41: 0
C42: Implements | D42: 1 | F42: Acre | G42: 0 | I42: 0 | J42: 0 | K42: 0 | M42: 0 | N42: 0 | O42: 0 | P42: 0 | Q42: 0 | R42: 0
I43: 0 | J43: 0 | K43: 0 | M43: 0 | N43: 0 | O43: 0 | P43: 0 | Q43: 0 | R43: 0
I44: 0 | J44: 0 | K44: 0 | M44: 0 | N44: 0 | O44: 0 | P44: 0 | Q44: 0 | R44: 0
B45: Interest on Credit Line | G45: 0.0475 | I45: 1.105253425 | J45: =+SUM(J17:J44)/2*H45 -> 0 | M45: 0 | N45: =+SUM(N17:N44)/2*L45 -> 0 | O45: 1.105253425 | P45: =+SUM(P17:P44)/2*L45 -> 0 | Q45: 110.5253425 | R45: =+J45*E$7 -> 0
A46: Total Variable Costs | I46: 75.10525342 | J46: =SUM(J18:J45) -> 0 | M46: 0 | N46: =SUM(N18:N45) -> 0 | O46: 75.10525342 | P46: =SUM(P18:P45) -> 0 | Q46: 7510.525342 | R46: =SUM(R18:R45) -> 0
A47: Planned Returns Above Variable Costs: | I47: 34.89474658 | J47: =+J13-J46 -> 0 | M47: 0 | N47: =+N13-N46 -> 0 | O47: 34.89474658 | P47: =+P13-P46 -> 0 | Q47: 3489.474658 | R47: =+R13-R46 -> 0
B48: Breakeven Price to Cover Variable Costs | G48: 15.02105068 | H48: =IF(E10=0,"n/a",(YVarExp-(YTotExp+YTotRet-J10))/E10) -> n/a | I48: AUM
Q49: Enterprise | R49: Enterprise
A50: FIXED COSTS | D50: Quantity | E50: Quantity | F50: Units | G50: $/Unit | H50: $/Unit | I50: Total | J50: Total | K50: Share | L50: Share | M50: Landlord | N50: Landlord | O50: Tenant | P50: Tenant | Q50: Total | R50: Total
B51: Salaried Labor | D51: 1 | F51: Acre | G51: 0 | I51: 0 | J51: =E51*H51 -> 0 | K51: 0 | M51: 0 | N51: =J51*L51 -> 0 | O51: 0 | P51: =+J51-N51 -> 0 | Q51: 0 | R51: =+J51*E$7 -> 0
B52: Management Fee, Owner/Operator Labor | D52: 1 | F52: Acre | G52: 0 | I52: 0 | J52: 0 | K52: 0 | M52: 0 | N52: 0 | O52: 0 | P52: 0 | Q52: 0 | R52: 0
B53: Allocated Establishment Cost | D53: 1 | F53: Acre | G53: 0 | I53: 0 | J53: 0 | K53: 0 | M53: 0 | N53: 0 | O53: 0 | P53: 0 | Q53: 0 | R53: 0
B54: None | D54: 1 | F54: Acre | G54: 0 | I54: 0 | J54: 0 | K54: 0 | M54: 0 | N54: 0 | O54: 0 | P54: 0 | Q54: 0 | R54: 0
B55: Property Taxes | D55: 1 | F55: Acre | G55: 0 | I55: 0 | J55: 0 | K55: 0 | M55: 0 | N55: 0 | O55: 0 | P55: 0 | Q55: 0 | R55: 0
B56: Whole Farm Insurance | D56: 1 | F56: Acre | G56: 0 | I56: 0 | J56: 0 | K56: 0 | M56: 0 | N56: 0 | O56: 0 | P56: 0 | Q56: 0 | R56: 0
D57: 1 | G57: 0 | I57: 0 | J57: 0 | K57: 0 | M57: 0 | N57: 0 | O57: 0 | P57: 0 | Q57: 0 | R57: 0
D58: 1 | G58: 0 | I58: 0 | J58: =E58*H58 -> 0 | K58: 0 | M58: 0 | N58: 0 | O58: 0 | P58: 0 | Q58: 0 | R58: 0
A59: Total Fixed Costs | I59: 0 | J59: =+SUM(J51:J58) -> 0 | M59: 0 | N59: =+SUM(N51:N58) -> 0 | O59: 0 | P59: =+SUM(P51:P58) -> 0 | Q59: 0 | R59: =+SUM(R51:R58) -> 0
A60: Total Specified Costs | I60: 75.10525342 | J60: =+J46+J59 -> 0 | M60: 0 | N60: =+N46+N59 -> 0 | O60: 75.10525342 | P60: =+P46+P59 -> 0 | Q60: 7510.525342 | R60: =+R46+R59 -> 0
A62: Returns Above Specified Costs | I62: 34.89474658 | J62: =+J13-J60 -> 0 | M62: 0 | N62: =+N13-N60 -> 0 | O62: 34.89474658 | P62: =+P13-P60 -> 0 | Q62: 3489.474658 | R62: =+R13-R60 -> 0
A64: Breakeven Price to Cover Total Costs | G64: 15.02105068 | H64: =IF(E10=0,"n/a",(YTotExp-(YTotExp+YTotRet-J10))/E10) -> n/a | I64: AUM
D66: Example Breakeven Prices
B67: Example | C67: Example | D67: To Cover | G67: To Cover
B68: Yield | C68: Yield | D68: Variable | G68: Total
B69: Percent | C69: AUM | D69: Costs | G69: Costs
B70: 0.75 | C70: 3.75 | D70: 20.02806758 | G70: 20.02806758
B71: 0.9 | C71: 4.5 | D71: 16.69005632 | G71: 16.69005632
B72: 1 | C72: 5 | D72: 15.02105068 | G72: 15.02105068
B73: 1.1 | C73: 5.5 | D73: 13.65550062 | G73: 13.65550062
B74: 1.25 | C74: 6.25 | D74: 12.01684055 | G74: 12.01684055
D76: Your Breakeven Prices
B77: Your | C77: Your | E77: To Cover | H77: To Cover
B78: Yield | C78: Yield | E78: Variable | H78: Total
B79: Percent | C79: AUM | E79: Costs | H79: Costs
B80: 0.75 | C80: =E10*YPER1 -> 0 | E80: =IF($E$10=0,0,(YVarExp-(YTotExp+YTotRet-J10))/($E$10*YPER1)) -> 0 | H80: =IF($E$10=0,0,(YTotExp-(YTotExp+YTotRet-J10))/($E$10*YPER1)) -> 0
B81: 0.9 | C81: =E10*YPER2 -> 0 | E81: =IF($E$10=0,0,(YVarExp-(YTotExp+YTotRet-J10))/($E$10*YPER2)) -> 0 | H81: =IF($E$10=0,0,(YTotExp-(YTotExp+YTotRet-J10))/($E$10*YPER2)) -> 0
B82: 1 | C82: =+E10 -> 0 | E82: =IF($E$10=0,0,(YVarExp-(YTotExp+YTotRet-J10))/($E$10*YPER3)) -> 0 | H82: =IF($E$10=0,0,(YTotExp-(YTotExp+YTotRet-J10))/($E$10*YPER3)) -> 0
B83: 1.1 | C83: =E10*YPER4 -> 0 | E83: =IF($E$10=0,0,(YVarExp-(YTotExp+YTotRet-J10))/($E$10*YPER4)) -> 0 | H83: =IF($E$10=0,0,(YTotExp-(YTotExp+YTotRet-J10))/($E$10*YPER4)) -> 0
B84: 1.25 | C84: =E10*YPER5 -> 0 | E84: =IF($E$10=0,0,(YVarExp-(YTotExp+YTotRet-J10))/($E$10*YPER5)) -> 0 | H84: =IF($E$10=0,0,(YTotExp-(YTotExp+YTotRet-J10))/($E$10*YPER5)) -> 0
A86: Developed by Jason Johnson, Associate Professor and Extension Economist, Texas A&M AgriLife Extension, 254-968-4144.
A88: Information presented is prepared solely as a general guide and not intended to recognize or predict the costs and returns from any one operation. Brand names are mentioned only as examples and imply no endorsement.

Sheet Sorghum
A1: Projections for Planning Purposes Only -- Not to be Used without Updating
A2: 2021 Estimated Costs and Returns per Acre
A3: Grain Sorghum
A4: Enter your name for this budget in the cell above.
A5: Enter Your Values in the cells highlighed in MAROON.
E6: Your Acres | R6: Your
C7: Crop Acres | D7: 500 | L7: Your | Q7: Enterprise | R7: Enterprise
E8: Your | H8: Your | I8: Cash | J8: Your | K8: Landlord | L8: Landlord | N8: Your | P8: Your | Q8: Total | R8: Total
A9: REVENUE | D9: Quantity | E9: Quantity | F9: Units | G9: $/Unit | H9: $/Unit | I9: Total | J9: Total | K9: Share | L9: Share | M9: Landlord | N9: Landlord | O9: Tenant | P9: Tenant | Q9: (500 acres) | R9: ="(" & E7 & " acres)" -> ( acres)
B10: Grain Sorghum | D10: 45 | F10: CWT | G10: 6.5 | I10: 292.5 | J10: =E10*H10 -> 0 | K10: 0 | M10: 0 | N10: =J10*L10 -> 0 | O10: 292.5 | P10: =+J10-N10 -> 0 | Q10: 146250 | R10: =+J10*E$7 -> 0
D11: 0 | G11: 0 | I11: 0 | J11: 0 | K11: 0 | M11: 0 | N11: 0 | O11: 0 | P11: =+J11-N11 -> 0 | Q11: 0 | R11: 0
D12: 0 | G12: 0 | I12: 0 | J12: 0 | K12: 0 | M12: 0 | N12: 0 | O12: 0 | P12: 0 | Q12: 0 | R12: 0
A13: Total Revenue | I13: 292.5 | J13: =SUM(J10:J12) -> 0 | M13: 0 | N13: =SUM(N10:N12) -> 0 | O13: 292.5 | P13: =SUM(P10:P12) -> 0 | Q13: 146250 | R13: =SUM(R10:R12) -> 0
Q14: Enterprise | R14: Enterprise
A15: VARIABLE COSTS | D15: Quantity | E15: Quantity | F15: Units | G15: $/Unit | H15: $/Unit | I15: Total | J15: Total | K15: Share | L15: Share | M15: Landlord | N15: Landlord | O15: Tenant | P15: Tenant | Q15: Total | R15: Total
A16: Production Costs
B17: Custom
C18: Dry Fertilizer Rig | D18: 1 | F18: Acre | G18: 8 | I18: 8 | J18: =E18*H18 -> 0 | K18: 0 | M18: 0 | N18: =J18*L18 -> 0 | O18: 8 | P18: =+J18-N18 -> 0 | Q18: 4000 | R18: =+J18*E$7 -> 0
C19: Custom Combine | D19: 1 | F19: Acre | G19: 30 | I19: 30 | J19: 0 | K19: 0 | M19: 0 | N19: 0 | O19: 30 | P19: 0 | Q19: 15000 | R19: 0
C20: Custom Hauling Sorghum | D20: 45 | F20: CWT | G20: 0.25 | I20: 11.25 | J20: 0 | K20: 0 | M20: 0 | N20: 0 | O20: 11.25 | P20: 0 | Q20: 5625 | R20: 0
B21: Fertilizer
C22: 18-46-0 | D22: 100 | F22: Pound | G22: 0.29 | I22: 29 | J22: 0 | K22: 0 | M22: 0 | N22: 0 | O22: 29 | P22: 0 | Q22: 14500 | R22: 0
C23: 46-0-0 | D23: 80 | F23: Pound | G23: 0.21 | I23: 16.8 | J23: 0 | K23: 0 | M23: 0 | N23: 0 | O23: 16.8 | P23: 0 | Q23: 8400 | R23: 0
B24: Herbicide
C25: Pre-emerge sorghum | D25: 1.5 | F25: Quart | G25: 4 | I25: 6 | J25: 0 | K25: 0 | M25: 0 | N25: 0 | O25: 6 | P25: 0 | Q25: 3000 | R25: 0
B26: Seed
C27: Treated Sorghum Seed | D27: 5 | F27: Pound | G27: 2.1 | I27: 10.5 | J27: 0 | K27: 0 | M27: 0 | N27: 0 | O27: 10.5 | P27: 0 | Q27: 5250 | R27: 0
B28: Miscellaneous
C29: Insurance - Sorghum | D29: 1 | F29: Acre | G29: 11 | I29: 11 | J29: 0 | K29: 0 | M29: 0 | N29: 0 | O29: 11 | P29: 0 | Q29: 5500 | R29: 0
B30: Insecticide
C31: Insecticide - Midge | D31: 1 | F31: Acre | G31: 3 | I31: 3 | J31: 0 | K31: 0 | M31: 0 | N31: 0 | O31: 3 | P31: 0 | Q31: 1500 | R31: 0
D32: 0 | G32: 0 | I32: 0 | J32: 0 | K32: 0 | M32: 0 | N32: 0 | O32: 0 | P32: 0 | Q32: 0 | R32: 0
D33: 0 | G33: 0 | I33: 0 | J33: 0 | K33: 0 | M33: 0 | N33: 0 | O33: 0 | P33: 0 | Q33: 0 | R33: 0
D34: 0 | G34: 0 | I34: 0 | J34: =E34*H34 -> 0 | K34: 0 | M34: 0 | N34: =J34*L34 -> 0 | O34: 0 | P34: =+J34-N34 -> 0 | Q34: 0 | R34: =+J34*E$7 -> 0
B35: Machinery Labor
C36: Tractors/Self-Propelled | D36: 0.51 | F36: Hour | G36: 10 | I36: 5.1 | J36: =E36*H36 -> 0 | K36: 0 | M36: 0 | N36: =J36*L36 -> 0 | O36: 5.1 | P36: =+J36-N36 -> 0 | Q36: 2550 | R36: =+J36*E$7 -> 0
C37: Other Labor | D37: 0 | F37: Hour | G37: 10 | I37: 0 | J37: =E37*H37 -> 0 | K37: 0 | M37: 0 | N37: =J37*L37 -> 0 | O37: 0 | P37: =+J37-N37 -> 0 | Q37: 0 | R37: =+J37*E$7 -> 0
B39: Diesel Fuel
C40: Pickup/General Use Equipment | D40: 1 | F40: Acre | G40: 0 | I40: 0 | J40: =E40*H40 -> 0 | K40: 0 | M40: 0 | N40: =J40*L40 -> 0 | O40: 0 | P40: =+J40-N40 -> 0 | Q40: 0 | R40: =+J40*E$7 -> 0
C41: Tractors/Self-Propelled | D41: 4.95 | F41: Gallon | G41: 2.4 | I41: 11.88 | J41: =E41*H41 -> 0 | K41: 0 | M41: 0 | N41: =J41*L41 -> 0 | O41: 11.88 | P41: =+J41-N41 -> 0 | Q41: 5940 | R41: =+J41*E$7 -> 0
B43: Gasoline
C44: Pickup/General Use Equipment | D44: 1 | F44: Acre | G44: 0 | I44: 0 | J44: =E44*H44 -> 0 | K44: 0 | M44: 0 | N44: =J44*L44 -> 0 | O44: 0 | P44: =+J44-N44 -> 0 | Q44: 0 | R44: =+J44*E$7 -> 0
C45: Tractors/Self-Propelled | D45: 0 | F45: Gallon | G45: 2.15 | I45: 0 | J45: =E45*H45 -> 0 | K45: 0 | M45: 0 | N45: =J45*L45 -> 0 | O45: 0 | P45: =+J45-N45 -> 0 | Q45: 0 | R45: =+J45*E$7 -> 0
B47: Repairs & Maintenance
C48: Pickup/General Use Equipment | D48: 1 | F48: Acre | G48: 0 | I48: 0 | J48: =E48*H48 -> 0 | K48: 0 | M48: 0 | N48: =J48*L48 -> 0 | O48: 0 | P48: =+J48-N48 -> 0 | Q48: 0 | R48: =+J48*E$7 -> 0
C49: Irrigation Equipment | D49: 1 | F49: Acre | G49: 0 | I49: 0 | J49: 0 | K49: 0 | M49: 0 | N49: 0 | O49: 0 | P49: 0 | Q49: 0 | R49: 0
C50: Tractors/Self-Propelled | D50: 1 | F50: Acre | G50: 12.24820894 | I50: 12.24820894 | J50: 0 | K50: 0 | M50: 0 | N50: 0 | O50: 12.24820894 | P50: 0 | Q50: 6124.10447 | R50: 0
C51: Implements | D51: 1 | F51: Acre | G51: 19.64874635 | I51: 19.64874635 | J51: 0 | K51: 0 | M51: 0 | N51: 0 | O51: 19.64874635 | P51: 0 | Q51: 9824.373175 | R51: 0
I52: 0 | J52: 0 | K52: 0 | M52: 0 | N52: 0 | O52: 0 | P52: 0 | Q52: 0 | R52: 0
I53: 0 | J53: 0 | K53: 0 | M53: 0 | N53: 0 | O53: 0 | P53: 0 | Q53: 0 | R53: 0
B54: Interest on Credit Line | G54: 0.0475 | I54: 3.408516721 | J54: =+SUM(J17:J53)/2*H54 -> 0 | M54: 0 | N54: =+SUM(N17:N53)/2*L54 -> 0 | O54: 3.408516721 | P54: =+SUM(P17:P53)/2*L54 -> 0 | Q54: 1704.258361 | R54: =+J54*E$7 -> 0
A55: Total Variable Costs | I55: 177.835472 | J55: =SUM(J18:J54) -> 0 | M55: 0 | N55: =SUM(N18:N54) -> 0 | O55: 177.835472 | P55: =SUM(P18:P54) -> 0 | Q55: 88917.736 | R55: =SUM(R18:R54) -> 0
A56: Planned Returns Above Variable Costs: | I56: 114.664528 | J56: =+J13-J55 -> 0 | M56: 0 | N56: =+N13-N55 -> 0 | O56: 114.664528 | P56: =+P13-P55 -> 0 | Q56: 57332.264 | R56: =+R13-R55 -> 0
B57: Breakeven Price to Cover Variable Costs | G57: 3.951899378 | H57: =IF(E10=0,"n/a",(YVarExp-(YTotExp+YTotRet-J10))/E10) -> n/a | I57: CWT
Q58: Enterprise | R58: Enterprise
A59: FIXED COSTS | D59: Quantity | E59: Quantity | F59: Units | G59: $/Unit | H59: $/Unit | I59: Total | J59: Total | K59: Share | L59: Share | M59: Landlord | N59: Landlord | O59: Tenant | P59: Tenant | Q59: Total | R59: Total
B60: Machinery Depreciation
C61: Tractors/Self-Propelled | D61: 1 | F61: Acre | G61: 13.69816602 | I61: 13.69816602 | J61: =E61*H61 -> 0 | K61: 0 | M61: 0 | N61: =J61*L61 -> 0 | O61: 13.69816602 | P61: =+J61-N61 -> 0 | Q61: 6849.08301 | R61: =+J61*E$7 -> 0
C62: Implements | D62: 1 | F62: Acre | G62: 25.4375848 | I62: 25.4375848 | J62: 0 | K62: 0 | M62: 0 | N62: =J62*L62 -> 0 | O62: 25.4375848 | P62: 0 | Q62: 12718.7924 | R62: 0
B63: Equipment Investment
C64: Tractors/Self-Propelled | D64: 106.22913 | F64: Dollars | G64: 0.06 | I64: 6.373747799 | J64: =E64*H64 -> 0 | K64: 0 | M64: 0 | N64: =J64*L64 -> 0 | O64: 6.373747799 | P64: =+J64-N64 -> 0 | Q64: 3186.8739 | R64: =+J64*E$7 -> 0
C65: Implements | D65: 108.816335 | F65: Dollars | G65: 0.06 | I65: 6.528980098 | J65: 0 | K65: 0 | M65: 0 | N65: =J65*L65 -> 0 | O65: 6.528980098 | P65: 0 | Q65: 3264.490049 | R65: 0
B66: Salaried Labor | D66: 1 | F66: Acre | G66: 0 | I66: 0 | J66: 0 | K66: 0 | M66: 0 | N66: =J66*L66 -> 0 | O66: 0 | P66: =+J66-N66 -> 0 | Q66: 0 | R66: =+J66*E$7 -> 0
B67: Management Fee, Owner/Operator Labor | D67: 1 | F67: Acre | G67: 0 | I67: 0 | J67: 0 | K67: 0 | M67: 0 | N67: 0 | O67: 0 | P67: 0 | Q67: 0 | R67: 0
B68: Allocated Establishment Cost | D68: 1 | F68: Acre | G68: 0 | I68: 0 | J68: 0 | K68: 0 | M68: 0 | N68: 0 | O68: 0 | P68: 0 | Q68: 0 | R68: 0
B69: Dryland Crop Rent | D69: 1 | F69: Acre | G69: 30 | I69: 30 | J69: 0 | K69: 0 | M69: 0 | N69: 0 | O69: 30 | P69: 0 | Q69: 15000 | R69: 0
B70: Property Taxes | D70: 1 | F70: Acre | G70: 0 | I70: 0 | J70: 0 | K70: 0 | M70: 0 | N70: 0 | O70: 0 | P70: 0 | Q70: 0 | R70: 0
B71: Whole Farm Insurance | D71: 1 | F71: Acre | G71: 0 | I71: 0 | J71: 0 | K71: 0 | M71: 0 | N71: 0 | O71: 0 | P71: 0 | Q71: 0 | R71: 0
D72: 1 | G72: 0 | I72: 0 | J72: 0 | K72: 0 | M72: 0 | N72: 0 | O72: 0 | P72: 0 | Q72: 0 | R72: 0
D73: 1 | G73: 0 | I73: 0 | J73: =E73*H73 -> 0 | K73: 0 | M73: 0 | N73: 0 | O73: 0 | P73: 0 | Q73: 0 | R73: 0
A74: Total Fixed Costs | I74: 82.03847872 | J74: =+SUM(J61:J73) -> 0 | M74: 0 | N74: =+SUM(N61:N73) -> 0 | O74: 82.03847872 | P74: =+SUM(P61:P73) -> 0 | Q74: 41019.23936 | R74: =+SUM(R61:R73) -> 0
A75: Total Specified Costs | I75: 259.8739507 | J75: =+J55+J74 -> 0 | M75: 0 | N75: =+N55+N74 -> 0 | O75: 259.8739507 | P75: =+P55+P74 -> 0 | Q75: 129936.9754 | R75: =+R55+R74 -> 0
A77: Returns Above Specified Costs | I77: 32.62604927 | J77: =+J13-J75 -> 0 | M77: 0 | N77: =+N13-N75 -> 0 | O77: 32.62604927 | P77: =+P13-P75 -> 0 | Q77: 16313.02464 | R77: =+R13-R75 -> 0
A79: Breakeven Price to Cover Total Costs | G79: 5.774976683 | H79: =IF(E10=0,"n/a",(YTotExp-(YTotExp+YTotRet-J10))/E10) -> n/a | I79: CWT
D81: Example Breakeven Prices
B82: Example | C82: Example | D82: To Cover | G82: To Cover
B83: Yield | C83: Yield | D83: Variable | G83: Total
B84: Percent | C84: CWT | D84: Costs | G84: Costs
B85: 0.75 | C85: 33.75 | D85: 5.269199171 | G85: 7.69996891
B86: 0.9 | C86: 40.5 | D86: 4.390999309 | G86: 6.416640759
B87: 1 | C87: 45 | D87: 3.951899378 | G87: 5.774976683
B88: 1.1 | C88: 49.5 | D88: 3.592635798 | G88: 5.249978803
B89: 1.25 | C89: 56.25 | D89: 3.161519502 | G89: 4.619981346
D91: Your Breakeven Prices
B92: Your | C92: Your | E92: To Cover | H92: To Cover
B93: Yield | C93: Yield | E93: Variable | H93: Total
B94: Percent | C94: CWT | E94: Costs | H94: Costs
B95: 0.75 | C95: =E10*YPER1 -> 0 | E95: =IF($E$10=0,0,(YVarExp-(YTotExp+YTotRet-J10))/($E$10*YPER1)) -> 0 | H95: =IF($E$10=0,0,(YTotExp-(YTotExp+YTotRet-J10))/($E$10*YPER1)) -> 0
B96: 0.9 | C96: =E10*YPER2 -> 0 | E96: =IF($E$10=0,0,(YVarExp-(YTotExp+YTotRet-J10))/($E$10*YPER2)) -> 0 | H96: =IF($E$10=0,0,(YTotExp-(YTotExp+YTotRet-J10))/($E$10*YPER2)) -> 0
B97: 1 | C97: =+E10 -> 0 | E97: =IF($E$10=0,0,(YVarExp-(YTotExp+YTotRet-J10))/($E$10*YPER3)) -> 0 | H97: =IF($E$10=0,0,(YTotExp-(YTotExp+YTotRet-J10))/($E$10*YPER3)) -> 0
B98: 1.1 | C98: =E10*YPER4 -> 0 | E98: =IF($E$10=0,0,(YVarExp-(YTotExp+YTotRet-J10))/($E$10*YPER4)) -> 0 | H98: =IF($E$10=0,0,(YTotExp-(YTotExp+YTotRet-J10))/($E$10*YPER4)) -> 0
B99: 1.25 | C99: =E10*YPER5 -> 0 | E99: =IF($E$10=0,0,(YVarExp-(YTotExp+YTotRet-J10))/($E$10*YPER5)) -> 0 | H99: =IF($E$10=0,0,(YTotExp-(YTotExp+YTotRet-J10))/($E$10*YPER5)) -> 0
A101: Developed by Jason Johnson, Associate Professor and Extension Economist, Texas A&M AgriLife Extension, 254-968-4144.
A103: Information presented is prepared solely as a general guide and not intended to recognize or predict the costs and returns from any one operation. Brand names are mentioned only as examples and imply no endorsement.

Sheet Wheat
A1: Projections for Planning Purposes Only -- Not to be Used without Updating
A2: 2021 Estimated Costs and Returns per Acre
A3: Hard Red Winter Wheat
A4: Enter your name for this budget in the cell above.
A5: Enter Your Values in the cells highlighed in MAROON.
E6: Your Acres | R6: Your
C7: Crop Acres | D7: 200 | L7: Your | Q7: Enterprise | R7: Enterprise
E8: Your | H8: Your | I8: Cash | J8: Your | K8: Landlord | L8: Landlord | N8: Your | P8: Your | Q8: Total | R8: Total
A9: REVENUE | D9: Quantity | E9: Quantity | F9: Units | G9: $/Unit | H9: $/Unit | I9: Total | J9: Total | K9: Share | L9: Share | M9: Landlord | N9: Landlord | O9: Tenant | P9: Tenant | Q9: (200 acres) | R9: ="(" & E7 & " acres)" -> ( acres)
B10: Wheat | D10: 48 | F10: Bushel | G10: 4.7 | I10: 225.6 | J10: =E10*H10 -> 0 | K10: 0 | M10: 0 | N10: =J10*L10 -> 0 | O10: 225.6 | P10: =+J10-N10 -> 0 | Q10: 45120 | R10: =+J10*E$7 -> 0
D11: 0 | G11: 0 | I11: 0 | J11: 0 | K11: 0 | M11: 0 | N11: 0 | O11: 0 | P11: =+J11-N11 -> 0 | Q11: 0 | R11: 0
D12: 0 | G12: 0 | I12: 0 | J12: 0 | K12: 0 | M12: 0 | N12: 0 | O12: 0 | P12: 0 | Q12: 0 | R12: 0
A13: Total Revenue | I13: 225.6 | J13: =SUM(J10:J12) -> 0 | M13: 0 | N13: =SUM(N10:N12) -> 0 | O13: 225.6 | P13: =SUM(P10:P12) -> 0 | Q13: 45120 | R13: =SUM(R10:R12) -> 0
Q14: Enterprise | R14: Enterprise
A15: VARIABLE COSTS | D15: Quantity | E15: Quantity | F15: Units | G15: $/Unit | H15: $/Unit | I15: Total | J15: Total | K15: Share | L15: Share | M15: Landlord | N15: Landlord | O15: Tenant | P15: Tenant | Q15: Total | R15: Total
A16: Production Costs
B17: Herbicide
C18: Weed Burndown | D18: 32 | F18: Ounce | G18: 0.2 | I18: 6.4 | J18: =E18*H18 -> 0 | K18: 0 | M18: 0 | N18: =J18*L18 -> 0 | O18: 6.4 | P18: =+J18-N18 -> 0 | Q18: 1280 | R18: =+J18*E$7 -> 0
C19: Peak | D19: 1 | F19: Ounce | G19: 15 | I19: 15 | J19: 0 | K19: 0 | M19: 0 | N19: 0 | O19: 15 | P19: 0 | Q19: 3000 | R19: 0
B20: Seed
C21: Wheat Seed | D21: 90 | F21: Pound | G21: 0.25 | I21: 22.5 | J21: 0 | K21: 0 | M21: 0 | N21: 0 | O21: 22.5 | P21: 0 | Q21: 4500 | R21: 0
B22: Custom
C23: Custom Combine | D23: 1 | F23: Acre | G23: 30 | I23: 30 | J23: 0 | K23: 0 | M23: 0 | N23: 0 | O23: 30 | P23: 0 | Q23: 6000 | R23: 0
C24: Custom Hauling Wheat | D24: 45 | F24: Bushel | G24: 0.3 | I24: 13.5 | J24: 0 | K24: 0 | M24: 0 | N24: 0 | O24: 13.5 | P24: 0 | Q24: 2700 | R24: 0
B25: Miscellaneous
C26: Insurance - Wheat 65% | D26: 1 | F26: Acre | G26: 10 | I26: 10 | J26: 0 | K26: 0 | M26: 0 | N26: 0 | O26: 10 | P26: 0 | Q26: 2000 | R26: 0
C27: Insurance - Wheat SCO | D27: 1 | F27: Acre | G27: 2 | I27: 2 | J27: 0 | K27: 0 | M27: 0 | N27: 0 | O27: 2 | P27: 0 | Q27: 400 | R27: 0
B28: Fertilizer
C29: 46-0-0 | D29: 128 | F29: Pound | G29: 0.21 | I29: 26.88 | J29: 0 | K29: 0 | M29: 0 | N29: 0 | O29: 26.88 | P29: 0 | Q29: 5376 | R29: 0
C30: 18-46-0 | D30: 50 | F30: Pound | G30: 0.29 | I30: 14.5 | J30: 0 | K30: 0 | M30: 0 | N30: 0 | O30: 14.5 | P30: 0 | Q30: 2900 | R30: 0
B31: Insecticide
C32: Insecticide Greenbug | D32: 1 | F32: Acre | G32: 4.5 | I32: 4.5 | J32: 0 | K32: 0 | M32: 0 | N32: 0 | O32: 4.5 | P32: 0 | Q32: 900 | R32: 0
B33: Fungicides
C34: Tebuconazole | D34: 4 | F34: Ounce | G34: 0.375 | I34: 1.5 | J34: 0 | K34: 0 | M34: 0 | N34: 0 | O34: 1.5 | P34: 0 | Q34: 300 | R34: 0
D35: 0 | G35: 0 | I35: 0 | J35: 0 | K35: 0 | M35: 0 | N35: 0 | O35: 0 | P35: 0 | Q35: 0 | R35: 0
D36: 0 | G36: 0 | I36: 0 | J36: 0 | K36: 0 | M36: 0 | N36: 0 | O36: 0 | P36: 0 | Q36: 0 | R36: 0
D37: 0 | G37: 0 | I37: 0 | J37: =E37*H37 -> 0 | K37: 0 | M37: 0 | N37: =J37*L37 -> 0 | O37: 0 | P37: =+J37-N37 -> 0 | Q37: 0 | R37: =+J37*E$7 -> 0
B38: Machinery Labor
C39: Tractors/Self-Propelled | D39: 0.86 | F39: Hour | G39: 10 | I39: 8.6 | J39: =E39*H39 -> 0 | K39: 0 | M39: 0 | N39: =J39*L39 -> 0 | O39: 8.6 | P39: =+J39-N39 -> 0 | Q39: 1720 | R39: =+J39*E$7 -> 0
C40: Other Labor | D40: 0 | F40: Hour | G40: 10 | I40: 0 | J40: =E40*H40 -> 0 | K40: 0 | M40: 0 | N40: =J40*L40 -> 0 | O40: 0 | P40: =+J40-N40 -> 0 | Q40: 0 | R40: =+J40*E$7 -> 0
B42: Diesel Fuel
C43: Pickup/General Use Equipment | D43: 1 | F43: Acre | G43: 0 | I43: 0 | J43: =E43*H43 -> 0 | K43: 0 | M43: 0 | N43: =J43*L43 -> 0 | O43: 0 | P43: =+J43-N43 -> 0 | Q43: 0 | R43: =+J43*E$7 -> 0
C44: Tractors/Self-Propelled | D44: 5.64 | F44: Gallon | G44: 2.4 | I44: 13.536 | J44: =E44*H44 -> 0 | K44: 0 | M44: 0 | N44: =J44*L44 -> 0 | O44: 13.536 | P44: =+J44-N44 -> 0 | Q44: 2707.2 | R44: =+J44*E$7 -> 0
B46: Gasoline
C47: Pickup/General Use Equipment | D47: 1 | F47: Acre | G47: 0 | I47: 0 | J47: =E47*H47 -> 0 | K47: 0 | M47: 0 | N47: =J47*L47 -> 0 | O47: 0 | P47: =+J47-N47 -> 0 | Q47: 0 | R47: =+J47*E$7 -> 0
C48: Tractors/Self-Propelled | D48: 0 | F48: Gallon | G48: 2.15 | I48: 0 | J48: =E48*H48 -> 0 | K48: 0 | M48: 0 | N48: =J48*L48 -> 0 | O48: 0 | P48: =+J48-N48 -> 0 | Q48: 0 | R48: =+J48*E$7 -> 0
B50: Repairs & Maintenance
C51: Pickup/General Use Equipment | D51: 1 | F51: Acre | G51: 0 | I51: 0 | J51: =E51*H51 -> 0 | K51: 0 | M51: 0 | N51: =J51*L51 -> 0 | O51: 0 | P51: =+J51-N51 -> 0 | Q51: 0 | R51: =+J51*E$7 -> 0
C52: Irrigation Equipment | D52: 1 | F52: Acre | G52: 0 | I52: 0 | J52: 0 | K52: 0 | M52: 0 | N52: 0 | O52: 0 | P52: 0 | Q52: 0 | R52: 0
C53: Tractors/Self-Propelled | D53: 1 | F53: Acre | G53: 10.66267249 | I53: 10.66267249 | J53: 0 | K53: 0 | M53: 0 | N53: 0 | O53: 10.66267249 | P53: 0 | Q53: 2132.534498 | R53: 0
C54: Implements | D54: 1 | F54: Acre | G54: 15.67949398 | I54: 15.67949398 | J54: 0 | K54: 0 | M54: 0 | N54: 0 | O54: 15.67949398 | P54: 0 | Q54: 3135.898795 | R54: 0
I55: 0 | J55: 0 | K55: 0 | M55: 0 | N55: 0 | O55: 0 | P55: 0 | Q55: 0 | R55: 0
I56: 0 | J56: 0 | K56: 0 | M56: 0 | N56: 0 | O56: 0 | P56: 0 | Q56: 0 | R56: 0
B57: Interest on Credit Line | G57: 0.0475 | I57: 1.688241222 | J57: =+SUM(J17:J56)/2*H57 -> 0 | M57: 0 | N57: =+SUM(N17:N56)/2*L57 -> 0 | O57: 1.688241222 | P57: =+SUM(P17:P56)/2*L57 -> 0 | Q57: 337.6482444 | R57: =+J57*E$7 -> 0
A58: Total Variable Costs | I58: 196.9464077 | J58: =SUM(J18:J57) -> 0 | M58: 0 | N58: =SUM(N18:N57) -> 0 | O58: 196.9464077 | P58: =SUM(P18:P57) -> 0 | Q58: 39389.28154 | R58: =SUM(R18:R57) -> 0
A59: Planned Returns Above Variable Costs: | I59: 28.65359231 | J59: =+J13-J58 -> 0 | M59: 0 | N59: =+N13-N58 -> 0 | O59: 28.65359231 | P59: =+P13-P58 -> 0 | Q59: 5730.718462 | R59: =+R13-R58 -> 0
B60: Breakeven Price to Cover Variable Costs | G60: 4.10305016 | H60: =IF(E10=0,"n/a",(YVarExp-(YTotExp+YTotRet-J10))/E10) -> n/a | I60: Bushel
Q61: Enterprise | R61: Enterprise
A62: FIXED COSTS | D62: Quantity | E62: Quantity | F62: Units | G62: $/Unit | H62: $/Unit | I62: Total | J62: Total | K62: Share | L62: Share | M62: Landlord | N62: Landlord | O62: Tenant | P62: Tenant | Q62: Total | R62: Total
B63: Machinery Depreciation
C64: Tractors/Self-Propelled | D64: 1 | F64: Acre | G64: 11.01809491 | I64: 11.01809491 | J64: =E64*H64 -> 0 | K64: 0 | M64: 0 | N64: =J64*L64 -> 0 | O64: 11.01809491 | P64: =+J64-N64 -> 0 | Q64: 2203.618981 | R64: =+J64*E$7 -> 0
C65: Implements | D65: 1 | F65: Acre | G65: 18.88071389 | I65: 18.88071389 | J65: 0 | K65: 0 | M65: 0 | N65: =J65*L65 -> 0 | O65: 18.88071389 | P65: 0 | Q65: 3776.142777 | R65: 0
B66: Equipment Investment
C67: Tractors/Self-Propelled | D67: 85.83451354 | F67: Dollars | G67: 0.06 | I67: 5.150070812 | J67: =E67*H67 -> 0 | K67: 0 | M67: 0 | N67: =J67*L67 -> 0 | O67: 5.150070812 | P67: =+J67-N67 -> 0 | Q67: 1030.014162 | R67: =+J67*E$7 -> 0
C68: Implements | D68: 80.83465211 | F68: Dollars | G68: 0.06 | I68: 4.850079127 | J68: 0 | K68: 0 | M68: 0 | N68: =J68*L68 -> 0 | O68: 4.850079127 | P68: 0 | Q68: 970.0158253 | R68: 0
B69: Salaried Labor | D69: 1 | F69: Acre | G69: 0 | I69: 0 | J69: 0 | K69: 0 | M69: 0 | N69: =J69*L69 -> 0 | O69: 0 | P69: =+J69-N69 -> 0 | Q69: 0 | R69: =+J69*E$7 -> 0
B70: Management Fee, Owner/Operator Labor | D70: 1 | F70: Acre | G70: 0 | I70: 0 | J70: 0 | K70: 0 | M70: 0 | N70: 0 | O70: 0 | P70: 0 | Q70: 0 | R70: 0
B71: Allocated Establishment Cost | D71: 1 | F71: Acre | G71: 0 | I71: 0 | J71: 0 | K71: 0 | M71: 0 | N71: 0 | O71: 0 | P71: 0 | Q71: 0 | R71: 0
B72: Dryland Crop Rent | D72: 1 | F72: Acre | G72: 30 | I72: 30 | J72: 0 | K72: 0 | M72: 0 | N72: 0 | O72: 30 | P72: 0 | Q72: 6000 | R72: 0
B73: Property Taxes | D73: 1 | F73: Acre | G73: 0 | I73: 0 | J73: 0 | K73: 0 | M73: 0 | N73: 0 | O73: 0 | P73: 0 | Q73: 0 | R73: 0
B74: Whole Farm Insurance | D74: 1 | F74: Acre | G74: 0 | I74: 0 | J74: 0 | K74: 0 | M74: 0 | N74: 0 | O74: 0 | P74: 0 | Q74: 0 | R74: 0
D75: 1 | G75: 0 | I75: 0 | J75: 0 | K75: 0 | M75: 0 | N75: 0 | O75: 0 | P75: 0 | Q75: 0 | R75: 0
D76: 1 | G76: 0 | I76: 0 | J76: =E76*H76 -> 0 | K76: 0 | M76: 0 | N76: 0 | O76: 0 | P76: 0 | Q76: 0 | R76: 0
A77: Total Fixed Costs | I77: 69.89895873 | J77: =+SUM(J64:J76) -> 0 | M77: 0 | N77: =+SUM(N64:N76) -> 0 | O77: 69.89895873 | P77: =+SUM(P64:P76) -> 0 | Q77: 13979.79175 | R77: =+SUM(R64:R76) -> 0
A78: Total Specified Costs | I78: 266.8453664 | J78: =+J58+J77 -> 0 | M78: 0 | N78: =+N58+N77 -> 0 | O78: 266.8453664 | P78: =+P58+P77 -> 0 | Q78: 53369.07328 | R78: =+R58+R77 -> 0
A80: Returns Above Specified Costs | I80: -41.24536642 | J80: =+J13-J78 -> 0 | M80: 0 | N80: =+N13-N78 -> 0 | O80: -41.24536642 | P80: =+P13-P78 -> 0 | Q80: -8249.073284 | R80: =+R13-R78 -> 0
A82: Breakeven Price to Cover Total Costs | G82: 5.559278467 | H82: =IF(E10=0,"n/a",(YTotExp-(YTotExp+YTotRet-J10))/E10) -> n/a | I82: Bushel
D84: Example Breakeven Prices
B85: Example | C85: Example | D85: To Cover | G85: To Cover
B86: Yield | C86: Yield | D86: Variable | G86: Total
B87: Percent | C87: Bushel | D87: Costs | G87: Costs
B88: 0.75 | C88: 36 | D88: 5.470733547 | G88: 7.412371289
B89: 0.9 | C89: 43.2 | D89: 4.558944622 | G89: 6.176976075
B90: 1 | C90: 48 | D90: 4.10305016 | G90: 5.559278467
B91: 1.1 | C91: 52.8 | D91: 3.7300456 | G91: 5.053889516
B92: 1.25 | C92: 60 | D92: 3.282440128 | G92: 4.447422774
D94: Your Breakeven Prices
B95: Your | C95: Your | E95: To Cover | H95: To Cover
B96: Yield | C96: Yield | E96: Variable | H96: Total
B97: Percent | C97: Bushel | E97: Costs | H97: Costs
B98: 0.75 | C98: =E10*YPER1 -> 0 | E98: =IF($E$10=0,0,(YVarExp-(YTotExp+YTotRet-J10))/($E$10*YPER1)) -> 0 | H98: =IF($E$10=0,0,(YTotExp-(YTotExp+YTotRet-J10))/($E$10*YPER1)) -> 0
B99: 0.9 | C99: =E10*YPER2 -> 0 | E99: =IF($E$10=0,0,(YVarExp-(YTotExp+YTotRet-J10))/($E$10*YPER2)) -> 0 | H99: =IF($E$10=0,0,(YTotExp-(YTotExp+YTotRet-J10))/($E$10*YPER2)) -> 0
B100: 1 | C100: =+E10 -> 0 | E100: =IF($E$10=0,0,(YVarExp-(YTotExp+YTotRet-J10))/($E$10*YPER3)) -> 0 | H100: =IF($E$10=0,0,(YTotExp-(YTotExp+YTotRet-J10))/($E$10*YPER3)) -> 0
B101: 1.1 | C101: =E10*YPER4 -> 0 | E101: =IF($E$10=0,0,(YVarExp-(YTotExp+YTotRet-J10))/($E$10*YPER4)) -> 0 | H101: =IF($E$10=0,0,(YTotExp-(YTotExp+YTotRet-J10))/($E$10*YPER4)) -> 0
B102: 1.25 | C102: =E10*YPER5 -> 0 | E102: =IF($E$10=0,0,(YVarExp-(YTotExp+YTotRet-J10))/($E$10*YPER5)) -> 0 | H102: =IF($E$10=0,0,(YTotExp-(YTotExp+YTotRet-J10))/($E$10*YPER5)) -> 0
A104: Developed by Jason Johnson, Associate Professor and Extension Economist, Texas A&M AgriLife Extension, 254-968-4144.
A106: Information presented is prepared solely as a general guide and not intended to recognize or predict the costs and returns from any one operation. Brand names are mentioned only as examples and imply no endorsement.

Sheet Canola
A1: Projections for Planning Purposes Only -- Not to be Used without Updating
A2: 2021 Estimated Costs and Returns per Acre
A3: Canola
A4: Enter your name for this budget in the cell above.
A5: Enter Your Values in the cells highlighed in MAROON.
E6: Your Acres | R6: Your
C7: Crop Acres | D7: 200 | L7: Your | Q7: Enterprise | R7: Enterprise
E8: Your | H8: Your | I8: Cash | J8: Your | K8: Landlord | L8: Landlord | N8: Your | P8: Your | Q8: Total | R8: Total
A9: REVENUE | D9: Quantity | E9: Quantity | F9: Units | G9: $/Unit | H9: $/Unit | I9: Total | J9: Total | K9: Share | L9: Share | M9: Landlord | N9: Landlord | O9: Tenant | P9: Tenant | Q9: (200 acres) | R9: ="(" & E7 & " acres)" -> ( acres)
B10: Canola | D10: 13 | F10: CWT | G10: 16 | I10: 208 | J10: =E10*H10 -> 0 | K10: 0 | M10: 0 | N10: =J10*L10 -> 0 | O10: 208 | P10: =+J10-N10 -> 0 | Q10: 41600 | R10: =+J10*E$7 -> 0
D11: 0 | G11: 0 | I11: 0 | J11: 0 | K11: 0 | M11: 0 | N11: 0 | O11: 0 | P11: =+J11-N11 -> 0 | Q11: 0 | R11: 0
D12: 0 | G12: 0 | I12: 0 | J12: 0 | K12: 0 | M12: 0 | N12: 0 | O12: 0 | P12: 0 | Q12: 0 | R12: 0
A13: Total Revenue | I13: 208 | J13: =SUM(J10:J12) -> 0 | M13: 0 | N13: =SUM(N10:N12) -> 0 | O13: 208 | P13: =SUM(P10:P12) -> 0 | Q13: 41600 | R13: =SUM(R10:R12) -> 0
Q14: Enterprise | R14: Enterprise
A15: VARIABLE COSTS | D15: Quantity | E15: Quantity | F15: Units | G15: $/Unit | H15: $/Unit | I15: Total | J15: Total | K15: Share | L15: Share | M15: Landlord | N15: Landlord | O15: Tenant | P15: Tenant | Q15: Total | R15: Total
A16: Production Costs
B17: Seed
C18: Canola Seed | D18: 3 | F18: Pound | G18: 5.8 | I18: 17.4 | J18: =E18*H18 -> 0 | K18: 0 | M18: 0 | N18: =J18*L18 -> 0 | O18: 17.4 | P18: =+J18-N18 -> 0 | Q18: 3480 | R18: =+J18*E$7 -> 0
C19: Helix Xtra Seed Treatment | D19: 1 | F19: Acre | G19: 0.3075356269 | I19: 0.3075356269 | J19: 0 | K19: 0 | M19: 0 | N19: 0 | O19: 0.3075356269 | P19: 0 | Q19: 61.50712537 | R19: 0
B20: Fertilizer
C21: 46-0-0 | D21: 128 | F21: Pound | G21: 0.21 | I21: 26.88 | J21: 0 | K21: 0 | M21: 0 | N21: 0 | O21: 26.88 | P21: 0 | Q21: 5376 | R21: 0
C22: 18-46-0 | D22: 87 | F22: Pound | G22: 0.29 | I22: 25.23 | J22: 0 | K22: 0 | M22: 0 | N22: 0 | O22: 25.23 | P22: 0 | Q22: 5046 | R22: 0
C23: Sulfur | D23: 15 | F23: Pound | G23: 0.4 | I23: 6 | J23: 0 | K23: 0 | M23: 0 | N23: 0 | O23: 6 | P23: 0 | Q23: 1200 | R23: 0
B24: Custom
C25: Custom Combine | D25: 1 | F25: Acre | G25: 30 | I25: 30 | J25: 0 | K25: 0 | M25: 0 | N25: 0 | O25: 30 | P25: 0 | Q25: 6000 | R25: 0
C26: Custom Hauling Canola | D26: 15 | F26: CWT | G26: 0.5 | I26: 7.5 | J26: 0 | K26: 0 | M26: 0 | N26: 0 | O26: 7.5 | P26: 0 | Q26: 1500 | R26: 0
B27: Herbicide
C28: Trifluralin | D28: 1.5 | F28: Pint | G28: 2.81 | I28: 4.215 | J28: 0 | K28: 0 | M28: 0 | N28: 0 | O28: 4.215 | P28: 0 | Q28: 843 | R28: 0
C29: Glyphosate | D29: 2 | F29: Pint | G29: 3 | I29: 6 | J29: 0 | K29: 0 | M29: 0 | N29: 0 | O29: 6 | P29: 0 | Q29: 1200 | R29: 0
B30: Insecticide
C31: Insecticide Aphids | D31: 1 | F31: Acre | G31: 4.5 | I31: 4.5 | J31: 0 | K31: 0 | M31: 0 | N31: 0 | O31: 4.5 | P31: 0 | Q31: 900 | R31: 0
D32: 0 | G32: 0 | I32: 0 | J32: 0 | K32: 0 | M32: 0 | N32: 0 | O32: 0 | P32: 0 | Q32: 0 | R32: 0
D33: 0 | G33: 0 | I33: 0 | J33: 0 | K33: 0 | M33: 0 | N33: 0 | O33: 0 | P33: 0 | Q33: 0 | R33: 0
D34: 0 | G34: 0 | I34: 0 | J34: =E34*H34 -> 0 | K34: 0 | M34: 0 | N34: =J34*L34 -> 0 | O34: 0 | P34: =+J34-N34 -> 0 | Q34: 0 | R34: =+J34*E$7 -> 0
B35: Machinery Labor
C36: Tractors/Self-Propelled | D36: 0.91 | F36: Hour | G36: 10 | I36: 9.1 | J36: =E36*H36 -> 0 | K36: 0 | M36: 0 | N36: =J36*L36 -> 0 | O36: 9.1 | P36: =+J36-N36 -> 0 | Q36: 1820 | R36: =+J36*E$7 -> 0
C37: Other Labor | D37: 0 | F37: Hour | G37: 10 | I37: 0 | J37: =E37*H37 -> 0 | K37: 0 | M37: 0 | N37: =J37*L37 -> 0 | O37: 0 | P37: =+J37-N37 -> 0 | Q37: 0 | R37: =+J37*E$7 -> 0
B39: Diesel Fuel
C40: Pickup/General Use Equipment | D40: 1 | F40: Acre | G40: 0 | I40: 0 | J40: =E40*H40 -> 0 | K40: 0 | M40: 0 | N40: =J40*L40 -> 0 | O40: 0 | P40: =+J40-N40 -> 0 | Q40: 0 | R40: =+J40*E$7 -> 0
C41: Tractors/Self-Propelled | D41: 5.92 | F41: Gallon | G41: 2.4 | I41: 14.208 | J41: =E41*H41 -> 0 | K41: 0 | M41: 0 | N41: =J41*L41 -> 0 | O41: 14.208 | P41: =+J41-N41 -> 0 | Q41: 2841.6 | R41: =+J41*E$7 -> 0
B43: Gasoline
C44: Pickup/General Use Equipment | D44: 1 | F44: Acre | G44: 0 | I44: 0 | J44: =E44*H44 -> 0 | K44: 0 | M44: 0 | N44: =J44*L44 -> 0 | O44: 0 | P44: =+J44-N44 -> 0 | Q44: 0 | R44: =+J44*E$7 -> 0
C45: Tractors/Self-Propelled | D45: 0 | F45: Gallon | G45: 2.15 | I45: 0 | J45: =E45*H45 -> 0 | K45: 0 | M45: 0 | N45: =J45*L45 -> 0 | O45: 0 | P45: =+J45-N45 -> 0 | Q45: 0 | R45: =+J45*E$7 -> 0
B47: Repairs & Maintenance
C48: Pickup/General Use Equipment | D48: 1 | F48: Acre | G48: 0 | I48: 0 | J48: =E48*H48 -> 0 | K48: 0 | M48: 0 | N48: =J48*L48 -> 0 | O48: 0 | P48: =+J48-N48 -> 0 | Q48: 0 | R48: =+J48*E$7 -> 0
C49: Irrigation Equipment | D49: 1 | F49: Acre | G49: 0 | I49: 0 | J49: 0 | K49: 0 | M49: 0 | N49: 0 | O49: 0 | P49: 0 | Q49: 0 | R49: 0
C50: Tractors/Self-Propelled | D50: 1 | F50: Acre | G50: 11.07414613 | I50: 11.07414613 | J50: 0 | K50: 0 | M50: 0 | N50: 0 | O50: 11.07414613 | P50: 0 | Q50: 2214.829225 | R50: 0
C51: Implements | D51: 1 | F51: Acre | G51: 15.69352433 | I51: 15.69352433 | J51: 0 | K51: 0 | M51: 0 | N51: 0 | O51: 15.69352433 | P51: 0 | Q51: 3138.704866 | R51: 0
I52: 0 | J52: 0 | K52: 0 | M52: 0 | N52: 0 | O52: 0 | P52: 0 | Q52: 0 | R52: 0
I53: 0 | J53: 0 | K53: 0 | M53: 0 | N53: 0 | O53: 0 | P53: 0 | Q53: 0 | R53: 0
B54: Interest on Credit Line | G54: 0.0475 | I54: 3.639339017 | J54: =+SUM(J17:J53)/2*H54 -> 0 | M54: 0 | N54: =+SUM(N17:N53)/2*L54 -> 0 | O54: 3.639339017 | P54: =+SUM(P17:P53)/2*L54 -> 0 | Q54: 727.8678035 | R54: =+J54*E$7 -> 0
A55: Total Variable Costs | I55: 181.7475451 | J55: =SUM(J18:J54) -> 0 | M55: 0 | N55: =SUM(N18:N54) -> 0 | O55: 181.7475451 | P55: =SUM(P18:P54) -> 0 | Q55: 36349.50902 | R55: =SUM(R18:R54) -> 0
A56: Planned Returns Above Variable Costs: | I56: 26.2524549 | J56: =+J13-J55 -> 0 | M56: 0 | N56: =+N13-N55 -> 0 | O56: 26.2524549 | P56: =+P13-P55 -> 0 | Q56: 5250.49098 | R56: =+R13-R55 -> 0
B57: Breakeven Price to Cover Variable Costs | G57: 13.98058039 | H57: =IF(E10=0,"n/a",(YVarExp-(YTotExp+YTotRet-J10))/E10) -> n/a | I57: CWT
Q58: Enterprise | R58: Enterprise
A59: FIXED COSTS | D59: Quantity | E59: Quantity | F59: Units | G59: $/Unit | H59: $/Unit | I59: Total | J59: Total | K59: Share | L59: Share | M59: Landlord | N59: Landlord | O59: Tenant | P59: Tenant | Q59: Total | R59: Total
B60: Machinery Depreciation
C61: Tractors/Self-Propelled | D61: 1 | F61: Acre | G61: 11.44328433 | I61: 11.44328433 | J61: =E61*H61 -> 0 | K61: 0 | M61: 0 | N61: =J61*L61 -> 0 | O61: 11.44328433 | P61: =+J61-N61 -> 0 | Q61: 2288.656866 | R61: =+J61*E$7 -> 0
C62: Implements | D62: 1 | F62: Acre | G62: 18.89150646 | I62: 18.89150646 | J62: 0 | K62: 0 | M62: 0 | N62: =J62*L62 -> 0 | O62: 18.89150646 | P62: 0 | Q62: 3778.301293 | R62: 0
B63: Equipment Investment
C64: Tractors/Self-Propelled | D64: 89.14687632 | F64: Dollars | G64: 0.06 | I64: 5.348812579 | J64: =E64*H64 -> 0 | K64: 0 | M64: 0 | N64: =J64*L64 -> 0 | O64: 5.348812579 | P64: =+J64-N64 -> 0 | Q64: 1069.762516 | R64: =+J64*E$7 -> 0
C65: Implements | D65: 80.94797418 | F65: Dollars | G65: 0.06 | I65: 4.856878451 | J65: 0 | K65: 0 | M65: 0 | N65: =J65*L65 -> 0 | O65: 4.856878451 | P65: 0 | Q65: 971.3756901 | R65: 0
B66: Salaried Labor | D66: 1 | F66: Acre | G66: 0 | I66: 0 | J66: 0 | K66: 0 | M66: 0 | N66: =J66*L66 -> 0 | O66: 0 | P66: =+J66-N66 -> 0 | Q66: 0 | R66: =+J66*E$7 -> 0
B67: Management Fee, Owner/Operator Labor | D67: 1 | F67: Acre | G67: 0 | I67: 0 | J67: 0 | K67: 0 | M67: 0 | N67: 0 | O67: 0 | P67: 0 | Q67: 0 | R67: 0
B68: Allocated Establishment Cost | D68: 1 | F68: Acre | G68: 0 | I68: 0 | J68: 0 | K68: 0 | M68: 0 | N68: 0 | O68: 0 | P68: 0 | Q68: 0 | R68: 0
B69: Dryland Crop Rent | D69: 1 | F69: Acre | G69: 30 | I69: 30 | J69: 0 | K69: 0 | M69: 0 | N69: 0 | O69: 30 | P69: 0 | Q69: 6000 | R69: 0
B70: Property Taxes | D70: 1 | F70: Acre | G70: 0 | I70: 0 | J70: 0 | K70: 0 | M70: 0 | N70: 0 | O70: 0 | P70: 0 | Q70: 0 | R70: 0
B71: Whole Farm Insurance | D71: 1 | F71: Acre | G71: 0 | I71: 0 | J71: 0 | K71: 0 | M71: 0 | N71: 0 | O71: 0 | P71: 0 | Q71: 0 | R71: 0
D72: 1 | G72: 0 | I72: 0 | J72: 0 | K72: 0 | M72: 0 | N72: 0 | O72: 0 | P72: 0 | Q72: 0 | R72: 0
D73: 1 | G73: 0 | I73: 0 | J73: =E73*H73 -> 0 | K73: 0 | M73: 0 | N73: 0 | O73: 0 | P73: 0 | Q73: 0 | R73: 0
A74: Total Fixed Costs | I74: 70.54048183 | J74: =+SUM(J61:J73) -> 0 | M74: 0 | N74: =+SUM(N61:N73) -> 0 | O74: 70.54048183 | P74: =+SUM(P61:P73) -> 0 | Q74: 14108.09637 | R74: =+SUM(R61:R73) -> 0
A75: Total Specified Costs | I75: 252.2880269 | J75: =+J55+J74 -> 0 | M75: 0 | N75: =+N55+N74 -> 0 | O75: 252.2880269 | P75: =+P55+P74 -> 0 | Q75: 50457.60539 | R75: =+R55+R74 -> 0
A77: Returns Above Specified Costs | I77: -44.28802693 | J77: =+J13-J75 -> 0 | M77: 0 | N77: =+N13-N75 -> 0 | O77: -44.28802693 | P77: =+P13-P75 -> 0 | Q77: -8857.605385 | R77: =+R13-R75 -> 0
A79: Breakeven Price to Cover Total Costs | G79: 19.4067713 | H79: =IF(E10=0,"n/a",(YTotExp-(YTotExp+YTotRet-J10))/E10) -> n/a | I79: CWT
D81: Example Breakeven Prices
B82: Example | C82: Example | D82: To Cover | G82: To Cover
B83: Yield | C83: Yield | D83: Variable | G83: Total
B84: Percent | C84: CWT | D84: Costs | G84: Costs
B85: 0.75 | C85: 9.75 | D85: 18.64077386 | G85: 25.87569507
B86: 0.9 | C86: 11.7 | D86: 15.53397821 | G86: 21.56307922
B87: 1 | C87: 13 | D87: 13.98058039 | G87: 19.4067713
B88: 1.1 | C88: 14.3 | D88: 12.70961854 | G88: 17.64251937
B89: 1.25 | C89: 16.25 | D89: 11.18446431 | G89: 15.52541704
D91: Your Breakeven Prices
B92: Your | C92: Your | E92: To Cover | H92: To Cover
B93: Yield | C93: Yield | E93: Variable | H93: Total
B94: Percent | C94: CWT | E94: Costs | H94: Costs
B95: 0.75 | C95: =E10*YPER1 -> 0 | E95: =IF($E$10=0,0,(YVarExp-(YTotExp+YTotRet-J10))/($E$10*YPER1)) -> 0 | H95: =IF($E$10=0,0,(YTotExp-(YTotExp+YTotRet-J10))/($E$10*YPER1)) -> 0
B96: 0.9 | C96: =E10*YPER2 -> 0 | E96: =IF($E$10=0,0,(YVarExp-(YTotExp+YTotRet-J10))/($E$10*YPER2)) -> 0 | H96: =IF($E$10=0,0,(YTotExp-(YTotExp+YTotRet-J10))/($E$10*YPER2)) -> 0
B97: 1 | C97: =+E10 -> 0 | E97: =IF($E$10=0,0,(YVarExp-(YTotExp+YTotRet-J10))/($E$10*YPER3)) -> 0 | H97: =IF($E$10=0,0,(YTotExp-(YTotExp+YTotRet-J10))/($E$10*YPER3)) -> 0
B98: 1.1 | C98: =E10*YPER4 -> 0 | E98: =IF($E$10=0,0,(YVarExp-(YTotExp+YTotRet-J10))/($E$10*YPER4)) -> 0 | H98: =IF($E$10=0,0,(YTotExp-(YTotExp+YTotRet-J10))/($E$10*YPER4)) -> 0
B99: 1.25 | C99: =E10*YPER5 -> 0 | E99: =IF($E$10=0,0,(YVarExp-(YTotExp+YTotRet-J10))/($E$10*YPER5)) -> 0 | H99: =IF($E$10=0,0,(YTotExp-(YTotExp+YTotRet-J10))/($E$10*YPER5)) -> 0
A101: Developed by Jason Johnson, Associate Professor and Extension Economist, Texas A&M AgriLife Extension, 254-968-4144.
A103: Information presented is prepared solely as a general guide and not intended to recognize or predict the costs and returns from any one operation. Brand names are mentioned only as examples and imply no endorsement.

Sheet Barley
A1: Projections for Planning Purposes Only -- Not to be Used without Updating
A2: 2021 Estimated Costs and Returns per Acre
A3: Malting Barley
A4: Enter your name for this budget in the cell above.
A5: Enter Your Values in the cells highlighed in MAROON.
E6: Your Acres | R6: Your
C7: Crop Acres | D7: 200 | L7: Your | Q7: Enterprise | R7: Enterprise
E8: Your | H8: Your | I8: Cash | J8: Your | K8: Landlord | L8: Landlord | N8: Your | P8: Your | Q8: Total | R8: Total
A9: REVENUE | D9: Quantity | E9: Quantity | F9: Units | G9: $/Unit | H9: $/Unit | I9: Total | J9: Total | K9: Share | L9: Share | M9: Landlord | N9: Landlord | O9: Tenant | P9: Tenant | Q9: (200 acres) | R9: ="(" & E7 & " acres)" -> ( acres)
B10: Malting Barley | D10: 60 | F10: Bushel | G10: 4 | I10: 240 | J10: =E10*H10 -> 0 | K10: 0 | M10: 0 | N10: =J10*L10 -> 0 | O10: 240 | P10: =+J10-N10 -> 0 | Q10: 48000 | R10: =+J10*E$7 -> 0
D11: 0 | G11: 0 | I11: 0 | J11: 0 | K11: 0 | M11: 0 | N11: 0 | O11: 0 | P11: =+J11-N11 -> 0 | Q11: 0 | R11: 0
D12: 0 | G12: 0 | I12: 0 | J12: 0 | K12: 0 | M12: 0 | N12: 0 | O12: 0 | P12: 0 | Q12: 0 | R12: 0
A13: Total Revenue | I13: 240 | J13: =SUM(J10:J12) -> 0 | M13: 0 | N13: =SUM(N10:N12) -> 0 | O13: 240 | P13: =SUM(P10:P12) -> 0 | Q13: 48000 | R13: =SUM(R10:R12) -> 0
Q14: Enterprise | R14: Enterprise
A15: VARIABLE COSTS | D15: Quantity | E15: Quantity | F15: Units | G15: $/Unit | H15: $/Unit | I15: Total | J15: Total | K15: Share | L15: Share | M15: Landlord | N15: Landlord | O15: Tenant | P15: Tenant | Q15: Total | R15: Total
A16: Production Costs
B17: Fertilizer
C18: 46-0-0 | D18: 106 | F18: Pound | G18: 0.21 | I18: 22.26 | J18: =E18*H18 -> 0 | K18: 0 | M18: 0 | N18: =J18*L18 -> 0 | O18: 22.26 | P18: =+J18-N18 -> 0 | Q18: 4452 | R18: =+J18*E$7 -> 0
C19: 18-46-0 | D19: 50 | F19: Pound | G19: 0.29 | I19: 14.5 | J19: 0 | K19: 0 | M19: 0 | N19: 0 | O19: 14.5 | P19: 0 | Q19: 2900 | R19: 0
B20: Seed
C21: Barley Seed | D21: 50 | F21: Pound | G21: 0.35 | I21: 17.5 | J21: 0 | K21: 0 | M21: 0 | N21: 0 | O21: 17.5 | P21: 0 | Q21: 3500 | R21: 0
B22: Herbicide
C23: Weed Burndown | D23: 32 | F23: Ounce | G23: 0.2 | I23: 6.4 | J23: 0 | K23: 0 | M23: 0 | N23: 0 | O23: 6.4 | P23: 0 | Q23: 1280 | R23: 0
C24: Peak | D24: 0.45 | F24: Ounce | G24: 15 | I24: 6.75 | J24: 0 | K24: 0 | M24: 0 | N24: 0 | O24: 6.75 | P24: 0 | Q24: 1350 | R24: 0
B25: Miscellaneous
C26: Insurance - Barley 65% | D26: 1 | F26: Acre | G26: 7 | I26: 7 | J26: 0 | K26: 0 | M26: 0 | N26: 0 | O26: 7 | P26: 0 | Q26: 1400 | R26: 0
B27: Insecticide
C28: Insecticide Greenbug | D28: 1 | F28: Acre | G28: 4.5 | I28: 4.5 | J28: 0 | K28: 0 | M28: 0 | N28: 0 | O28: 4.5 | P28: 0 | Q28: 900 | R28: 0
B29: Custom
C30: Custom Combine | D30: 1 | F30: Acre | G30: 30 | I30: 30 | J30: 0 | K30: 0 | M30: 0 | N30: 0 | O30: 30 | P30: 0 | Q30: 6000 | R30: 0
C31: Custom Hauling Barley | D31: 60 | F31: Bushel | G31: 0.24 | I31: 14.4 | J31: 0 | K31: 0 | M31: 0 | N31: 0 | O31: 14.4 | P31: 0 | Q31: 2880 | R31: 0
D32: 0 | G32: 0 | I32: 0 | J32: 0 | K32: 0 | M32: 0 | N32: 0 | O32: 0 | P32: 0 | Q32: 0 | R32: 0
D33: 0 | G33: 0 | I33: 0 | J33: 0 | K33: 0 | M33: 0 | N33: 0 | O33: 0 | P33: 0 | Q33: 0 | R33: 0
D34: 0 | G34: 0 | I34: 0 | J34: =E34*H34 -> 0 | K34: 0 | M34: 0 | N34: =J34*L34 -> 0 | O34: 0 | P34: =+J34-N34 -> 0 | Q34: 0 | R34: =+J34*E$7 -> 0
B35: Machinery Labor
C36: Tractors/Self-Propelled | D36: 0.91 | F36: Hour | G36: 10 | I36: 9.1 | J36: =E36*H36 -> 0 | K36: 0 | M36: 0 | N36: =J36*L36 -> 0 | O36: 9.1 | P36: =+J36-N36 -> 0 | Q36: 1820 | R36: =+J36*E$7 -> 0
C37: Other Labor | D37: 0 | F37: Hour | G37: 10 | I37: 0 | J37: =E37*H37 -> 0 | K37: 0 | M37: 0 | N37: =J37*L37 -> 0 | O37: 0 | P37: =+J37-N37 -> 0 | Q37: 0 | R37: =+J37*E$7 -> 0
B39: Diesel Fuel
C40: Pickup/General Use Equipment | D40: 1 | F40: Acre | G40: 0 | I40: 0 | J40: =E40*H40 -> 0 | K40: 0 | M40: 0 | N40: =J40*L40 -> 0 | O40: 0 | P40: =+J40-N40 -> 0 | Q40: 0 | R40: =+J40*E$7 -> 0
C41: Tractors/Self-Propelled | D41: 5.92 | F41: Gallon | G41: 2.4 | I41: 14.208 | J41: =E41*H41 -> 0 | K41: 0 | M41: 0 | N41: =J41*L41 -> 0 | O41: 14.208 | P41: =+J41-N41 -> 0 | Q41: 2841.6 | R41: =+J41*E$7 -> 0
B43: Gasoline
C44: Pickup/General Use Equipment | D44: 1 | F44: Acre | G44: 0 | I44: 0 | J44: =E44*H44 -> 0 | K44: 0 | M44: 0 | N44: =J44*L44 -> 0 | O44: 0 | P44: =+J44-N44 -> 0 | Q44: 0 | R44: =+J44*E$7 -> 0
C45: Tractors/Self-Propelled | D45: 0 | F45: Gallon | G45: 2.15 | I45: 0 | J45: =E45*H45 -> 0 | K45: 0 | M45: 0 | N45: =J45*L45 -> 0 | O45: 0 | P45: =+J45-N45 -> 0 | Q45: 0 | R45: =+J45*E$7 -> 0
B47: Repairs & Maintenance
C48: Pickup/General Use Equipment | D48: 1 | F48: Acre | G48: 0 | I48: 0 | J48: =E48*H48 -> 0 | K48: 0 | M48: 0 | N48: =J48*L48 -> 0 | O48: 0 | P48: =+J48-N48 -> 0 | Q48: 0 | R48: =+J48*E$7 -> 0
C49: Irrigation Equipment | D49: 1 | F49: Acre | G49: 0 | I49: 0 | J49: 0 | K49: 0 | M49: 0 | N49: 0 | O49: 0 | P49: 0 | Q49: 0 | R49: 0
C50: Tractors/Self-Propelled | D50: 1 | F50: Acre | G50: 11.07414613 | I50: 11.07414613 | J50: 0 | K50: 0 | M50: 0 | N50: 0 | O50: 11.07414613 | P50: 0 | Q50: 2214.829225 | R50: 0
C51: Implements | D51: 1 | F51: Acre | G51: 15.69352433 | I51: 15.69352433 | J51: 0 | K51: 0 | M51: 0 | N51: 0 | O51: 15.69352433 | P51: 0 | Q51: 3138.704866 | R51: 0
I52: 0 | J52: 0 | K52: 0 | M52: 0 | N52: 0 | O52: 0 | P52: 0 | Q52: 0 | R52: 0
I53: 0 | J53: 0 | K53: 0 | M53: 0 | N53: 0 | O53: 0 | P53: 0 | Q53: 0 | R53: 0
B54: Interest on Credit Line | G54: 0.0475 | I54: 3.292265847 | J54: =+SUM(J17:J53)/2*H54 -> 0 | M54: 0 | N54: =+SUM(N17:N53)/2*L54 -> 0 | O54: 3.292265847 | P54: =+SUM(P17:P53)/2*L54 -> 0 | Q54: 658.4531694 | R54: =+J54*E$7 -> 0
A55: Total Variable Costs | I55: 176.6779363 | J55: =SUM(J18:J54) -> 0 | M55: 0 | N55: =SUM(N18:N54) -> 0 | O55: 176.6779363 | P55: =SUM(P18:P54) -> 0 | Q55: 35335.58726 | R55: =SUM(R18:R54) -> 0
A56: Planned Returns Above Variable Costs: | I56: 63.3220637 | J56: =+J13-J55 -> 0 | M56: 0 | N56: =+N13-N55 -> 0 | O56: 63.3220637 | P56: =+P13-P55 -> 0 | Q56: 12664.41274 | R56: =+R13-R55 -> 0
B57: Breakeven Price to Cover Variable Costs | G57: 2.944632272 | H57: =IF(E10=0,"n/a",(YVarExp-(YTotExp+YTotRet-J10))/E10) -> n/a | I57: Bushel
Q58: Enterprise | R58: Enterprise
A59: FIXED COSTS | D59: Quantity | E59: Quantity | F59: Units | G59: $/Unit | H59: $/Unit | I59: Total | J59: Total | K59: Share | L59: Share | M59: Landlord | N59: Landlord | O59: Tenant | P59: Tenant | Q59: Total | R59: Total
B60: Machinery Depreciation
C61: Tractors/Self-Propelled | D61: 1 | F61: Acre | G61: 11.44328433 | I61: 11.44328433 | J61: =E61*H61 -> 0 | K61: 0 | M61: 0 | N61: =J61*L61 -> 0 | O61: 11.44328433 | P61: =+J61-N61 -> 0 | Q61: 2288.656866 | R61: =+J61*E$7 -> 0
C62: Implements | D62: 1 | F62: Acre | G62: 18.89150646 | I62: 18.89150646 | J62: 0 | K62: 0 | M62: 0 | N62: =J62*L62 -> 0 | O62: 18.89150646 | P62: 0 | Q62: 3778.301293 | R62: 0
B63: Equipment Investment
C64: Tractors/Self-Propelled | D64: 89.14687632 | F64: Dollars | G64: 0.06 | I64: 5.348812579 | J64: =E64*H64 -> 0 | K64: 0 | M64: 0 | N64: =J64*L64 -> 0 | O64: 5.348812579 | P64: =+J64-N64 -> 0 | Q64: 1069.762516 | R64: =+J64*E$7 -> 0
C65: Implements | D65: 80.94797418 | F65: Dollars | G65: 0.06 | I65: 4.856878451 | J65: 0 | K65: 0 | M65: 0 | N65: =J65*L65 -> 0 | O65: 4.856878451 | P65: 0 | Q65: 971.3756901 | R65: 0
B66: Salaried Labor | D66: 1 | F66: Acre | G66: 0 | I66: 0 | J66: 0 | K66: 0 | M66: 0 | N66: =J66*L66 -> 0 | O66: 0 | P66: =+J66-N66 -> 0 | Q66: 0 | R66: =+J66*E$7 -> 0
B67: Management Fee, Owner/Operator Labor | D67: 1 | F67: Acre | G67: 0 | I67: 0 | J67: 0 | K67: 0 | M67: 0 | N67: 0 | O67: 0 | P67: 0 | Q67: 0 | R67: 0
B68: Allocated Establishment Cost | D68: 1 | F68: Acre | G68: 0 | I68: 0 | J68: 0 | K68: 0 | M68: 0 | N68: 0 | O68: 0 | P68: 0 | Q68: 0 | R68: 0
B69: Dryland Crop Rent | D69: 1 | F69: Acre | G69: 30 | I69: 30 | J69: 0 | K69: 0 | M69: 0 | N69: 0 | O69: 30 | P69: 0 | Q69: 6000 | R69: 0
B70: Property Taxes | D70: 1 | F70: Acre | G70: 0 | I70: 0 | J70: 0 | K70: 0 | M70: 0 | N70: 0 | O70: 0 | P70: 0 | Q70: 0 | R70: 0
B71: Whole Farm Insurance | D71: 1 | F71: Acre | G71: 0 | I71: 0 | J71: 0 | K71: 0 | M71: 0 | N71: 0 | O71: 0 | P71: 0 | Q71: 0 | R71: 0
D72: 1 | G72: 0 | I72: 0 | J72: 0 | K72: 0 | M72: 0 | N72: 0 | O72: 0 | P72: 0 | Q72: 0 | R72: 0
D73: 1 | G73: 0 | I73: 0 | J73: =E73*H73 -> 0 | K73: 0 | M73: 0 | N73: 0 | O73: 0 | P73: 0 | Q73: 0 | R73: 0
A74: Total Fixed Costs | I74: 70.54048183 | J74: =+SUM(J61:J73) -> 0 | M74: 0 | N74: =+SUM(N61:N73) -> 0 | O74: 70.54048183 | P74: =+SUM(P61:P73) -> 0 | Q74: 14108.09637 | R74: =+SUM(R61:R73) -> 0
A75: Total Specified Costs | I75: 247.2184181 | J75: =+J55+J74 -> 0 | M75: 0 | N75: =+N55+N74 -> 0 | O75: 247.2184181 | P75: =+P55+P74 -> 0 | Q75: 49443.68363 | R75: =+R55+R74 -> 0
A77: Returns Above Specified Costs | I77: -7.218418129 | J77: =+J13-J75 -> 0 | M77: 0 | N77: =+N13-N75 -> 0 | O77: -7.218418129 | P77: =+P13-P75 -> 0 | Q77: -1443.683626 | R77: =+R13-R75 -> 0
A79: Breakeven Price to Cover Total Costs | G79: 4.120306969 | H79: =IF(E10=0,"n/a",(YTotExp-(YTotExp+YTotRet-J10))/E10) -> n/a | I79: Bushel
D81: Example Breakeven Prices
B82: Example | C82: Example | D82: To Cover | G82: To Cover
B83: Yield | C83: Yield | D83: Variable | G83: Total
B84: Percent | C84: Bushel | D84: Costs | G84: Costs
B85: 0.75 | C85: 45 | D85: 3.926176362 | G85: 5.493742625
B86: 0.9 | C86: 54 | D86: 3.271813635 | G86: 4.578118854
B87: 1 | C87: 60 | D87: 2.944632272 | G87: 4.120306969
B88: 1.1 | C88: 66 | D88: 2.676938429 | G88: 3.745733608
B89: 1.25 | C89: 75 | D89: 2.355705817 | G89: 3.296245575
D91: Your Breakeven Prices
B92: Your | C92: Your | E92: To Cover | H92: To Cover
B93: Yield | C93: Yield | E93: Variable | H93: Total
B94: Percent | C94: Bushel | E94: Costs | H94: Costs
B95: 0.75 | C95: =E10*YPER1 -> 0 | E95: =IF($E$10=0,0,(YVarExp-(YTotExp+YTotRet-J10))/($E$10*YPER1)) -> 0 | H95: =IF($E$10=0,0,(YTotExp-(YTotExp+YTotRet-J10))/($E$10*YPER1)) -> 0
B96: 0.9 | C96: =E10*YPER2 -> 0 | E96: =IF($E$10=0,0,(YVarExp-(YTotExp+YTotRet-J10))/($E$10*YPER2)) -> 0 | H96: =IF($E$10=0,0,(YTotExp-(YTotExp+YTotRet-J10))/($E$10*YPER2)) -> 0
B97: 1 | C97: =+E10 -> 0 | E97: =IF($E$10=0,0,(YVarExp-(YTotExp+YTotRet-J10))/($E$10*YPER3)) -> 0 | H97: =IF($E$10=0,0,(YTotExp-(YTotExp+YTotRet-J10))/($E$10*YPER3)) -> 0
B98: 1.1 | C98: =E10*YPER4 -> 0 | E98: =IF($E$10=0,0,(YVarExp-(YTotExp+YTotRet-J10))/($E$10*YPER4)) -> 0 | H98: =IF($E$10=0,0,(YTotExp-(YTotExp+YTotRet-J10))/($E$10*YPER4)) -> 0
B99: 1.25 | C99: =E10*YPER5 -> 0 | E99: =IF($E$10=0,0,(YVarExp-(YTotExp+YTotRet-J10))/($E$10*YPER5)) -> 0 | H99: =IF($E$10=0,0,(YTotExp-(YTotExp+YTotRet-J10))/($E$10*YPER5)) -> 0
A101: Developed by Jason Johnson, Associate Professor and Extension Economist, Texas A&M AgriLife Extension, 254-968-4144.
A103: Information presented is prepared solely as a general guide and not intended to recognize or predict the costs and returns from any one operation. Brand names are mentioned only as examples and imply no endorsement.

Sheet OatsGrain
A1: Projections for Planning Purposes Only -- Not to be Used without Updating
A2: 2021 Estimated Costs and Returns per Acre
A3: Oats for Grain
A4: Enter your name for this budget in the cell above.
A5: Enter Your Values in the cells highlighed in MAROON.
E6: Your Acres | R6: Your
C7: Crop Acres | D7: 200 | L7: Your | Q7: Enterprise | R7: Enterprise
E8: Your | H8: Your | I8: Cash | J8: Your | K8: Landlord | L8: Landlord | N8: Your | P8: Your | Q8: Total | R8: Total
A9: REVENUE | D9: Quantity | E9: Quantity | F9: Units | G9: $/Unit | H9: $/Unit | I9: Total | J9: Total | K9: Share | L9: Share | M9: Landlord | N9: Landlord | O9: Tenant | P9: Tenant | Q9: (200 acres) | R9: ="(" & E7 & " acres)" -> ( acres)
B10: Oats | D10: 100 | F10: Bushel | G10: 2.5 | I10: 250 | J10: =E10*H10 -> 0 | K10: 0 | M10: 0 | N10: =J10*L10 -> 0 | O10: 250 | P10: =+J10-N10 -> 0 | Q10: 50000 | R10: =+J10*E$7 -> 0
D11: 0 | G11: 0 | I11: 0 | J11: 0 | K11: 0 | M11: 0 | N11: 0 | O11: 0 | P11: =+J11-N11 -> 0 | Q11: 0 | R11: 0
D12: 0 | G12: 0 | I12: 0 | J12: 0 | K12: 0 | M12: 0 | N12: 0 | O12: 0 | P12: 0 | Q12: 0 | R12: 0
A13: Total Revenue | I13: 250 | J13: =SUM(J10:J12) -> 0 | M13: 0 | N13: =SUM(N10:N12) -> 0 | O13: 250 | P13: =SUM(P10:P12) -> 0 | Q13: 50000 | R13: =SUM(R10:R12) -> 0
Q14: Enterprise | R14: Enterprise
A15: VARIABLE COSTS | D15: Quantity | E15: Quantity | F15: Units | G15: $/Unit | H15: $/Unit | I15: Total | J15: Total | K15: Share | L15: Share | M15: Landlord | N15: Landlord | O15: Tenant | P15: Tenant | Q15: Total | R15: Total
A16: Production Costs
B17: Seed
C18: Oat Seed | D18: 100 | F18: Pound | G18: 0.34 | I18: 34 | J18: =E18*H18 -> 0 | K18: 0 | M18: 0 | N18: =J18*L18 -> 0 | O18: 34 | P18: =+J18-N18 -> 0 | Q18: 6800 | R18: =+J18*E$7 -> 0
B19: Fertilizer
C20: 18-46-0 | D20: 50 | F20: Pound | G20: 0.29 | I20: 14.5 | J20: 0 | K20: 0 | M20: 0 | N20: 0 | O20: 14.5 | P20: 0 | Q20: 2900 | R20: 0
C21: 46-0-0 | D21: 140 | F21: Pound | G21: 0.21 | I21: 29.4 | J21: 0 | K21: 0 | M21: 0 | N21: 0 | O21: 29.4 | P21: 0 | Q21: 5880 | R21: 0
B22: Custom
C23: Custom Combine | D23: 1 | F23: Acre | G23: 30 | I23: 30 | J23: 0 | K23: 0 | M23: 0 | N23: 0 | O23: 30 | P23: 0 | Q23: 6000 | R23: 0
C24: Custom Hauling Oats | D24: 100 | F24: Bushel | G24: 0.16 | I24: 16 | J24: 0 | K24: 0 | M24: 0 | N24: 0 | O24: 16 | P24: 0 | Q24: 3200 | R24: 0
B25: Miscellaneous
C26: Insurance - Oats 65% | D26: 1 | F26: Acre | G26: 12 | I26: 12 | J26: 0 | K26: 0 | M26: 0 | N26: 0 | O26: 12 | P26: 0 | Q26: 2400 | R26: 0
C27: Insurance - Oats SCO | D27: 1 | F27: Acre | G27: 2 | I27: 2 | J27: 0 | K27: 0 | M27: 0 | N27: 0 | O27: 2 | P27: 0 | Q27: 400 | R27: 0
B28: Herbicide
C29: Weed Burndown | D29: 32 | F29: Ounce | G29: 0.2 | I29: 6.4 | J29: 0 | K29: 0 | M29: 0 | N29: 0 | O29: 6.4 | P29: 0 | Q29: 1280 | R29: 0
B30: Insecticide
C31: Insecticide Greenbug | D31: 1 | F31: Acre | G31: 4.5 | I31: 4.5 | J31: 0 | K31: 0 | M31: 0 | N31: 0 | O31: 4.5 | P31: 0 | Q31: 900 | R31: 0
B32: Fungicides
C33: Tebuconazole | D33: 4 | F33: Ounce | G33: 0.375 | I33: 1.5 | J33: 0 | K33: 0 | M33: 0 | N33: 0 | O33: 1.5 | P33: 0 | Q33: 300 | R33: 0
D34: 0 | G34: 0 | I34: 0 | J34: 0 | K34: 0 | M34: 0 | N34: 0 | O34: 0 | P34: 0 | Q34: 0 | R34: 0
D35: 0 | G35: 0 | I35: 0 | J35: 0 | K35: 0 | M35: 0 | N35: 0 | O35: 0 | P35: 0 | Q35: 0 | R35: 0
D36: 0 | G36: 0 | I36: 0 | J36: =E36*H36 -> 0 | K36: 0 | M36: 0 | N36: =J36*L36 -> 0 | O36: 0 | P36: =+J36-N36 -> 0 | Q36: 0 | R36: =+J36*E$7 -> 0
B37: Machinery Labor
C38: Tractors/Self-Propelled | D38: 0.99 | F38: Hour | G38: 10 | I38: 9.9 | J38: =E38*H38 -> 0 | K38: 0 | M38: 0 | N38: =J38*L38 -> 0 | O38: 9.9 | P38: =+J38-N38 -> 0 | Q38: 1980 | R38: =+J38*E$7 -> 0
C39: Other Labor | D39: 0 | F39: Hour | G39: 10 | I39: 0 | J39: =E39*H39 -> 0 | K39: 0 | M39: 0 | N39: =J39*L39 -> 0 | O39: 0 | P39: =+J39-N39 -> 0 | Q39: 0 | R39: =+J39*E$7 -> 0
B41: Diesel Fuel
C42: Pickup/General Use Equipment | D42: 1 | F42: Acre | G42: 0 | I42: 0 | J42: =E42*H42 -> 0 | K42: 0 | M42: 0 | N42: =J42*L42 -> 0 | O42: 0 | P42: =+J42-N42 -> 0 | Q42: 0 | R42: =+J42*E$7 -> 0
C43: Tractors/Self-Propelled | D43: 6.35 | F43: Gallon | G43: 2.4 | I43: 15.24 | J43: =E43*H43 -> 0 | K43: 0 | M43: 0 | N43: =J43*L43 -> 0 | O43: 15.24 | P43: =+J43-N43 -> 0 | Q43: 3048 | R43: =+J43*E$7 -> 0
B45: Gasoline
C46: Pickup/General Use Equipment | D46: 1 | F46: Acre | G46: 0 | I46: 0 | J46: =E46*H46 -> 0 | K46: 0 | M46: 0 | N46: =J46*L46 -> 0 | O46: 0 | P46: =+J46-N46 -> 0 | Q46: 0 | R46: =+J46*E$7 -> 0
C47: Tractors/Self-Propelled | D47: 0 | F47: Gallon | G47: 2.15 | I47: 0 | J47: =E47*H47 -> 0 | K47: 0 | M47: 0 | N47: =J47*L47 -> 0 | O47: 0 | P47: =+J47-N47 -> 0 | Q47: 0 | R47: =+J47*E$7 -> 0
B49: Repairs & Maintenance
C50: Pickup/General Use Equipment | D50: 1 | F50: Acre | G50: 0 | I50: 0 | J50: =E50*H50 -> 0 | K50: 0 | M50: 0 | N50: =J50*L50 -> 0 | O50: 0 | P50: =+J50-N50 -> 0 | Q50: 0 | R50: =+J50*E$7 -> 0
C51: Irrigation Equipment | D51: 1 | F51: Acre | G51: 0 | I51: 0 | J51: 0 | K51: 0 | M51: 0 | N51: 0 | O51: 0 | P51: 0 | Q51: 0 | R51: 0
C52: Tractors/Self-Propelled | D52: 1 | F52: Acre | G52: 11.71200274 | I52: 11.71200274 | J52: 0 | K52: 0 | M52: 0 | N52: 0 | O52: 11.71200274 | P52: 0 | Q52: 2342.400548 | R52: 0
C53: Implements | D53: 1 | F53: Acre | G53: 17.50550829 | I53: 17.50550829 | J53: 0 | K53: 0 | M53: 0 | N53: 0 | O53: 17.50550829 | P53: 0 | Q53: 3501.101659 | R53: 0
I54: 0 | J54: 0 | K54: 0 | M54: 0 | N54: 0 | O54: 0 | P54: 0 | Q54: 0 | R54: 0
I55: 0 | J55: 0 | K55: 0 | M55: 0 | N55: 0 | O55: 0 | P55: 0 | Q55: 0 | R55: 0
B56: Interest on Credit Line | G56: 0.0475 | I56: 3.901192374 | J56: =+SUM(J17:J55)/2*H56 -> 0 | M56: 0 | N56: =+SUM(N17:N55)/2*L56 -> 0 | O56: 3.901192374 | P56: =+SUM(P17:P55)/2*L56 -> 0 | Q56: 780.2384748 | R56: =+J56*E$7 -> 0
A57: Total Variable Costs | I57: 208.5587034 | J57: =SUM(J18:J56) -> 0 | M57: 0 | N57: =SUM(N18:N56) -> 0 | O57: 208.5587034 | P57: =SUM(P18:P56) -> 0 | Q57: 41711.74068 | R57: =SUM(R18:R56) -> 0
A58: Planned Returns Above Variable Costs: | I58: 41.44129659 | J58: =+J13-J57 -> 0 | M58: 0 | N58: =+N13-N57 -> 0 | O58: 41.44129659 | P58: =+P13-P57 -> 0 | Q58: 8288.259319 | R58: =+R13-R57 -> 0
B59: Breakeven Price to Cover Variable Costs | G59: 2.085587034 | H59: =IF(E10=0,"n/a",(YVarExp-(YTotExp+YTotRet-J10))/E10) -> n/a | I59: Bushel
Q60: Enterprise | R60: Enterprise
A61: FIXED COSTS | D61: Quantity | E61: Quantity | F61: Units | G61: $/Unit | H61: $/Unit | I61: Total | J61: Total | K61: Share | L61: Share | M61: Landlord | N61: Landlord | O61: Tenant | P61: Tenant | Q61: Total | R61: Total
B62: Machinery Depreciation
C63: Tractors/Self-Propelled | D63: 1 | F63: Acre | G63: 12.10240283 | I63: 12.10240283 | J63: =E63*H63 -> 0 | K63: 0 | M63: 0 | N63: =J63*L63 -> 0 | O63: 12.10240283 | P63: =+J63-N63 -> 0 | Q63: 2420.480566 | R63: =+J63*E$7 -> 0
C64: Implements | D64: 1 | F64: Acre | G64: 20.68998178 | I64: 20.68998178 | J64: 0 | K64: 0 | M64: 0 | N64: =J64*L64 -> 0 | O64: 20.68998178 | P64: 0 | Q64: 4137.996357 | R64: 0
B65: Equipment Investment
C66: Tractors/Self-Propelled | D66: 94.28162205 | F66: Dollars | G66: 0.06 | I66: 5.656897323 | J66: =E66*H66 -> 0 | K66: 0 | M66: 0 | N66: =J66*L66 -> 0 | O66: 5.656897323 | P66: =+J66-N66 -> 0 | Q66: 1131.379465 | R66: =+J66*E$7 -> 0
C67: Implements | D67: 88.57429811 | F67: Dollars | G67: 0.06 | I67: 5.314457887 | J67: 0 | K67: 0 | M67: 0 | N67: =J67*L67 -> 0 | O67: 5.314457887 | P67: 0 | Q67: 1062.891577 | R67: 0
B68: Salaried Labor | D68: 1 | F68: Acre | G68: 0 | I68: 0 | J68: 0 | K68: 0 | M68: 0 | N68: =J68*L68 -> 0 | O68: 0 | P68: =+J68-N68 -> 0 | Q68: 0 | R68: =+J68*E$7 -> 0
B69: Management Fee, Owner/Operator Labor | D69: 1 | F69: Acre | G69: 0 | I69: 0 | J69: 0 | K69: 0 | M69: 0 | N69: 0 | O69: 0 | P69: 0 | Q69: 0 | R69: 0
B70: Allocated Establishment Cost | D70: 1 | F70: Acre | G70: 0 | I70: 0 | J70: 0 | K70: 0 | M70: 0 | N70: 0 | O70: 0 | P70: 0 | Q70: 0 | R70: 0
B71: Dryland Crop Rent | D71: 1 | F71: Acre | G71: 30 | I71: 30 | J71: 0 | K71: 0 | M71: 0 | N71: 0 | O71: 30 | P71: 0 | Q71: 6000 | R71: 0
B72: Property Taxes | D72: 1 | F72: Acre | G72: 0 | I72: 0 | J72: 0 | K72: 0 | M72: 0 | N72: 0 | O72: 0 | P72: 0 | Q72: 0 | R72: 0
B73: Whole Farm Insurance | D73: 1 | F73: Acre | G73: 0 | I73: 0 | J73: 0 | K73: 0 | M73: 0 | N73: 0 | O73: 0 | P73: 0 | Q73: 0 | R73: 0
D74: 1 | G74: 0 | I74: 0 | J74: 0 | K74: 0 | M74: 0 | N74: 0 | O74: 0 | P74: 0 | Q74: 0 | R74: 0
D75: 1 | G75: 0 | I75: 0 | J75: =E75*H75 -> 0 | K75: 0 | M75: 0 | N75: 0 | O75: 0 | P75: 0 | Q75: 0 | R75: 0
A76: Total Fixed Costs | I76: 73.76373982 | J76: =+SUM(J63:J75) -> 0 | M76: 0 | N76: =+SUM(N63:N75) -> 0 | O76: 73.76373982 | P76: =+SUM(P63:P75) -> 0 | Q76: 14752.74796 | R76: =+SUM(R63:R75) -> 0
A77: Total Specified Costs | I77: 282.3224432 | J77: =+J57+J76 -> 0 | M77: 0 | N77: =+N57+N76 -> 0 | O77: 282.3224432 | P77: =+P57+P76 -> 0 | Q77: 56464.48865 | R77: =+R57+R76 -> 0
A79: Returns Above Specified Costs | I79: -32.32244323 | J79: =+J13-J77 -> 0 | M79: 0 | N79: =+N13-N77 -> 0 | O79: -32.32244323 | P79: =+P13-P77 -> 0 | Q79: -6464.488646 | R79: =+R13-R77 -> 0
A81: Breakeven Price to Cover Total Costs | G81: 2.823224432 | H81: =IF(E10=0,"n/a",(YTotExp-(YTotExp+YTotRet-J10))/E10) -> n/a | I81: Bushel
D83: Example Breakeven Prices
B84: Example | C84: Example | D84: To Cover | G84: To Cover
B85: Yield | C85: Yield | D85: Variable | G85: Total
B86: Percent | C86: Bushel | D86: Costs | G86: Costs
B87: 0.75 | C87: 75 | D87: 2.780782712 | G87: 3.764299243
B88: 0.9 | C88: 90 | D88: 2.317318927 | G88: 3.136916036
B89: 1 | C89: 100 | D89: 2.085587034 | G89: 2.823224432
B90: 1.1 | C90: 110 | D90: 1.895988213 | G90: 2.566567666
B91: 1.25 | C91: 125 | D91: 1.668469627 | G91: 2.258579546
D93: Your Breakeven Prices
B94: Your | C94: Your | E94: To Cover | H94: To Cover
B95: Yield | C95: Yield | E95: Variable | H95: Total
B96: Percent | C96: Bushel | E96: Costs | H96: Costs
B97: 0.75 | C97: =E10*YPER1 -> 0 | E97: =IF($E$10=0,0,(YVarExp-(YTotExp+YTotRet-J10))/($E$10*YPER1)) -> 0 | H97: =IF($E$10=0,0,(YTotExp-(YTotExp+YTotRet-J10))/($E$10*YPER1)) -> 0
B98: 0.9 | C98: =E10*YPER2 -> 0 | E98: =IF($E$10=0,0,(YVarExp-(YTotExp+YTotRet-J10))/($E$10*YPER2)) -> 0 | H98: =IF($E$10=0,0,(YTotExp-(YTotExp+YTotRet-J10))/($E$10*YPER2)) -> 0
B99: 1 | C99: =+E10 -> 0 | E99: =IF($E$10=0,0,(YVarExp-(YTotExp+YTotRet-J10))/($E$10*YPER3)) -> 0 | H99: =IF($E$10=0,0,(YTotExp-(YTotExp+YTotRet-J10))/($E$10*YPER3)) -> 0
B100: 1.1 | C100: =E10*YPER4 -> 0 | E100: =IF($E$10=0,0,(YVarExp-(YTotExp+YTotRet-J10))/($E$10*YPER4)) -> 0 | H100: =IF($E$10=0,0,(YTotExp-(YTotExp+YTotRet-J10))/($E$10*YPER4)) -> 0
B101: 1.25 | C101: =E10*YPER5 -> 0 | E101: =IF($E$10=0,0,(YVarExp-(YTotExp+YTotRet-J10))/($E$10*YPER5)) -> 0 | H101: =IF($E$10=0,0,(YTotExp-(YTotExp+YTotRet-J10))/($E$10*YPER5)) -> 0
A103: Developed by Jason Johnson, Associate Professor and Extension Economist, Texas A&M AgriLife Extension, 254-968-4144.
A105: Information presented is prepared solely as a general guide and not intended to recognize or predict the costs and returns from any one operation. Brand names are mentioned only as examples and imply no endorsement.

Sheet SmallGrainGrazing
A1: Projections for Planning Purposes Only -- Not to be Used without Updating
A2: 2021 Estimated Costs and Returns per Acre
A3: Small Grain with Grazing
A4: Enter your name for this budget in the cell above.
A5: Enter Your Values in the cells highlighed in MAROON.
E6: Your Acres | R6: Your
C7: Crop Acres | D7: 800 | L7: Your | Q7: Enterprise | R7: Enterprise
E8: Your | H8: Your | I8: Cash | J8: Your | K8: Landlord | L8: Landlord | N8: Your | P8: Your | Q8: Total | R8: Total
A9: REVENUE | D9: Quantity | E9: Quantity | F9: Units | G9: $/Unit | H9: $/Unit | I9: Total | J9: Total | K9: Share | L9: Share | M9: Landlord | N9: Landlord | O9: Tenant | P9: Tenant | Q9: (800 acres) | R9: ="(" & E7 & " acres)" -> ( acres)
B10: Stocker Weight Gain | D10: 315 | F10: Pound | G10: 0.6 | I10: 189 | J10: =E10*H10 -> 0 | K10: 0 | M10: 0 | N10: =J10*L10 -> 0 | O10: 189 | P10: =+J10-N10 -> 0 | Q10: 151200 | R10: =+J10*E$7 -> 0
D11: 0 | G11: 0 | I11: 0 | J11: 0 | K11: 0 | M11: 0 | N11: 0 | O11: 0 | P11: =+J11-N11 -> 0 | Q11: 0 | R11: 0
D12: 0 | G12: 0 | I12: 0 | J12: 0 | K12: 0 | M12: 0 | N12: 0 | O12: 0 | P12: 0 | Q12: 0 | R12: 0
A13: Total Revenue | I13: 189 | J13: =SUM(J10:J12) -> 0 | M13: 0 | N13: =SUM(N10:N12) -> 0 | O13: 189 | P13: =SUM(P10:P12) -> 0 | Q13: 151200 | R13: =SUM(R10:R12) -> 0
Q14: Enterprise | R14: Enterprise
A15: VARIABLE COSTS | D15: Quantity | E15: Quantity | F15: Units | G15: $/Unit | H15: $/Unit | I15: Total | J15: Total | K15: Share | L15: Share | M15: Landlord | N15: Landlord | O15: Tenant | P15: Tenant | Q15: Total | R15: Total
A16: Production Costs
B17: Seed
C18: Oat Seed | D18: 110 | F18: Pound | G18: 0.34 | I18: 37.4 | J18: =E18*H18 -> 0 | K18: 0 | M18: 0 | N18: =J18*L18 -> 0 | O18: 37.4 | P18: =+J18-N18 -> 0 | Q18: 29920 | R18: =+J18*E$7 -> 0
B19: Fertilizer
C20: 18-46-0 | D20: 100 | F20: Pound | G20: 0.29 | I20: 29 | J20: 0 | K20: 0 | M20: 0 | N20: 0 | O20: 29 | P20: 0 | Q20: 23200 | R20: 0
C21: 46-0-0 | D21: 220 | F21: Pound | G21: 0.21 | I21: 46.2 | J21: 0 | K21: 0 | M21: 0 | N21: 0 | O21: 46.2 | P21: 0 | Q21: 36960 | R21: 0
D22: 0 | G22: 0 | I22: 0 | J22: 0 | K22: 0 | M22: 0 | N22: 0 | O22: 0 | P22: 0 | Q22: 0 | R22: 0
D23: 0 | G23: 0 | I23: 0 | J23: 0 | K23: 0 | M23: 0 | N23: 0 | O23: 0 | P23: 0 | Q23: 0 | R23: 0
D24: 0 | G24: 0 | I24: 0 | J24: =E24*H24 -> 0 | K24: 0 | M24: 0 | N24: =J24*L24 -> 0 | O24: 0 | P24: =+J24-N24 -> 0 | Q24: 0 | R24: =+J24*E$7 -> 0
B25: Machinery Labor
C26: Tractors/Self-Propelled | D26: 0.39 | F26: Hour | G26: 10 | I26: 3.9 | J26: =E26*H26 -> 0 | K26: 0 | M26: 0 | N26: =J26*L26 -> 0 | O26: 3.9 | P26: =+J26-N26 -> 0 | Q26: 3120 | R26: =+J26*E$7 -> 0
C27: Other Labor | D27: 0 | F27: Hour | G27: 10 | I27: 0 | J27: =E27*H27 -> 0 | K27: 0 | M27: 0 | N27: =J27*L27 -> 0 | O27: 0 | P27: =+J27-N27 -> 0 | Q27: 0 | R27: =+J27*E$7 -> 0
B29: Diesel Fuel
C30: Pickup/General Use Equipment | D30: 1 | F30: Acre | G30: 0 | I30: 0 | J30: =E30*H30 -> 0 | K30: 0 | M30: 0 | N30: =J30*L30 -> 0 | O30: 0 | P30: =+J30-N30 -> 0 | Q30: 0 | R30: =+J30*E$7 -> 0
C31: Tractors/Self-Propelled | D31: 1.68 | F31: Gallon | G31: 2.4 | I31: 4.032 | J31: =E31*H31 -> 0 | K31: 0 | M31: 0 | N31: =J31*L31 -> 0 | O31: 4.032 | P31: =+J31-N31 -> 0 | Q31: 3225.6 | R31: =+J31*E$7 -> 0
B33: Gasoline
C34: Pickup/General Use Equipment | D34: 1 | F34: Acre | G34: 0 | I34: 0 | J34: =E34*H34 -> 0 | K34: 0 | M34: 0 | N34: =J34*L34 -> 0 | O34: 0 | P34: =+J34-N34 -> 0 | Q34: 0 | R34: =+J34*E$7 -> 0
C35: Tractors/Self-Propelled | D35: 0 | F35: Gallon | G35: 2.15 | I35: 0 | J35: =E35*H35 -> 0 | K35: 0 | M35: 0 | N35: =J35*L35 -> 0 | O35: 0 | P35: =+J35-N35 -> 0 | Q35: 0 | R35: =+J35*E$7 -> 0
B37: Repairs & Maintenance
C38: Pickup/General Use Equipment | D38: 1 | F38: Acre | G38: 0 | I38: 0 | J38: =E38*H38 -> 0 | K38: 0 | M38: 0 | N38: =J38*L38 -> 0 | O38: 0 | P38: =+J38-N38 -> 0 | Q38: 0 | R38: =+J38*E$7 -> 0
C39: Irrigation Equipment | D39: 1 | F39: Acre | G39: 0 | I39: 0 | J39: 0 | K39: 0 | M39: 0 | N39: 0 | O39: 0 | P39: 0 | Q39: 0 | R39: 0
C40: Tractors/Self-Propelled | D40: 1 | F40: Acre | G40: 3.192728711 | I40: 3.192728711 | J40: 0 | K40: 0 | M40: 0 | N40: 0 | O40: 3.192728711 | P40: 0 | Q40: 2554.182969 | R40: 0
C41: Implements | D41: 1 | F41: Acre | G41: 12.28696086 | I41: 12.28696086 | J41: 0 | K41: 0 | M41: 0 | N41: 0 | O41: 12.28696086 | P41: 0 | Q41: 9829.568686 | R41: 0
I42: 0 | J42: 0 | K42: 0 | M42: 0 | N42: 0 | O42: 0 | P42: 0 | Q42: 0 | R42: 0
I43: 0 | J43: 0 | K43: 0 | M43: 0 | N43: 0 | O43: 0 | P43: 0 | Q43: 0 | R43: 0
B44: Interest on Credit Line | G44: 0.0475 | I44: 4.658802055 | J44: =+SUM(J17:J43)/2*H44 -> 0 | M44: 0 | N44: =+SUM(N17:N43)/2*L44 -> 0 | O44: 4.658802055 | P44: =+SUM(P17:P43)/2*L44 -> 0 | Q44: 3727.041644 | R44: =+J44*E$7 -> 0
A45: Total Variable Costs | I45: 140.6704916 | J45: =SUM(J18:J44) -> 0 | M45: 0 | N45: =SUM(N18:N44) -> 0 | O45: 140.6704916 | P45: =SUM(P18:P44) -> 0 | Q45: 112536.3933 | R45: =SUM(R18:R44) -> 0
A46: Planned Returns Above Variable Costs: | I46: 48.32950838 | J46: =+J13-J45 -> 0 | M46: 0 | N46: =+N13-N45 -> 0 | O46: 48.32950838 | P46: =+P13-P45 -> 0 | Q46: 38663.6067 | R46: =+R13-R45 -> 0
B47: Breakeven Price to Cover Variable Costs | G47: 0.4465729893 | H47: =IF(E10=0,"n/a",(YVarExp-(YTotExp+YTotRet-J10))/E10) -> n/a | I47: Pound
Q48: Enterprise | R48: Enterprise
A49: FIXED COSTS | D49: Quantity | E49: Quantity | F49: Units | G49: $/Unit | H49: $/Unit | I49: Total | J49: Total | K49: Share | L49: Share | M49: Landlord | N49: Landlord | O49: Tenant | P49: Tenant | Q49: Total | R49: Total
B50: Machinery Depreciation
C51: Tractors/Self-Propelled | D51: 1 | F51: Acre | G51: 3.055851824 | I51: 3.055851824 | J51: =E51*H51 -> 0 | K51: 0 | M51: 0 | N51: =J51*L51 -> 0 | O51: 3.055851824 | P51: =+J51-N51 -> 0 | Q51: 2444.681459 | R51: =+J51*E$7 -> 0
C52: Implements | D52: 1 | F52: Acre | G52: 15.17715246 | I52: 15.17715246 | J52: 0 | K52: 0 | M52: 0 | N52: =J52*L52 -> 0 | O52: 15.17715246 | P52: 0 | Q52: 12141.72197 | R52: 0
B53: Equipment Investment
C54: Tractors/Self-Propelled | D54: 23.80607147 | F54: Dollars | G54: 0.06 | I54: 1.428364288 | J54: =E54*H54 -> 0 | K54: 0 | M54: 0 | N54: =J54*L54 -> 0 | O54: 1.428364288 | P54: =+J54-N54 -> 0 | Q54: 1142.69143 | R54: =+J54*E$7 -> 0
C55: Implements | D55: 64.99163935 | F55: Dollars | G55: 0.06 | I55: 3.899498361 | J55: 0 | K55: 0 | M55: 0 | N55: =J55*L55 -> 0 | O55: 3.899498361 | P55: 0 | Q55: 3119.598689 | R55: 0
B56: Salaried Labor | D56: 1 | F56: Acre | G56: 0 | I56: 0 | J56: 0 | K56: 0 | M56: 0 | N56: =J56*L56 -> 0 | O56: 0 | P56: =+J56-N56 -> 0 | Q56: 0 | R56: =+J56*E$7 -> 0
B57: Management Fee, Owner/Operator Labor | D57: 1 | F57: Acre | G57: 0 | I57: 0 | J57: 0 | K57: 0 | M57: 0 | N57: 0 | O57: 0 | P57: 0 | Q57: 0 | R57: 0
B58: Allocated Establishment Cost | D58: 1 | F58: Acre | G58: 0 | I58: 0 | J58: 0 | K58: 0 | M58: 0 | N58: 0 | O58: 0 | P58: 0 | Q58: 0 | R58: 0
B59: Dryland Crop Rent | D59: 1 | F59: Acre | G59: 30 | I59: 30 | J59: 0 | K59: 0 | M59: 0 | N59: 0 | O59: 30 | P59: 0 | Q59: 24000 | R59: 0
B60: Property Taxes | D60: 1 | F60: Acre | G60: 0 | I60: 0 | J60: 0 | K60: 0 | M60: 0 | N60: 0 | O60: 0 | P60: 0 | Q60: 0 | R60: 0
B61: Whole Farm Insurance | D61: 1 | F61: Acre | G61: 0 | I61: 0 | J61: 0 | K61: 0 | M61: 0 | N61: 0 | O61: 0 | P61: 0 | Q61: 0 | R61: 0
D62: 1 | G62: 0 | I62: 0 | J62: 0 | K62: 0 | M62: 0 | N62: 0 | O62: 0 | P62: 0 | Q62: 0 | R62: 0
D63: 1 | G63: 0 | I63: 0 | J63: =E63*H63 -> 0 | K63: 0 | M63: 0 | N63: 0 | O63: 0 | P63: 0 | Q63: 0 | R63: 0
A64: Total Fixed Costs | I64: 53.56086693 | J64: =+SUM(J51:J63) -> 0 | M64: 0 | N64: =+SUM(N51:N63) -> 0 | O64: 53.56086693 | P64: =+SUM(P51:P63) -> 0 | Q64: 42848.69355 | R64: =+SUM(R51:R63) -> 0
A65: Total Specified Costs | I65: 194.2313586 | J65: =+J45+J64 -> 0 | M65: 0 | N65: =+N45+N64 -> 0 | O65: 194.2313586 | P65: =+P45+P64 -> 0 | Q65: 155385.0868 | R65: =+R45+R64 -> 0
A67: Returns Above Specified Costs | I67: -5.231358558 | J67: =+J13-J65 -> 0 | M67: 0 | N67: =+N13-N65 -> 0 | O67: -5.231358558 | P67: =+P13-P65 -> 0 | Q67: -4185.086846 | R67: =+R13-R65 -> 0
A69: Breakeven Price to Cover Total Costs | G69: 0.6166074875 | H69: =IF(E10=0,"n/a",(YTotExp-(YTotExp+YTotRet-J10))/E10) -> n/a | I69: Pound
D71: Example Breakeven Prices
B72: Example | C72: Example | D72: To Cover | G72: To Cover
B73: Yield | C73: Yield | D73: Variable | G73: Total
B74: Percent | C74: Pound | D74: Costs | G74: Costs
B75: 0.75 | C75: 236.25 | D75: 0.5954306524 | G75: 0.8221433166
B76: 0.9 | C76: 283.5 | D76: 0.4961922103 | G76: 0.6851194305
B77: 1 | C77: 315 | D77: 0.4465729893 | G77: 0.6166074875
B78: 1.1 | C78: 346.5 | D78: 0.4059754448 | G78: 0.5605522613
B79: 1.25 | C79: 393.75 | D79: 0.3572583914 | G79: 0.49328599
D81: Your Breakeven Prices
B82: Your | C82: Your | E82: To Cover | H82: To Cover
B83: Yield | C83: Yield | E83: Variable | H83: Total
B84: Percent | C84: Pound | E84: Costs | H84: Costs
B85: 0.75 | C85: =E10*YPER1 -> 0 | E85: =IF($E$10=0,0,(YVarExp-(YTotExp+YTotRet-J10))/($E$10*YPER1)) -> 0 | H85: =IF($E$10=0,0,(YTotExp-(YTotExp+YTotRet-J10))/($E$10*YPER1)) -> 0
B86: 0.9 | C86: =E10*YPER2 -> 0 | E86: =IF($E$10=0,0,(YVarExp-(YTotExp+YTotRet-J10))/($E$10*YPER2)) -> 0 | H86: =IF($E$10=0,0,(YTotExp-(YTotExp+YTotRet-J10))/($E$10*YPER2)) -> 0
B87: 1 | C87: =+E10 -> 0 | E87: =IF($E$10=0,0,(YVarExp-(YTotExp+YTotRet-J10))/($E$10*YPER3)) -> 0 | H87: =IF($E$10=0,0,(YTotExp-(YTotExp+YTotRet-J10))/($E$10*YPER3)) -> 0
B88: 1.1 | C88: =E10*YPER4 -> 0 | E88: =IF($E$10=0,0,(YVarExp-(YTotExp+YTotRet-J10))/($E$10*YPER4)) -> 0 | H88: =IF($E$10=0,0,(YTotExp-(YTotExp+YTotRet-J10))/($E$10*YPER4)) -> 0
B89: 1.25 | C89: =E10*YPER5 -> 0 | E89: =IF($E$10=0,0,(YVarExp-(YTotExp+YTotRet-J10))/($E$10*YPER5)) -> 0 | H89: =IF($E$10=0,0,(YTotExp-(YTotExp+YTotRet-J10))/($E$10*YPER5)) -> 0
A91: Developed by Jason Johnson, Associate Professor and Extension Economist, Texas A&M AgriLife Extension, 254-968-4144.
A93: Information presented is prepared solely as a general guide and not intended to recognize or predict the costs and returns from any one operation. Brand names are mentioned only as examples and imply no endorsement.

Sheet CornSilageDryland
A1: Projections for Planning Purposes Only -- Not to be Used without Updating
A2: 2021 Estimated Costs and Returns per Acre
A3: RR Corn Silage - Dryland
A4: Enter your name for this budget in the cell above.
A5: Enter Your Values in the cells highlighed in MAROON.
E6: Your Acres | R6: Your
C7: Crop Acres | D7: 500 | L7: Your | Q7: Enterprise | R7: Enterprise
E8: Your | H8: Your | I8: Cash | J8: Your | K8: Landlord | L8: Landlord | N8: Your | P8: Your | Q8: Total | R8: Total
A9: REVENUE | D9: Quantity | E9: Quantity | F9: Units | G9: $/Unit | H9: $/Unit | I9: Total | J9: Total | K9: Share | L9: Share | M9: Landlord | N9: Landlord | O9: Tenant | P9: Tenant | Q9: (500 acres) | R9: ="(" & E7 & " acres)" -> ( acres)
B10: Corn Silage | D10: 12 | F10: Ton | G10: 39 | I10: 468 | J10: =E10*H10 -> 0 | K10: 0 | M10: 0 | N10: =J10*L10 -> 0 | O10: 468 | P10: =+J10-N10 -> 0 | Q10: 234000 | R10: =+J10*E$7 -> 0
D11: 0 | G11: 0 | I11: 0 | J11: 0 | K11: 0 | M11: 0 | N11: 0 | O11: 0 | P11: =+J11-N11 -> 0 | Q11: 0 | R11: 0
D12: 0 | G12: 0 | I12: 0 | J12: 0 | K12: 0 | M12: 0 | N12: 0 | O12: 0 | P12: 0 | Q12: 0 | R12: 0
A13: Total Revenue | I13: 468 | J13: =SUM(J10:J12) -> 0 | M13: 0 | N13: =SUM(N10:N12) -> 0 | O13: 468 | P13: =SUM(P10:P12) -> 0 | Q13: 234000 | R13: =SUM(R10:R12) -> 0
Q14: Enterprise | R14: Enterprise
A15: VARIABLE COSTS | D15: Quantity | E15: Quantity | F15: Units | G15: $/Unit | H15: $/Unit | I15: Total | J15: Total | K15: Share | L15: Share | M15: Landlord | N15: Landlord | O15: Tenant | P15: Tenant | Q15: Total | R15: Total
A16: Production Costs
B17: Seed
C18: HR Corn Silage Seed | D18: 24 | F18: Thousand | G18: 4 | I18: 96 | J18: =E18*H18 -> 0 | K18: 0 | M18: 0 | N18: =J18*L18 -> 0 | O18: 96 | P18: =+J18-N18 -> 0 | Q18: 48000 | R18: =+J18*E$7 -> 0
B19: Fertilizer
C20: 18-46-0 | D20: 150 | F20: Pound | G20: 0.29 | I20: 43.5 | J20: 0 | K20: 0 | M20: 0 | N20: 0 | O20: 43.5 | P20: 0 | Q20: 21750 | R20: 0
C21: 46-0-0 | D21: 220 | F21: Pound | G21: 0.21 | I21: 46.2 | J21: 0 | K21: 0 | M21: 0 | N21: 0 | O21: 46.2 | P21: 0 | Q21: 23100 | R21: 0
C22: 0-0-60 | D22: 100 | F22: Pound | G22: 0.21 | I22: 21 | J22: 0 | K22: 0 | M22: 0 | N22: 0 | O22: 21 | P22: 0 | Q22: 10500 | R22: 0
B23: Custom
C24: Custom Fertilize | D24: 1 | F24: Acre | G24: 8 | I24: 8 | J24: 0 | K24: 0 | M24: 0 | N24: 0 | O24: 8 | P24: 0 | Q24: 4000 | R24: 0
C25: Custom Harvest and Haul Silage | D25: 12 | F25: Ton | G25: 8 | I25: 96 | J25: 0 | K25: 0 | M25: 0 | N25: 0 | O25: 96 | P25: 0 | Q25: 48000 | R25: 0
B26: Herbicide
C27: Post Plant Herbicide | D27: 1 | F27: Acre | G27: 15 | I27: 15 | J27: 0 | K27: 0 | M27: 0 | N27: 0 | O27: 15 | P27: 0 | Q27: 7500 | R27: 0
D28: 0 | G28: 0 | I28: 0 | J28: 0 | K28: 0 | M28: 0 | N28: 0 | O28: 0 | P28: 0 | Q28: 0 | R28: 0
D29: 0 | G29: 0 | I29: 0 | J29: 0 | K29: 0 | M29: 0 | N29: 0 | O29: 0 | P29: 0 | Q29: 0 | R29: 0
D30: 0 | G30: 0 | I30: 0 | J30: =E30*H30 -> 0 | K30: 0 | M30: 0 | N30: =J30*L30 -> 0 | O30: 0 | P30: =+J30-N30 -> 0 | Q30: 0 | R30: =+J30*E$7 -> 0
B31: Machinery Labor
C32: Tractors/Self-Propelled | D32: 0.25 | F32: Hour | G32: 10 | I32: 2.5 | J32: =E32*H32 -> 0 | K32: 0 | M32: 0 | N32: =J32*L32 -> 0 | O32: 2.5 | P32: =+J32-N32 -> 0 | Q32: 1250 | R32: =+J32*E$7 -> 0
C33: Other Labor | D33: 0 | F33: Hour | G33: 10 | I33: 0 | J33: =E33*H33 -> 0 | K33: 0 | M33: 0 | N33: =J33*L33 -> 0 | O33: 0 | P33: =+J33-N33 -> 0 | Q33: 0 | R33: =+J33*E$7 -> 0
B35: Diesel Fuel
C36: Pickup/General Use Equipment | D36: 1 | F36: Acre | G36: 0 | I36: 0 | J36: =E36*H36 -> 0 | K36: 0 | M36: 0 | N36: =J36*L36 -> 0 | O36: 0 | P36: =+J36-N36 -> 0 | Q36: 0 | R36: =+J36*E$7 -> 0
C37: Tractors/Self-Propelled | D37: 1.91 | F37: Gallon | G37: 2.4 | I37: 4.584 | J37: =E37*H37 -> 0 | K37: 0 | M37: 0 | N37: =J37*L37 -> 0 | O37: 4.584 | P37: =+J37-N37 -> 0 | Q37: 2292 | R37: =+J37*E$7 -> 0
B39: Gasoline
C40: Pickup/General Use Equipment | D40: 1 | F40: Acre | G40: 0 | I40: 0 | J40: =E40*H40 -> 0 | K40: 0 | M40: 0 | N40: =J40*L40 -> 0 | O40: 0 | P40: =+J40-N40 -> 0 | Q40: 0 | R40: =+J40*E$7 -> 0
C41: Tractors/Self-Propelled | D41: 0 | F41: Gallon | G41: 2.15 | I41: 0 | J41: =E41*H41 -> 0 | K41: 0 | M41: 0 | N41: =J41*L41 -> 0 | O41: 0 | P41: =+J41-N41 -> 0 | Q41: 0 | R41: =+J41*E$7 -> 0
B43: Repairs & Maintenance
C44: Pickup/General Use Equipment | D44: 1 | F44: Acre | G44: 0 | I44: 0 | J44: =E44*H44 -> 0 | K44: 0 | M44: 0 | N44: =J44*L44 -> 0 | O44: 0 | P44: =+J44-N44 -> 0 | Q44: 0 | R44: =+J44*E$7 -> 0
C45: Irrigation Equipment | D45: 1 | F45: Acre | G45: 0 | I45: 0 | J45: 0 | K45: 0 | M45: 0 | N45: 0 | O45: 0 | P45: 0 | Q45: 0 | R45: 0
C46: Tractors/Self-Propelled | D46: 1 | F46: Acre | G46: 4.716894063 | I46: 4.716894063 | J46: 0 | K46: 0 | M46: 0 | N46: 0 | O46: 4.716894063 | P46: 0 | Q46: 2358.447031 | R46: 0
C47: Implements | D47: 1 | F47: Acre | G47: 10.5951886 | I47: 10.5951886 | J47: 0 | K47: 0 | M47: 0 | N47: 0 | O47: 10.5951886 | P47: 0 | Q47: 5297.594298 | R47: 0
I48: 0 | J48: 0 | K48: 0 | M48: 0 | N48: 0 | O48: 0 | P48: 0 | Q48: 0 | R48: 0
I49: 0 | J49: 0 | K49: 0 | M49: 0 | N49: 0 | O49: 0 | P49: 0 | Q49: 0 | R49: 0
B50: Interest on Credit Line | G50: 0.0475 | I50: 3.996831063 | J50: =+SUM(J17:J49)/2*H50 -> 0 | M50: 0 | N50: =+SUM(N17:N49)/2*L50 -> 0 | O50: 3.996831063 | P50: =+SUM(P17:P49)/2*L50 -> 0 | Q50: 1998.415531 | R50: =+J50*E$7 -> 0
A51: Total Variable Costs | I51: 352.0929137 | J51: =SUM(J18:J50) -> 0 | M51: 0 | N51: =SUM(N18:N50) -> 0 | O51: 352.0929137 | P51: =SUM(P18:P50) -> 0 | Q51: 176046.4569 | R51: =SUM(R18:R50) -> 0
A52: Planned Returns Above Variable Costs: | I52: 115.9070863 | J52: =+J13-J51 -> 0 | M52: 0 | N52: =+N13-N51 -> 0 | O52: 115.9070863 | P52: =+P13-P51 -> 0 | Q52: 57953.54314 | R52: =+R13-R51 -> 0
B53: Breakeven Price to Cover Variable Costs | G53: 29.34107614 | H53: =IF(E10=0,"n/a",(YVarExp-(YTotExp+YTotRet-J10))/E10) -> n/a | I53: Ton
Q54: Enterprise | R54: Enterprise
A55: FIXED COSTS | D55: Quantity | E55: Quantity | F55: Units | G55: $/Unit | H55: $/Unit | I55: Total | J55: Total | K55: Share | L55: Share | M55: Landlord | N55: Landlord | O55: Tenant | P55: Tenant | Q55: Total | R55: Total
B56: Machinery Depreciation
C57: Tractors/Self-Propelled | D57: 1 | F57: Acre | G57: 4.874123865 | I57: 4.874123865 | J57: =E57*H57 -> 0 | K57: 0 | M57: 0 | N57: =J57*L57 -> 0 | O57: 4.874123865 | P57: =+J57-N57 -> 0 | Q57: 2437.061932 | R57: =+J57*E$7 -> 0
C58: Implements | D58: 1 | F58: Acre | G58: 13.78597416 | I58: 13.78597416 | J58: 0 | K58: 0 | M58: 0 | N58: =J58*L58 -> 0 | O58: 13.78597416 | P58: 0 | Q58: 6892.987079 | R58: 0
B59: Equipment Investment
C60: Tractors/Self-Propelled | D60: 37.9709972 | F60: Dollars | G60: 0.06 | I60: 2.278259832 | J60: =E60*H60 -> 0 | K60: 0 | M60: 0 | N60: =J60*L60 -> 0 | O60: 2.278259832 | P60: =+J60-N60 -> 0 | Q60: 1139.129916 | R60: =+J60*E$7 -> 0
C61: Implements | D61: 58.9733339 | F61: Dollars | G61: 0.06 | I61: 3.538400034 | J61: 0 | K61: 0 | M61: 0 | N61: =J61*L61 -> 0 | O61: 3.538400034 | P61: 0 | Q61: 1769.200017 | R61: 0
B62: Salaried Labor | D62: 1 | F62: Acre | G62: 0 | I62: 0 | J62: 0 | K62: 0 | M62: 0 | N62: =J62*L62 -> 0 | O62: 0 | P62: =+J62-N62 -> 0 | Q62: 0 | R62: =+J62*E$7 -> 0
B63: Management Fee, Owner/Operator Labor | D63: 1 | F63: Acre | G63: 0 | I63: 0 | J63: 0 | K63: 0 | M63: 0 | N63: 0 | O63: 0 | P63: 0 | Q63: 0 | R63: 0
B64: Allocated Establishment Cost | D64: 1 | F64: Acre | G64: 0 | I64: 0 | J64: 0 | K64: 0 | M64: 0 | N64: 0 | O64: 0 | P64: 0 | Q64: 0 | R64: 0
B65: Dryland Crop Rent | D65: 1 | F65: Acre | G65: 30 | I65: 30 | J65: 0 | K65: 0 | M65: 0 | N65: 0 | O65: 30 | P65: 0 | Q65: 15000 | R65: 0
B66: Property Taxes | D66: 1 | F66: Acre | G66: 0 | I66: 0 | J66: 0 | K66: 0 | M66: 0 | N66: 0 | O66: 0 | P66: 0 | Q66: 0 | R66: 0
B67: Whole Farm Insurance | D67: 1 | F67: Acre | G67: 0 | I67: 0 | J67: 0 | K67: 0 | M67: 0 | N67: 0 | O67: 0 | P67: 0 | Q67: 0 | R67: 0
D68: 1 | G68: 0 | I68: 0 | J68: 0 | K68: 0 | M68: 0 | N68: 0 | O68: 0 | P68: 0 | Q68: 0 | R68: 0
D69: 1 | G69: 0 | I69: 0 | J69: =E69*H69 -> 0 | K69: 0 | M69: 0 | N69: 0 | O69: 0 | P69: 0 | Q69: 0 | R69: 0
A70: Total Fixed Costs | I70: 54.47675789 | J70: =+SUM(J57:J69) -> 0 | M70: 0 | N70: =+SUM(N57:N69) -> 0 | O70: 54.47675789 | P70: =+SUM(P57:P69) -> 0 | Q70: 27238.37895 | R70: =+SUM(R57:R69) -> 0
A71: Total Specified Costs | I71: 406.5696716 | J71: =+J51+J70 -> 0 | M71: 0 | N71: =+N51+N70 -> 0 | O71: 406.5696716 | P71: =+P51+P70 -> 0 | Q71: 203284.8358 | R71: =+R51+R70 -> 0
A73: Returns Above Specified Costs | I73: 61.43032839 | J73: =+J13-J71 -> 0 | M73: 0 | N73: =+N13-N71 -> 0 | O73: 61.43032839 | P73: =+P13-P71 -> 0 | Q73: 30715.16419 | R73: =+R13-R71 -> 0
A75: Breakeven Price to Cover Total Costs | G75: 33.88080597 | H75: =IF(E10=0,"n/a",(YTotExp-(YTotExp+YTotRet-J10))/E10) -> n/a | I75: Ton
D77: Example Breakeven Prices
B78: Example | C78: Example | D78: To Cover | G78: To Cover
B79: Yield | C79: Yield | D79: Variable | G79: Total
B80: Percent | C80: Ton | D80: Costs | G80: Costs
B81: 0.75 | C81: 9 | D81: 39.12143486 | G81: 45.17440796
B82: 0.9 | C82: 10.8 | D82: 32.60119571 | G82: 37.64533996
B83: 1 | C83: 12 | D83: 29.34107614 | G83: 33.88080597
B84: 1.1 | C84: 13.2 | D84: 26.67370558 | G84: 30.8007327
B85: 1.25 | C85: 15 | D85: 23.47286091 | G85: 27.10464477
D87: Your Breakeven Prices
B88: Your | C88: Your | E88: To Cover | H88: To Cover
B89: Yield | C89: Yield | E89: Variable | H89: Total
B90: Percent | C90: Ton | E90: Costs | H90: Costs
B91: 0.75 | C91: =E10*YPER1 -> 0 | E91: =IF($E$10=0,0,(YVarExp-(YTotExp+YTotRet-J10))/($E$10*YPER1)) -> 0 | H91: =IF($E$10=0,0,(YTotExp-(YTotExp+YTotRet-J10))/($E$10*YPER1)) -> 0
B92: 0.9 | C92: =E10*YPER2 -> 0 | E92: =IF($E$10=0,0,(YVarExp-(YTotExp+YTotRet-J10))/($E$10*YPER2)) -> 0 | H92: =IF($E$10=0,0,(YTotExp-(YTotExp+YTotRet-J10))/($E$10*YPER2)) -> 0
B93: 1 | C93: =+E10 -> 0 | E93: =IF($E$10=0,0,(YVarExp-(YTotExp+YTotRet-J10))/($E$10*YPER3)) -> 0 | H93: =IF($E$10=0,0,(YTotExp-(YTotExp+YTotRet-J10))/($E$10*YPER3)) -> 0
B94: 1.1 | C94: =E10*YPER4 -> 0 | E94: =IF($E$10=0,0,(YVarExp-(YTotExp+YTotRet-J10))/($E$10*YPER4)) -> 0 | H94: =IF($E$10=0,0,(YTotExp-(YTotExp+YTotRet-J10))/($E$10*YPER4)) -> 0
B95: 1.25 | C95: =E10*YPER5 -> 0 | E95: =IF($E$10=0,0,(YVarExp-(YTotExp+YTotRet-J10))/($E$10*YPER5)) -> 0 | H95: =IF($E$10=0,0,(YTotExp-(YTotExp+YTotRet-J10))/($E$10*YPER5)) -> 0
A97: Developed by Jason Johnson, Associate Professor and Extension Economist, Texas A&M AgriLife Extension, 254-968-4144.
A99: Information presented is prepared solely as a general guide and not intended to recognize or predict the costs and returns from any one operation. Brand names are mentioned only as examples and imply no endorsement.

Sheet CornSilageIrrigated
A1: Projections for Planning Purposes Only -- Not to be Used without Updating
A2: 2021 Estimated Costs and Returns per Acre
A3: RR Corn Silage - Irrigated
A4: Enter your name for this budget in the cell above.
A5: Enter Your Values in the cells highlighed in MAROON.
E6: Your Acres | R6: Your
C7: Crop Acres | D7: 500 | L7: Your | Q7: Enterprise | R7: Enterprise
E8: Your | H8: Your | I8: Cash | J8: Your | K8: Landlord | L8: Landlord | N8: Your | P8: Your | Q8: Total | R8: Total
A9: REVENUE | D9: Quantity | E9: Quantity | F9: Units | G9: $/Unit | H9: $/Unit | I9: Total | J9: Total | K9: Share | L9: Share | M9: Landlord | N9: Landlord | O9: Tenant | P9: Tenant | Q9: (500 acres) | R9: ="(" & E7 & " acres)" -> ( acres)
B10: Corn Silage | D10: 22 | F10: Ton | G10: 39 | I10: 858 | J10: =E10*H10 -> 0 | K10: 0 | M10: 0 | N10: =J10*L10 -> 0 | O10: 858 | P10: =+J10-N10 -> 0 | Q10: 429000 | R10: =+J10*E$7 -> 0
D11: 0 | G11: 0 | I11: 0 | J11: 0 | K11: 0 | M11: 0 | N11: 0 | O11: 0 | P11: =+J11-N11 -> 0 | Q11: 0 | R11: 0
D12: 0 | G12: 0 | I12: 0 | J12: 0 | K12: 0 | M12: 0 | N12: 0 | O12: 0 | P12: 0 | Q12: 0 | R12: 0
A13: Total Revenue | I13: 858 | J13: =SUM(J10:J12) -> 0 | M13: 0 | N13: =SUM(N10:N12) -> 0 | O13: 858 | P13: =SUM(P10:P12) -> 0 | Q13: 429000 | R13: =SUM(R10:R12) -> 0
Q14: Enterprise | R14: Enterprise
A15: VARIABLE COSTS | D15: Quantity | E15: Quantity | F15: Units | G15: $/Unit | H15: $/Unit | I15: Total | J15: Total | K15: Share | L15: Share | M15: Landlord | N15: Landlord | O15: Tenant | P15: Tenant | Q15: Total | R15: Total
A16: Production Costs
B17: Seed
C18: HR Corn Silage Seed | D18: 32 | F18: Thousand | G18: 4 | I18: 128 | J18: =E18*H18 -> 0 | K18: 0 | M18: 0 | N18: =J18*L18 -> 0 | O18: 128 | P18: =+J18-N18 -> 0 | Q18: 64000 | R18: =+J18*E$7 -> 0
B19: Fertilizer
C20: 18-46-0 | D20: 150 | F20: Pound | G20: 0.29 | I20: 43.5 | J20: 0 | K20: 0 | M20: 0 | N20: 0 | O20: 43.5 | P20: 0 | Q20: 21750 | R20: 0
C21: 46-0-0 | D21: 478 | F21: Pound | G21: 0.21 | I21: 100.38 | J21: 0 | K21: 0 | M21: 0 | N21: 0 | O21: 100.38 | P21: 0 | Q21: 50190 | R21: 0
C22: 0-0-60 | D22: 100 | F22: Pound | G22: 0.21 | I22: 21 | J22: 0 | K22: 0 | M22: 0 | N22: 0 | O22: 21 | P22: 0 | Q22: 10500 | R22: 0
B23: Custom
C24: Custom Fertilize | D24: 1 | F24: Acre | G24: 8 | I24: 8 | J24: 0 | K24: 0 | M24: 0 | N24: 0 | O24: 8 | P24: 0 | Q24: 4000 | R24: 0
C25: Custom Harvest and Haul Silage | D25: 22 | F25: Ton | G25: 8 | I25: 176 | J25: 0 | K25: 0 | M25: 0 | N25: 0 | O25: 176 | P25: 0 | Q25: 88000 | R25: 0
B26: Herbicide
C27: Post Plant Herbicide | D27: 1 | F27: Acre | G27: 15 | I27: 15 | J27: 0 | K27: 0 | M27: 0 | N27: 0 | O27: 15 | P27: 0 | Q27: 7500 | R27: 0
D28: 0 | G28: 0 | I28: 0 | J28: 0 | K28: 0 | M28: 0 | N28: 0 | O28: 0 | P28: 0 | Q28: 0 | R28: 0
D29: 0 | G29: 0 | I29: 0 | J29: 0 | K29: 0 | M29: 0 | N29: 0 | O29: 0 | P29: 0 | Q29: 0 | R29: 0
D30: 0 | G30: 0 | I30: 0 | J30: =E30*H30 -> 0 | K30: 0 | M30: 0 | N30: =J30*L30 -> 0 | O30: 0 | P30: =+J30-N30 -> 0 | Q30: 0 | R30: =+J30*E$7 -> 0
B31: Irrigation
C32: Energy Cost | D32: 20 | F32: AcreInch | G32: 10 | I32: 200 | J32: =E32*H32 -> 0 | K32: 0 | M32: 0 | N32: =J32*L32 -> 0 | O32: 200 | P32: =+J32-N32 -> 0 | Q32: 100000 | R32: =+J32*E$7 -> 0
B33: Machinery Labor
C34: Tractors/Self-Propelled | D34: 0.25 | F34: Hour | G34: 10 | I34: 2.5 | J34: =E34*H34 -> 0 | K34: 0 | M34: 0 | N34: =J34*L34 -> 0 | O34: 2.5 | P34: =+J34-N34 -> 0 | Q34: 1250 | R34: =+J34*E$7 -> 0
C35: Other Labor | D35: 0 | F35: Hour | G35: 10 | I35: 0 | J35: =E35*H35 -> 0 | K35: 0 | M35: 0 | N35: =J35*L35 -> 0 | O35: 0 | P35: =+J35-N35 -> 0 | Q35: 0 | R35: =+J35*E$7 -> 0
B37: Diesel Fuel
C38: Pickup/General Use Equipment | D38: 1 | F38: Acre | G38: 0 | I38: 0 | J38: =E38*H38 -> 0 | K38: 0 | M38: 0 | N38: =J38*L38 -> 0 | O38: 0 | P38: =+J38-N38 -> 0 | Q38: 0 | R38: =+J38*E$7 -> 0
C39: Tractors/Self-Propelled | D39: 1.91 | F39: Gallon | G39: 2.4 | I39: 4.584 | J39: =E39*H39 -> 0 | K39: 0 | M39: 0 | N39: =J39*L39 -> 0 | O39: 4.584 | P39: =+J39-N39 -> 0 | Q39: 2292 | R39: =+J39*E$7 -> 0
B41: Gasoline
C42: Pickup/General Use Equipment | D42: 1 | F42: Acre | G42: 0 | I42: 0 | J42: =E42*H42 -> 0 | K42: 0 | M42: 0 | N42: =J42*L42 -> 0 | O42: 0 | P42: =+J42-N42 -> 0 | Q42: 0 | R42: =+J42*E$7 -> 0
C43: Tractors/Self-Propelled | D43: 0 | F43: Gallon | G43: 2.15 | I43: 0 | J43: =E43*H43 -> 0 | K43: 0 | M43: 0 | N43: =J43*L43 -> 0 | O43: 0 | P43: =+J43-N43 -> 0 | Q43: 0 | R43: =+J43*E$7 -> 0
B45: Repairs & Maintenance
C46: Pickup/General Use Equipment | D46: 1 | F46: Acre | G46: 0 | I46: 0 | J46: =E46*H46 -> 0 | K46: 0 | M46: 0 | N46: =J46*L46 -> 0 | O46: 0 | P46: =+J46-N46 -> 0 | Q46: 0 | R46: =+J46*E$7 -> 0
C47: Irrigation Equipment | D47: 1 | F47: Acre | G47: 0 | I47: 0 | J47: 0 | K47: 0 | M47: 0 | N47: 0 | O47: 0 | P47: 0 | Q47: 0 | R47: 0
C48: Tractors/Self-Propelled | D48: 1 | F48: Acre | G48: 4.716894063 | I48: 4.716894063 | J48: 0 | K48: 0 | M48: 0 | N48: 0 | O48: 4.716894063 | P48: 0 | Q48: 2358.447031 | R48: 0
C49: Implements | D49: 1 | F49: Acre | G49: 10.5951886 | I49: 10.5951886 | J49: 0 | K49: 0 | M49: 0 | N49: 0 | O49: 10.5951886 | P49: 0 | Q49: 5297.594298 | R49: 0
I50: 0 | J50: 0 | K50: 0 | M50: 0 | N50: 0 | O50: 0 | P50: 0 | Q50: 0 | R50: 0
I51: 0 | J51: 0 | K51: 0 | M51: 0 | N51: 0 | O51: 0 | P51: 0 | Q51: 0 | R51: 0
B52: Interest on Credit Line | G52: 0.0475 | I52: 8.614614 | J52: =+SUM(J17:J51)/2*H52 -> 0 | M52: 0 | N52: =+SUM(N17:N51)/2*L52 -> 0 | O52: 8.614614 | P52: =+SUM(P17:P51)/2*L52 -> 0 | Q52: 4307.307 | R52: =+J52*E$7 -> 0
A53: Total Variable Costs | I53: 722.8906967 | J53: =SUM(J18:J52) -> 0 | M53: 0 | N53: =SUM(N18:N52) -> 0 | O53: 722.8906967 | P53: =SUM(P18:P52) -> 0 | Q53: 361445.3483 | R53: =SUM(R18:R52) -> 0
A54: Planned Returns Above Variable Costs: | I54: 135.1093033 | J54: =+J13-J53 -> 0 | M54: 0 | N54: =+N13-N53 -> 0 | O54: 135.1093033 | P54: =+P13-P53 -> 0 | Q54: 67554.65167 | R54: =+R13-R53 -> 0
B55: Breakeven Price to Cover Variable Costs | G55: 32.85866803 | H55: =IF(E10=0,"n/a",(YVarExp-(YTotExp+YTotRet-J10))/E10) -> n/a | I55: Ton
Q56: Enterprise | R56: Enterprise
A57: FIXED COSTS | D57: Quantity | E57: Quantity | F57: Units | G57: $/Unit | H57: $/Unit | I57: Total | J57: Total | K57: Share | L57: Share | M57: Landlord | N57: Landlord | O57: Tenant | P57: Tenant | Q57: Total | R57: Total
B58: Machinery Depreciation
C59: Tractors/Self-Propelled | D59: 1 | F59: Acre | G59: 4.874123865 | I59: 4.874123865 | J59: =E59*H59 -> 0 | K59: 0 | M59: 0 | N59: =J59*L59 -> 0 | O59: 4.874123865 | P59: =+J59-N59 -> 0 | Q59: 2437.061932 | R59: =+J59*E$7 -> 0
C60: Implements | D60: 1 | F60: Acre | G60: 13.78597416 | I60: 13.78597416 | J60: 0 | K60: 0 | M60: 0 | N60: =J60*L60 -> 0 | O60: 13.78597416 | P60: 0 | Q60: 6892.987079 | R60: 0
B61: Equipment Investment
C62: Tractors/Self-Propelled | D62: 37.9709972 | F62: Dollars | G62: 0.06 | I62: 2.278259832 | J62: =E62*H62 -> 0 | K62: 0 | M62: 0 | N62: =J62*L62 -> 0 | O62: 2.278259832 | P62: =+J62-N62 -> 0 | Q62: 1139.129916 | R62: =+J62*E$7 -> 0
C63: Implements | D63: 58.9733339 | F63: Dollars | G63: 0.06 | I63: 3.538400034 | J63: 0 | K63: 0 | M63: 0 | N63: =J63*L63 -> 0 | O63: 3.538400034 | P63: 0 | Q63: 1769.200017 | R63: 0
B64: Salaried Labor | D64: 1 | F64: Acre | G64: 0 | I64: 0 | J64: 0 | K64: 0 | M64: 0 | N64: =J64*L64 -> 0 | O64: 0 | P64: =+J64-N64 -> 0 | Q64: 0 | R64: =+J64*E$7 -> 0
B65: Management Fee, Owner/Operator Labor | D65: 1 | F65: Acre | G65: 0 | I65: 0 | J65: 0 | K65: 0 | M65: 0 | N65: 0 | O65: 0 | P65: 0 | Q65: 0 | R65: 0
B66: Allocated Establishment Cost | D66: 1 | F66: Acre | G66: 0 | I66: 0 | J66: 0 | K66: 0 | M66: 0 | N66: 0 | O66: 0 | P66: 0 | Q66: 0 | R66: 0
B67: Irrigated Land Rent | D67: 1 | F67: Acre | G67: 50 | I67: 50 | J67: 0 | K67: 0 | M67: 0 | N67: 0 | O67: 50 | P67: 0 | Q67: 25000 | R67: 0
B68: Property Taxes | D68: 1 | F68: Acre | G68: 0 | I68: 0 | J68: 0 | K68: 0 | M68: 0 | N68: 0 | O68: 0 | P68: 0 | Q68: 0 | R68: 0
B69: Whole Farm Insurance | D69: 1 | F69: Acre | G69: 0 | I69: 0 | J69: 0 | K69: 0 | M69: 0 | N69: 0 | O69: 0 | P69: 0 | Q69: 0 | R69: 0
D70: 1 | G70: 0 | I70: 0 | J70: 0 | K70: 0 | M70: 0 | N70: 0 | O70: 0 | P70: 0 | Q70: 0 | R70: 0
D71: 1 | G71: 0 | I71: 0 | J71: =E71*H71 -> 0 | K71: 0 | M71: 0 | N71: 0 | O71: 0 | P71: 0 | Q71: 0 | R71: 0
A72: Total Fixed Costs | I72: 74.47675789 | J72: =+SUM(J59:J71) -> 0 | M72: 0 | N72: =+SUM(N59:N71) -> 0 | O72: 74.47675789 | P72: =+SUM(P59:P71) -> 0 | Q72: 37238.37895 | R72: =+SUM(R59:R71) -> 0
A73: Total Specified Costs | I73: 797.3674545 | J73: =+J53+J72 -> 0 | M73: 0 | N73: =+N53+N72 -> 0 | O73: 797.3674545 | P73: =+P53+P72 -> 0 | Q73: 398683.7273 | R73: =+R53+R72 -> 0
A75: Returns Above Specified Costs | I75: 60.63254545 | J75: =+J13-J73 -> 0 | M75: 0 | N75: =+N13-N73 -> 0 | O75: 60.63254545 | P75: =+P13-P73 -> 0 | Q75: 30316.27273 | R75: =+R13-R73 -> 0
A77: Breakeven Price to Cover Total Costs | G77: 36.24397521 | H77: =IF(E10=0,"n/a",(YTotExp-(YTotExp+YTotRet-J10))/E10) -> n/a | I77: Ton
D79: Example Breakeven Prices
B80: Example | C80: Example | D80: To Cover | G80: To Cover
B81: Yield | C81: Yield | D81: Variable | G81: Total
B82: Percent | C82: Ton | D82: Costs | G82: Costs
B83: 0.75 | C83: 16.5 | D83: 43.81155737 | G83: 48.32530028
B84: 0.9 | C84: 19.8 | D84: 36.50963114 | G84: 40.27108356
B85: 1 | C85: 22 | D85: 32.85866803 | G85: 36.24397521
B86: 1.1 | C86: 24.2 | D86: 29.87151639 | G86: 32.94906837
B87: 1.25 | C87: 27.5 | D87: 26.28693442 | G87: 28.99518017
D89: Your Breakeven Prices
B90: Your | C90: Your | E90: To Cover | H90: To Cover
B91: Yield | C91: Yield | E91: Variable | H91: Total
B92: Percent | C92: Ton | E92: Costs | H92: Costs
B93: 0.75 | C93: =E10*YPER1 -> 0 | E93: =IF($E$10=0,0,(YVarExp-(YTotExp+YTotRet-J10))/($E$10*YPER1)) -> 0 | H93: =IF($E$10=0,0,(YTotExp-(YTotExp+YTotRet-J10))/($E$10*YPER1)) -> 0
B94: 0.9 | C94: =E10*YPER2 -> 0 | E94: =IF($E$10=0,0,(YVarExp-(YTotExp+YTotRet-J10))/($E$10*YPER2)) -> 0 | H94: =IF($E$10=0,0,(YTotExp-(YTotExp+YTotRet-J10))/($E$10*YPER2)) -> 0
B95: 1 | C95: =+E10 -> 0 | E95: =IF($E$10=0,0,(YVarExp-(YTotExp+YTotRet-J10))/($E$10*YPER3)) -> 0 | H95: =IF($E$10=0,0,(YTotExp-(YTotExp+YTotRet-J10))/($E$10*YPER3)) -> 0
B96: 1.1 | C96: =E10*YPER4 -> 0 | E96: =IF($E$10=0,0,(YVarExp-(YTotExp+YTotRet-J10))/($E$10*YPER4)) -> 0 | H96: =IF($E$10=0,0,(YTotExp-(YTotExp+YTotRet-J10))/($E$10*YPER4)) -> 0
B97: 1.25 | C97: =E10*YPER5 -> 0 | E97: =IF($E$10=0,0,(YVarExp-(YTotExp+YTotRet-J10))/($E$10*YPER5)) -> 0 | H97: =IF($E$10=0,0,(YTotExp-(YTotExp+YTotRet-J10))/($E$10*YPER5)) -> 0
A99: Developed by Jason Johnson, Associate Professor and Extension Economist, Texas A&M AgriLife Extension, 254-968-4144.
A101: Information presented is prepared solely as a general guide and not intended to recognize or predict the costs and returns from any one operation. Brand names are mentioned only as examples and imply no endorsement.

Sheet CowCalfImprove
A1: Projections for Planning Purposes Only -- Not to be Used without Updating
A2: 2021 Estimated Costs and Returns per Animal Unit
A3: Cow-Calf Improved Pasture
A4: Enter your name for this budget in the cell above.
A5: Enter Your Values in the cells highlighed in MAROON.
E6: Your Cows
B7: Animal Units (AU) | D7: 40 | F7: Animal Unit | N7: Your
B8: Breeding Females | D8: 40 | F8: Calf | G8: Your | M8: Enterprise | N8: Enterprise
E9: Your | F9: Quantity | G9: Quantity | J9: Your | L9: Your | M9: Total | N9: Total
A10: REVENUE | D10: Head | E10: Head | F10: Per Head | G10: Per Head | H10: Units | I10: $/Unit | J10: $/Unit | K10: Total | L10: Total | M10: ="(" & D7 & " AUs)" -> (40 AUs) | N10: ="(" & E7 & " AUs)" -> ( AUs)
B11: Steer | D11: 0.425 | F11: 5.5 | H11: CWT | I11: 145 | K11: 338.9375 | L11: =+E11*G11*J11 -> 0 | M11: 13557.5 | N11: =+L11*E$7 -> 0
B12: Heifer | D12: 0.3 | F12: 5.25 | H12: CWT | I12: 135 | K12: 212.625 | L12: =+E12*G12*J12 -> 0 | M12: 8505 | N12: =+L12*E$7 -> 0
B13: Cull Cow | D13: 0.1 | F13: 9 | H13: CWT | I13: 52 | K13: 46.8 | L13: 0 | M13: 1872 | N13: 0
B14: Cull Bull | D14: 0.01 | F14: 16 | H14: CWT | I14: 65 | K14: 10.4 | L14: 0 | M14: 416 | N14: 0
D15: 0 | F15: 0 | I15: 0 | K15: 0 | L15: 0 | M15: 0 | N15: 0
D16: 0 | F16: 0 | I16: 0 | K16: 0 | L16: 0 | M16: 0 | N16: 0
A17: Total Revenue | F17: 391.25 | K17: 608.7625 | L17: =+SUM(L11:L16) -> 0 | M17: 24350.5 | N17: =+SUM(N11:N16) -> 0
F18: 497.25
F19: 106 | M19: Enterprise | N19: Enterprise
A20: VARIABLE COSTS | F20: Quantity | G20: Quantity | H20: Units | I20: $/Unit | J20: $/Unit | K20: Total | L20: Total | M20: Total | N20: Total
A21: Production Costs
B22: Miscellaneous
F23: 1 | I23: 0 | K23: 0 | L23: =+J23*G23 -> 0 | M23: 0 | N23: =+L23*E$7 -> 0
F24: 1 | I24: 0 | K24: 0 | L24: 0 | M24: 0 | N24: 0
B25: Marketing Expense | F25: 1 | H25: AU | I25: 12 | K25: 12 | L25: 0 | M25: 480 | N25: 0
B26: Feed
C27: Salt & Mineral - Cow | F27: 30 | H27: Pound | I27: 0.3 | K27: 9 | L27: =+J27*G27 -> 0 | M27: 360 | N27: =+L27*E$7 -> 0
C28: Supplement - Cow | F28: 600 | H28: Pound | I28: 0.2 | K28: 120 | L28: 0 | M28: 4800 | N28: 0
C29: Bermuda Hay | F29: 2 | H29: Roll | I29: 70 | K29: 140 | L29: 0 | M29: 5600 | N29: 0
F30: 0 | I30: 0 | K30: 0 | L30: 0 | M30: 0 | N30: 0
F31: 0 | I31: 0 | K31: 0 | L31: 0 | M31: 0 | N31: 0
F32: 0 | I32: 0 | K32: 0 | L32: 0 | M32: 0 | N32: 0
B33: Vet. Medicine
C34: Vet. Medicine - Cow | F34: 1 | H34: Head | I34: 10 | K34: 10 | L34: =+J34*G34 -> 0 | M34: 400 | N34: =+L34*E$7 -> 0
F35: 0 | I35: 0 | K35: 0 | L35: 0 | M35: 0 | N35: 0
F36: 0 | I36: 0 | K36: 0 | L36: 0 | M36: 0 | N36: 0
F37: 0 | I37: 0 | K37: 0 | L37: 0 | M37: 0 | N37: 0
B38: Fuel | F38: 1 | H38: AU | I38: 14.208 | K38: 14.208 | L38: 0 | M38: 568.32 | N38: 0
B39: Lube (As a % of fuel) | F39: 0.1 | H39: Percent | I39: 14.208 | K39: 1.4208 | L39: 0 | M39: 56.832 | N39: 0
B40: Repairs | F40: 1 | H40: AU | I40: 5.960048438 | K40: 5.960048438 | L40: 0 | M40: 238.4019375 | N40: 0
B41: Labor | F41: 8.508 | H41: Hours | I41: 5.186304654 | K41: 44.12508 | L41: 0 | M41: 1765.0032 | N41: 0
B42: Utilities | F42: 1 | H42: AU | I42: 0 | K42: 0 | L42: 0 | M42: 0 | N42: 0
K43: 0 | L43: =+J43*G43 -> 0 | M43: 0 | N43: 0
B44: Purchase Breeding Female | F44: 1 | I44: 0 | K44: 0 | L44: 0 | M44: 0 | N44: 0
B45: Purchase Breeding Male | F45: 1 | I45: 0 | K45: 0 | L45: 0 | M45: 0 | N45: 0
B46: Purchase Older Repalcement Female | F46: 1 | I46: 0 | K46: 0 | L46: 0 | M46: 0 | N46: 0
B47: Purchase Younger Repalcement Female | F47: 1 | I47: 0 | K47: 0 | L47: 0 | M47: 0 | N47: 0
B48: Interest on Credit Line | I48: 0.0475 | K48: 24.82574956 | L48: =+SUM(L21:L47)/2*J48 -> 0 | M48: 993.0299823 | N48: 0
A49: Total Variable Costs | K49: 381.539678 | L49: =+SUM(L23:L48) -> 0 | M49: 15261.58712 | N49: =+SUM(N23:N48) -> 0
A51: Planned Returns Above Variable Costs: | K51: 227.222822 | L51: =+L17-L49 -> 0 | M51: 9088.91288 | N51: =+N17-N49 -> 0
B52: Average Calf Breakeven Price to Cover Variable Costs | I52: 82.89832025 | J52: =IF((E11*G11+E12*G12)=0,"n/a",(L49-SUM(L13:L16))/(E11*G11+E12*G12)) -> n/a | K52: CWT
M53: Enterprise | N53: Enterprise
A54: FIXED COSTS | F54: Quantity | G54: Quantity | H54: Units | I54: $/Unit | J54: $/Unit | K54: Total | L54: Total | M54: Total | N54: Total
B55: Depreciation - Equipment | F55: 1 | H55: AU | I55: 41.88592578 | K55: 41.88592578 | L55: =+G55*J55 -> 0 | M55: 1675.437031 | N55: =+L55*E$7 -> 0
B56: Depreciation - Livestock | F56: 1 | H56: AU | I56: 14.98333333 | K56: 14.98333333 | L56: 0 | M56: 599.3333333 | N56: 0
B57: Equipment Investment | F57: 1027.089934 | H57: dollars | I57: 0.06 | K57: 61.62539606 | L57: 0 | M57: 2465.015843 | N57: 0
B58: Insurance | F58: 1 | H58: AU | I58: 0 | K58: 0 | L58: 0 | M58: 0 | N58: 0
B59: Management Fee, Owner/Operator Labor | F59: 1 | H59: AU | I59: 0 | K59: 0 | L59: =+J59*G59 -> 0 | M59: 0 | N59: 0
B60: Salaried Labor | F60: 1 | H60: AU | I60: 0 | K60: 0 | L60: =+J60*G60 -> 0 | M60: 0 | N60: 0
B61: Pasture Cost | F61: 8 | H61: Acres | I61: 25 | K61: 200 | L61: 0 | M61: 8000 | N61: 0
K62: 0 | L62: =+G62*J62 -> 0 | M62: 0 | N62: 0
K63: 0 | L63: 0 | M63: 0 | N63: 0
A64: Total Fixed Costs | K64: 318.4946552 | L64: =+SUM(L55:L61) -> 0 | M64: 12739.78621 | N64: =+SUM(N55:N61) -> 0
A65: Total Costs | K65: 700.0343332 | L65: =+L49+L64 -> 0 | M65: 28001.37333 | N65: =+N49+N64 -> 0
A66: Planned Returns to Management, Risk, and Profit: | K66: -91.27183317 | L66: =+L17-L65 -> 0 | M66: -3650.873327 | N66: =+N17-N65 -> 0
B67: Average Calf Breakeven Price to Cover Total Costs | I67: 164.302705 | J67: =IF((E11*G11+E12*G12)=0,"n/a",(L65-SUM(L13:L16))/(E11*G11+E12*G12)) -> n/a | K67: CWT
C69: Sensitivity Analysis for Example
C70: Example Weaning Percent | D70: Example Gross Sales per Animal Unit | F70: Pounds Produced per Animal Unit | H70: Example Breakeven Calf Pay Weight to Cover Total Cost | K70: Example Average Breakeven Price to Cover Total Cost
C71: 0.91 | D71: 647.6963235 | F71: 524.8676471 | H71: 562.9549786 | K71: 153.4695596
C72: 0.88 | D72: 628.2294118 | F72: 511.0588235 | H72: 584.6070931 | K72: 158.7014764
C73: 0.85 | D73: 608.7625 | F73: 497.25 | H73: 607.9913769 | K73: 164.302705
C74: 0.82 | D74: 589.2955882 | F74: 483.4411765 | H74: 633.3243509 | K74: 170.3137795
C75: 0.79 | D75: 569.8286765 | F75: 469.6323529 | H75: 660.8601923 | K75: 176.7813914
D77: ="Example Male "&F8&" Price" -> Example Male Calf Price | K77: =+I11 -> 145
D78: ="Example Female "&F8&" Price" -> Example Female Calf Price | K78: =+I12 -> 135
D79: ="Example Weighted Average "&F8&" Price ($/cwt)" -> Example Weighted Average Calf Price ($/cwt) | K79: =+(K11+K12)/(D11*F11+D12*F12) -> 140.9744409
C80: Sensitivity Analysis for Your Values
C81: Your Weaning Percent | D81: ="Your Gross Sales per "&F7 -> Your Gross Sales per Animal Unit | F81: ="Pounds Produced per "&F7 -> Pounds Produced per Animal Unit | H81: ="Your Breakeven "&F8&" Pay Weight to Cover Total Cost" -> Your Breakeven Calf Pay Weight to Cover Total Cost | K81: Your Average Breakeven Price to Cover Total Cost
C82: =+C83+C71-C72 -> 1.06 | D82: =+IF($C$84=0,0,$L$17-$L$11-$L$12+($L$11+$L$12)*C82/$C$84) -> 0 | F82: =IF($C$84=0,0,$M$88*C82/$C$84+$M$89) -> 0 | H82: =IF($D$84=0,0,(YTotExp-(YTotRet+YTotExp-$L$11-$L$12))/(YPrice/100)/(C82-$E$13*$E$7/$E$8)/($E$8/$E$7)) -> 0 | K82: =IF(F82-$M$89=0,0,(YTotExp-(YTotRet+YTotExp-$L$11-$L$12))/(F82-$M$89)*100) -> 0
C83: =+C84+C72-C73 -> 1.03 | D83: =+IF($C$84=0,0,$L$17-$L$11-$L$12+($L$11+$L$12)*C83/$C$84) -> 0 | F83: =IF($C$84=0,0,$M$88*C83/$C$84+$M$89) -> 0 | H83: =IF($D$84=0,0,(YTotExp-(YTotRet+YTotExp-$L$11-$L$12))/(YPrice/100)/(C83-$E$13*$E$7/$E$8)/($E$8/$E$7)) -> 0 | K83: =IF(F83-$M$89=0,0,(YTotExp-(YTotRet+YTotExp-$L$11-$L$12))/(F83-$M$89)*100) -> 0
C84: 1 | D84: =+L17 -> 0 | F84: =M88+M89 -> 0 | H84: =IF($D$84=0,0,(YTotExp-(YTotRet+YTotExp-$L$11-$L$12))/(YPrice/100)/(C84-$E$13*$E$7/$E$8)/($E$8/$E$7)) -> 0 | K84: =IF(F84-$M$89=0,0,(YTotExp-(YTotRet+YTotExp-$L$11-$L$12))/(F84-$M$89)*100) -> 0
C85: =+C84+C74-C73 -> 0.97 | D85: =+IF($C$84=0,0,$L$17-$L$11-$L$12+($L$11+$L$12)*C85/$C$84) -> 0 | F85: =IF($C$84=0,0,$M$88*C85/$C$84+$M$89) -> 0 | H85: =IF($D$84=0,0,(YTotExp-(YTotRet+YTotExp-$L$11-$L$12))/(YPrice/100)/(C85-$E$13*$E$7/$E$8)/($E$8/$E$7)) -> 0 | K85: =IF(F85-$M$89=0,0,(YTotExp-(YTotRet+YTotExp-$L$11-$L$12))/(F85-$M$89)*100) -> 0
C86: =+C85+C75-C74 -> 0.94 | D86: =+IF($C$84=0,0,$L$17-$L$11-$L$12+($L$11+$L$12)*C86/$C$84) -> 0 | F86: =IF($C$84=0,0,$M$88*C86/$C$84+$M$89) -> 0 | H86: =IF($D$84=0,0,(YTotExp-(YTotRet+YTotExp-$L$11-$L$12))/(YPrice/100)/(C86-$E$13*$E$7/$E$8)/($E$8/$E$7)) -> 0 | K86: =IF(F86-$M$89=0,0,(YTotExp-(YTotRet+YTotExp-$L$11-$L$12))/(F86-$M$89)*100) -> 0
D88: ="Your Male "&F8&" Price" -> Your Male Calf Price | K88: =+J11 -> 0 | M88: =(E11*G11+E12*G12)*100 -> 0
D89: ="Your Female "&F8&" Price" -> Your Female Calf Price | K89: =+J12 -> 0 | M89: =(E13*G13+E14*G14)*100 -> 0
D90: ="Your Weighted Average "&F8&" Price ($/cwt)" -> Your Weighted Average Calf Price ($/cwt) | K90: =+IF((E11*G11+E12*G12)=0,0,(L11+L12)/(E11*G11+E12*G12)) -> 0
A92: Developed by Jason Johnson, Associate Professor and Extension Economist, Texas A&M AgriLife Extension, 254-968-4144.
A94: Information presented is prepared solely as a general guide and not intended to recognize or predict the costs and returns from any one operation. Brand names are mentioned only as examples and imply no endorsement.

Sheet CowCalfNative
A1: Projections for Planning Purposes Only -- Not to be Used without Updating
A2: 2021 Estimated Costs and Returns per Animal Unit
A3: Cow-Calf Native Pasture
A4: Enter your name for this budget in the cell above.
A5: Enter Your Values in the cells highlighed in MAROON.
E6: Your Cows
B7: Animal Units (AU) | D7: 40 | F7: Animal Unit | N7: Your
B8: Breeding Females | D8: 40 | F8: Calf | G8: Your | M8: Enterprise | N8: Enterprise
E9: Your | F9: Quantity | G9: Quantity | J9: Your | L9: Your | M9: Total | N9: Total
A10: REVENUE | D10: Head | E10: Head | F10: Per Head | G10: Per Head | H10: Units | I10: $/Unit | J10: $/Unit | K10: Total | L10: Total | M10: ="(" & D7 & " AUs)" -> (40 AUs) | N10: ="(" & E7 & " AUs)" -> ( AUs)
B11: Steer | D11: 0.425 | F11: 5.5 | H11: CWT | I11: 145 | K11: 338.9375 | L11: =+E11*G11*J11 -> 0 | M11: 13557.5 | N11: =+L11*E$7 -> 0
B12: Heifer | D12: 0.3 | F12: 5.25 | H12: CWT | I12: 135 | K12: 212.625 | L12: =+E12*G12*J12 -> 0 | M12: 8505 | N12: =+L12*E$7 -> 0
B13: Cull Cow | D13: 0.1 | F13: 9 | H13: CWT | I13: 52 | K13: 46.8 | L13: 0 | M13: 1872 | N13: 0
B14: Cull Bull | D14: 0.01 | F14: 16 | H14: CWT | I14: 65 | K14: 10.4 | L14: 0 | M14: 416 | N14: 0
D15: 0 | F15: 0 | I15: 0 | K15: 0 | L15: 0 | M15: 0 | N15: 0
D16: 0 | F16: 0 | I16: 0 | K16: 0 | L16: 0 | M16: 0 | N16: 0
A17: Total Revenue | F17: 391.25 | K17: 608.7625 | L17: =+SUM(L11:L16) -> 0 | M17: 24350.5 | N17: =+SUM(N11:N16) -> 0
F18: 497.25
F19: 106 | M19: Enterprise | N19: Enterprise
A20: VARIABLE COSTS | F20: Quantity | G20: Quantity | H20: Units | I20: $/Unit | J20: $/Unit | K20: Total | L20: Total | M20: Total | N20: Total
A21: Production Costs
B22: Miscellaneous
F23: 1 | I23: 0 | K23: 0 | L23: =+J23*G23 -> 0 | M23: 0 | N23: =+L23*E$7 -> 0
F24: 1 | I24: 0 | K24: 0 | L24: 0 | M24: 0 | N24: 0
B25: Marketing Expense | F25: 1 | H25: AU | I25: 12 | K25: 12 | L25: 0 | M25: 480 | N25: 0
B26: Feed
C27: Salt & Mineral - Cow | F27: 40 | H27: Pound | I27: 0.3 | K27: 12 | L27: =+J27*G27 -> 0 | M27: 480 | N27: =+L27*E$7 -> 0
C28: Supplement - Cow | F28: 600 | H28: Pound | I28: 0.2 | K28: 120 | L28: 0 | M28: 4800 | N28: 0
C29: Bermuda Hay | F29: 3 | H29: Roll | I29: 70 | K29: 210 | L29: 0 | M29: 8400 | N29: 0
F30: 0 | I30: 0 | K30: 0 | L30: 0 | M30: 0 | N30: 0
F31: 0 | I31: 0 | K31: 0 | L31: 0 | M31: 0 | N31: 0
F32: 0 | I32: 0 | K32: 0 | L32: 0 | M32: 0 | N32: 0
B33: Vet. Medicine
C34: Vet. Medicine - Cow | F34: 1 | H34: Head | I34: 10 | K34: 10 | L34: 0 | M34: 400 | N34: =+L34*E$7 -> 0
F35: 0 | I35: 0 | K35: 0 | L35: 0 | M35: 0 | N35: 0
F36: 0 | I36: 0 | K36: 0 | L36: 0 | M36: 0 | N36: 0
F37: 0 | I37: 0 | K37: 0 | L37: 0 | M37: 0 | N37: 0
B38: Fuel | F38: 1 | H38: AU | I38: 14.208 | K38: 14.208 | L38: 0 | M38: 568.32 | N38: 0
B39: Lube (As a % of fuel) | F39: 0.1 | H39: Percent | I39: 14.208 | K39: 1.4208 | L39: 0 | M39: 56.832 | N39: 0
B40: Repairs | F40: 1 | H40: AU | I40: 5.960048438 | K40: 5.960048438 | L40: 0 | M40: 238.4019375 | N40: 0
B41: Labor | F41: 8.508 | H41: Hours | I41: 5.186304654 | K41: 44.12508 | L41: 0 | M41: 1765.0032 | N41: 0
B42: Utilities | F42: 1 | H42: AU | I42: 0 | K42: 0 | L42: 0 | M42: 0 | N42: 0
K43: 0 | L43: =+J43*G43 -> 0 | M43: 0 | N43: 0
B44: Purchase Breeding Female | F44: 1 | I44: 0 | K44: 0 | L44: =+J44*G44 -> 0 | M44: 0 | N44: 0
B45: Purchase Breeding Male | F45: 1 | I45: 0 | K45: 0 | L45: 0 | M45: 0 | N45: 0
B46: Purchase Older Repalcement Female | F46: 1 | I46: 0 | K46: 0 | L46: 0 | M46: 0 | N46: 0
B47: Purchase Younger Repalcement Female | F47: 1 | I47: 0 | K47: 0 | L47: 0 | M47: 0 | N47: 0
B48: Interest on Credit Line | I48: 0.0475 | K48: 24.49637285 | L48: =+SUM(L21:L47)/2*J48 -> 0 | M48: 979.8549138 | N48: 0
A49: Total Variable Costs | K49: 454.2103013 | L49: =+SUM(L23:L48) -> 0 | M49: 18168.41205 | N49: =+SUM(N23:N48) -> 0
A51: Planned Returns Above Variable Costs: | K51: 154.5521987 | L51: =+L17-L49 -> 0 | M51: 6182.087949 | N51: =+N17-N49 -> 0
B52: Average Calf Breakeven Price to Cover Variable Costs | I52: 101.4722815 | J52: =IF((E11*G11+E12*G12)=0,"n/a",(L49-SUM(L13:L16))/(E11*G11+E12*G12)) -> n/a | K52: CWT
M53: Enterprise | N53: Enterprise
A54: FIXED COSTS | F54: Quantity | G54: Quantity | H54: Units | I54: $/Unit | J54: $/Unit | K54: Total | L54: Total | M54: Total | N54: Total
B55: Depreciation - Equipment | F55: 1 | H55: AU | I55: 41.88592578 | K55: 41.88592578 | L55: =+G55*J55 -> 0 | M55: 1675.437031 | N55: =+L55*E$7 -> 0
B56: Depreciation - Livestock | F56: 1 | H56: AU | I56: 14.98333333 | K56: 14.98333333 | L56: 0 | M56: 599.3333333 | N56: 0
B57: Equipment Investment | F57: 1027.089934 | H57: dollars | I57: 0.06 | K57: 61.62539606 | L57: 0 | M57: 2465.015843 | N57: 0
B58: Insurance | F58: 1 | H58: AU | I58: 0 | K58: 0 | L58: 0 | M58: 0 | N58: 0
B59: Management Fee, Owner/Operator Labor | F59: 1 | H59: AU | I59: 0 | K59: 0 | L59: =+J59*G59 -> 0 | M59: 0 | N59: 0
B60: Salaried Labor | F60: 1 | H60: AU | I60: 0 | K60: 0 | L60: =+J60*G60 -> 0 | M60: 0 | N60: 0
B61: Pasture Cost | F61: 25 | H61: Acres | I61: 12 | K61: 300 | L61: 0 | M61: 12000 | N61: 0
K62: 0 | L62: 0 | M62: 0 | N62: 0
K63: 0 | L63: 0 | M63: 0 | N63: 0
A64: Total Fixed Costs | K64: 418.4946552 | L64: =+SUM(L55:L61) -> 0 | M64: 16739.78621 | N64: =+SUM(N55:N61) -> 0
A65: Total Costs | K65: 872.7049565 | L65: =+L49+L64 -> 0 | M65: 34908.19826 | N65: =+N49+N64 -> 0
A66: Planned Returns to Management, Risk, and Profit: | K66: -263.9424565 | L66: =+L17-L65 -> 0 | M66: -10557.69826 | N66: =+N17-N65 -> 0
B67: Average Calf Breakeven Price to Cover Total Costs | I67: 208.4357716 | J67: =IF((E11*G11+E12*G12)=0,"n/a",(L65-SUM(L13:L16))/(E11*G11+E12*G12)) -> n/a | K67: CWT
C69: Sensitivity Analysis for Example
C70: Example Weaning Percent | D70: Example Gross Sales per Animal Unit | F70: Pounds Produced per Animal Unit | H70: Example Breakeven Calf Pay Weight to Cover Total Cost | K70: Example Average Breakeven Price to Cover Total Cost
C71: 0.91 | D71: 647.6963235 | F71: 524.8676471 | H71: 714.169346 | K71: 194.6927537
C72: 0.88 | D72: 628.2294118 | F72: 511.0588235 | H72: 741.6373978 | K72: 201.3300067
C73: 0.85 | D73: 608.7625 | F73: 497.25 | H73: 771.3028937 | K73: 208.4357716
C74: 0.82 | D74: 589.2955882 | F74: 483.4411765 | H74: 803.4405142 | K74: 216.0614706
C75: 0.79 | D75: 569.8286765 | F75: 469.6323529 | H75: 838.3727105 | K75: 224.2663366
D77: ="Example Male "&F8&" Price" -> Example Male Calf Price | K77: =+I11 -> 145
D78: ="Example Female "&F8&" Price" -> Example Female Calf Price | K78: =+I12 -> 135
D79: ="Example Weighted Average "&F8&" Price ($/cwt)" -> Example Weighted Average Calf Price ($/cwt) | K79: =+(K11+K12)/(D11*F11+D12*F12) -> 140.9744409
C80: Sensitivity Analysis for Your Values
C81: Your Weaning Percent | D81: ="Your Gross Sales per "&F7 -> Your Gross Sales per Animal Unit | F81: ="Pounds Produced per "&F7 -> Pounds Produced per Animal Unit | H81: ="Your Breakeven "&F8&" Pay Weight to Cover Total Cost" -> Your Breakeven Calf Pay Weight to Cover Total Cost | K81: Your Average Breakeven Price to Cover Total Cost
C82: =+C83+C71-C72 -> 1.06 | D82: =+IF($C$84=0,0,$L$17-$L$11-$L$12+($L$11+$L$12)*C82/$C$84) -> 0 | F82: =IF($C$84=0,0,$M$88*C82/$C$84+$M$89) -> 0 | H82: =IF($D$84=0,0,(YTotExp-(YTotRet+YTotExp-$L$11-$L$12))/(YPrice/100)/(C82-$E$13*$E$7/$E$8)/($E$8/$E$7)) -> 0 | K82: =IF(F82-$M$89=0,0,(YTotExp-(YTotRet+YTotExp-$L$11-$L$12))/(F82-$M$89)*100) -> 0
C83: =+C84+C72-C73 -> 1.03 | D83: =+IF($C$84=0,0,$L$17-$L$11-$L$12+($L$11+$L$12)*C83/$C$84) -> 0 | F83: =IF($C$84=0,0,$M$88*C83/$C$84+$M$89) -> 0 | H83: =IF($D$84=0,0,(YTotExp-(YTotRet+YTotExp-$L$11-$L$12))/(YPrice/100)/(C83-$E$13*$E$7/$E$8)/($E$8/$E$7)) -> 0 | K83: =IF(F83-$M$89=0,0,(YTotExp-(YTotRet+YTotExp-$L$11-$L$12))/(F83-$M$89)*100) -> 0
C84: 1 | D84: =+L17 -> 0 | F84: =M88+M89 -> 0 | H84: =IF($D$84=0,0,(YTotExp-(YTotRet+YTotExp-$L$11-$L$12))/(YPrice/100)/(C84-$E$13*$E$7/$E$8)/($E$8/$E$7)) -> 0 | K84: =IF(F84-$M$89=0,0,(YTotExp-(YTotRet+YTotExp-$L$11-$L$12))/(F84-$M$89)*100) -> 0
C85: =+C84+C74-C73 -> 0.97 | D85: =+IF($C$84=0,0,$L$17-$L$11-$L$12+($L$11+$L$12)*C85/$C$84) -> 0 | F85: =IF($C$84=0,0,$M$88*C85/$C$84+$M$89) -> 0 | H85: =IF($D$84=0,0,(YTotExp-(YTotRet+YTotExp-$L$11-$L$12))/(YPrice/100)/(C85-$E$13*$E$7/$E$8)/($E$8/$E$7)) -> 0 | K85: =IF(F85-$M$89=0,0,(YTotExp-(YTotRet+YTotExp-$L$11-$L$12))/(F85-$M$89)*100) -> 0
C86: =+C85+C75-C74 -> 0.94 | D86: =+IF($C$84=0,0,$L$17-$L$11-$L$12+($L$11+$L$12)*C86/$C$84) -> 0 | F86: =IF($C$84=0,0,$M$88*C86/$C$84+$M$89) -> 0 | H86: =IF($D$84=0,0,(YTotExp-(YTotRet+YTotExp-$L$11-$L$12))/(YPrice/100)/(C86-$E$13*$E$7/$E$8)/($E$8/$E$7)) -> 0 | K86: =IF(F86-$M$89=0,0,(YTotExp-(YTotRet+YTotExp-$L$11-$L$12))/(F86-$M$89)*100) -> 0
D88: ="Your Male "&F8&" Price" -> Your Male Calf Price | K88: =+J11 -> 0 | M88: =(E11*G11+E12*G12)*100 -> 0
D89: ="Your Female "&F8&" Price" -> Your Female Calf Price | K89: =+J12 -> 0 | M89: =(E13*G13+E14*G14)*100 -> 0
D90: ="Your Weighted Average "&F8&" Price ($/cwt)" -> Your Weighted Average Calf Price ($/cwt) | K90: =+IF((E11*G11+E12*G12)=0,0,(L11+L12)/(E11*G11+E12*G12)) -> 0
A92: Developed by Jason Johnson, Associate Professor and Extension Economist, Texas A&M AgriLife Extension, 254-968-4144.
A94: Information presented is prepared solely as a general guide and not intended to recognize or predict the costs and returns from any one operation. Brand names are mentioned only as examples and imply no endorsement.

Sheet StockersNative
A1: Projections for Planning Purposes Only -- Not to be Used without Updating
A2: 2021 Estimated Costs and Returns per Animal
A3: Stockers on Native Pasture
A4: Enter your name for this budget in the cell above.
A5: Enter Your Values in the cells highlighed in MAROON. | M5: Stocker
E6: Your Head | N6: Your
B7: Number of Head | D7: 320 | G7: Your | M7: Enterprise | N7: Enterprise
E8: Your | F8: Pay Weight | G8: Weight | J8: Your | L8: Your | M8: Total | N8: Total
A9: REVENUE | D9: Head | E9: Head | F9: or Amount | G9: or Amount | H9: Units | I9: $/Unit | J9: $/Unit | K9: Total | L9: Total | M9: ="(" & D7 & " Head)" -> (320 Head) | N9: ="(" & E7 & " Head)" -> ( Head)
B11: Stocker | D11: 0.98 | F11: 7.3 | H11: CWT | I11: 125 | K11: 894.25 | L11: =+J11*G11*E11 -> 0 | M11: 286160 | N11: =+L11*E$7 -> 0
D12: 0.98 | F12: 0 | I12: 0 | K12: 0 | L12: 0 | M12: 0 | N12: 0
D13: 0.98 | F13: 0 | I13: 0 | K13: 0 | L13: 0 | M13: 0 | N13: 0
A14: Total Revenue | K14: 894.25 | L14: =+L11 -> 0 | M14: 286160 | N14: 0
M15: Enterprise | N15: Enterprise
A16: VARIABLE COSTS | F16: Quantity | G16: Quantity | H16: Units | I16: $/Unit | J16: $/Unit | K16: Total | L16: Total | M16: Total | N16: Total
A17: Production Costs
B18: Stocker Purchase | F18: 4 | H18: CWT | I18: 165 | K18: 660 | L18: =+J18*G18 -> 0 | M18: 211200 | N18: =+L18*E$7 -> 0
B19: Stocker Delivery | F19: 1 | H19: Head | I19: 0 | K19: 0 | L19: =+J19*G19 -> 0 | M19: 0 | N19: =+L19*E$7 -> 0
B20: Grazing
C21: Acre Lease | F21: 5 | H21: Acre | I21: 12 | K21: 60 | L21: 0 | M21: 19200 | N21: =+L21*E$7 -> 0
C22: Grazing by Month | F22: 0 | H22: Month | I22: 0 | K22: 0 | L22: 0 | M22: 0 | N22: 0
C23: Gain Contract | F23: 0 | H23: Pounds | I23: 0 | K23: 0 | L23: 0 | M23: 0 | N23: 0
C24: On Weight Per Month | F24: 0 | H24: Month | I24: 0 | K24: 0 | L24: =+G24*J24*G18 -> 0 | M24: 0 | N24: 0
B25: Health
C26: Vet. Medicine - Stocker | F26: 1 | H26: Head | I26: 10 | K26: 10 | L26: =+J26*G26 -> 0 | M26: 3200 | N26: =+L26*E$7 -> 0
F27: 0 | I27: 0 | K27: 0 | L27: 0 | M27: 0 | N27: 0
F28: 0 | I28: 0 | K28: 0 | L28: 0 | M28: 0 | N28: 0
F29: 0 | I29: 0 | K29: 0 | L29: 0 | M29: 0 | N29: 0
B30: Feed
C31: Bermuda Hay Bale | F31: 4 | H31: Bale | I31: 10 | K31: 40 | L31: 0 | M31: 12800 | N31: 0
C32: Mineral - Stocker | F32: 0.263 | H32: CWT | I32: 15 | K32: 3.945 | L32: 0 | M32: 1262.4 | N32: 0
C33: Supplement - Stocker | F33: 1.25 | H33: CWT | I33: 19 | K33: 23.75 | L33: 0 | M33: 7600 | N33: 0
F34: 0 | I34: 0 | K34: 0 | L34: 0 | M34: 0 | N34: 0
F35: 0 | I35: 0 | K35: 0 | L35: 0 | M35: 0 | N35: 0
F36: 0 | I36: 0 | K36: 0 | L36: 0 | M36: 0 | N36: 0
B37: Miscellaneous
C38: Miscellaneous | F38: 1 | H38: Head | I38: 4 | K38: 4 | L38: =+J38*G38 -> 0 | M38: 1280 | N38: =+L38*E$7 -> 0
F39: 1 | I39: 0 | K39: 0 | L39: 0 | M39: 0 | N39: 0
F40: 1 | I40: 0 | K40: 0 | L40: 0 | M40: 0 | N40: 0
B41: Fuel | F41: 1 | H41: Head | I41: 3.41875 | K41: 3.41875 | L41: 0 | M41: 1094 | N41: 0
B42: Lube (As a % of fuel) | F42: 0.1 | H42: Percent | I42: 3.41875 | K42: 0.341875 | L42: 0 | M42: 109.4 | N42: 0
B43: Utilities | F43: 1 | H43: Head | I43: 0 | K43: 0 | L43: 0 | M43: 0 | N43: 0
B44: Repairs | F44: 1 | H44: Head | I44: 0.96 | K44: 0.96 | L44: 0 | M44: 307.2 | N44: 0
B45: Marketing | F45: 0.98 | H45: Head | I45: 14.6 | K45: 14.308 | L45: 0 | M45: 4578.56 | N45: 0
B46: Labor | F46: 1 | H46: Head | I46: 15.83212 | K46: 15.83212 | L46: 0 | M46: 5066.2784 | N46: 0
K47: 0 | L47: =+J47*G47 -> 0 | M47: 0 | N47: =+L47*E$7 -> 0
K48: 0 | L48: =+J48*G48 -> 0 | M48: 0 | N48: =+L48*E$7 -> 0
B49: Interest on Credit Line | I49: 0.0475 | K49: 13.05401457 | L49: =+SUM(L18:L46)*J49/2 -> 0 | M49: 4177.284661 | N49: 0
A50: Total Variable Costs | K50: 849.6097596 | L50: =+SUM(L18:L49) -> 0 | M50: 271875.1231 | N50: =+SUM(N18:N49) -> 0
A52: Planned Returns Above Variable Costs: | K52: 44.64024043 | L52: =+L14-L50 -> 0 | M52: 14284.87694 | N52: =+N14-N50 -> 0
B54: Breakeven Price to Cover Variable Costs | I54: 118.7601006 | J54: =+IF(G11=0,"n/a",(L50-SUM(L12:L13))/(G11*E11)) -> n/a | K54: CWT
M55: Enterprise | N55: Enterprise
A56: FIXED COSTS | F56: Quantity | G56: Quantity | H56: Units | I56: $/Unit | J56: $/Unit | K56: Total | L56: Total | M56: Total | N56: Total
B58: Depreciation | F58: 1 | H58: Head | I58: 15.50285714 | K58: 15.50285714 | L58: =+J58*G58 -> 0 | M58: 4960.914286 | N58: =+L58*E$7 -> 0
B59: Equipment Investment | F59: 258.00625 | H59: dollars | I59: 0.06 | K59: 15.480375 | L59: 0 | M59: 4953.72 | N59: 0
B60: Salaried Labor | F60: 1 | H60: Head | I60: 0 | K60: 0 | L60: 0 | M60: 0 | N60: 0
B61: Management Fee, Owner/Operator Labor | F61: 1 | H61: Head | I61: 0 | K61: 0 | L61: 0 | M61: 0 | N61: 0
B62: Insurance | F62: 1 | H62: Head | I62: 0 | K62: 0 | L62: 0 | M62: 0 | N62: 0
K63: 0 | L63: 0 | M63: 0 | N63: 0
K64: 0 | L64: 0 | M64: 0 | N64: 0
A65: Total Fixed Costs | K65: 30.98323214 | L65: =+SUM(L58:L62) -> 0 | M65: 9914.634286 | N65: =+SUM(N58:N62) -> 0
A67: Total Costs | K67: 880.5929917 | L67: =+L50+L65 -> 0 | M67: 281789.7573 | N67: =+N50+N65 -> 0
A69: Planned Returns to Management, Risk, and Profit: | K69: 13.65700829 | L69: =+L52-L65 -> 0 | M69: 4370.242653 | N69: =+N52-N65 -> 0
A71: Breakeven Price to Cover Total Costs | I71: 123.0909969 | J71: =+IF(G11=0,"n/a",(L67-SUM(L12:L13))/(G11*E11)) -> n/a | K71: CWT
C73: Example Breakeven Sensitivity Analysis
F74: Purchase Weight (Lbs/Hd): 400 | H74: Sales Price/Cwt of $Total
F75: Sales Price/Cwt 125.00 | H75: Purchase Price/Cwt 165.00
C76: ADG (Lbs/day) | D76: Net Pay Weight with Shrink | F76: Breakeven Purchase Price ($/CWT) | H76: Breakeven Sales Price ($/CWT)
C77: 3.102295082 | D77: 778.48 | F77: 183.2612521 | H77: 115.4254801
C78: 2.843770492 | D78: 746.94 | F78: 173.6021271 | H78: 120.2993918
C79: 2.585245902 | D79: 730 | F79: 168.4142521 | H79: 123.0909969
C80: 2.326721311 | D80: 683.86 | F80: 154.2838771 | H80: 131.3959403
C81: 2.068196721 | D81: 652.32 | F81: 144.6247521 | H81: 137.7490001
C82: Your Average Daily Gain | E82: 0 | F82: Pounds per Day
C83: =+"Your Animal"&IF(M5="Stocker"," Grazing"," Feeding")&" Days" -> Your Animal Grazing Days | E83: 0 | F83: Days
C84: Your Sale Shrink | E84: 0
C86: Your Breakeven Sensitivity Analysis
F87: =+"Purchase Weight (Lbs/Hd): "&G18*100 -> Purchase Weight (Lbs/Hd): 0 | H87: Sales Price/Cwt of $Total
F88: ="Sales Price/Cwt "&IF(J11="",".00",TEXT(J11,"#.00")) -> Sales Price/Cwt .00 | H88: ="Purchase Price/Cwt "&IF(J18="",".00",TEXT(J18,"#.00")) -> Purchase Price/Cwt .00
C89: ADG (Lbs/day) | D89: Net Pay Weight with Shrink | F89: Breakeven Purchase Price ($/CWT) | H89: Breakeven Sales Price ($/CWT)
C90: =+C92*1.2 -> 0 | D90: =+C90*$E$83+$G$18*100*(1-$E$84) -> 0 | F90: =IF($G$18=0,0,(((D90*$J$11/100*$E$11)-($L$67-SUM($J$12:$J$13)-$L$18))/(100*$G$18))*100) -> 0 | H90: =IF($E$11=0,0,($L$67-SUM($J$12:$J$13))/(D90*$E$11/100)) -> 0
C91: =+C92*1.1 -> 0 | D91: =+C91*$E$83+$G$18*100*(1-$E$84) -> 0 | F91: =IF($G$18=0,0,(((D91*$J$11/100*$E$11)-($L$67-SUM($J$12:$J$13)-$L$18))/(100*$G$18))*100) -> 0 | H91: =IF($E$11=0,0,($L$67-SUM($J$12:$J$13))/(D91*$E$11/100)) -> 0
C92: =+E82 -> 0 | D92: =+C92*$E$83+$G$18*100*(1-$E$84) -> 0 | F92: =IF($G$18=0,0,(((D92*$J$11/100*$E$11)-($L$67-SUM($J$12:$J$13)-$L$18))/(100*$G$18))*100) -> 0 | H92: =IF($E$11=0,0,($L$67-SUM($J$12:$J$13))/(D92*$E$11/100)) -> 0
C93: =+C92*0.9 -> 0 | D93: =+C93*$E$83+$G$18*100*(1-$E$84) -> 0 | F93: =IF($G$18=0,0,(((D93*$J$11/100*$E$11)-($L$67-SUM($J$12:$J$13)-$L$18))/(100*$G$18))*100) -> 0 | H93: =IF($E$11=0,0,($L$67-SUM($J$12:$J$13))/(D93*$E$11/100)) -> 0
C94: =+C92*0.8 -> 0 | D94: =+C94*$E$83+$G$18*100*(1-$E$84) -> 0 | F94: =IF($G$18=0,0,(((D94*$J$11/100*$E$11)-($L$67-SUM($J$12:$J$13)-$L$18))/(100*$G$18))*100) -> 0 | H94: =IF($E$11=0,0,($L$67-SUM($J$12:$J$13))/(D94*$E$11/100)) -> 0
A96: Developed by Jason Johnson, Associate Professor and Extension Economist, Texas A&M AgriLife Extension, 254-968-4144.
A98: Information presented is prepared solely as a general guide and not intended to recognize or predict the costs and returns from any one operation. Brand names are mentioned only as examples and imply no endorsement.

Sheet Livestock Budget
A1: Estimated Costs and Returns per Animal or Breeding Female
A3: Livestock Budget
A5: Number of Head of Livestock | D5: 0
A7: Enter Your Values in the cells highlighed in MAROON. | H7: Enterprise
A8: REVENUE | C8: Head | D8: Quantity | E8: Units | F8: $/Unit | G8: Total | H8: Total
B9: Males Sold | C9: 0 | D9: 0 | E9: CWT | F9: 0 | G9: =IF($D$5=0,0,C9/$D$5*D9*F9) -> 0 | H9: =+G9*$D$5 -> 0
B10: Females Sold | C10: 0 | D10: 0 | E10: CWT | F10: 0 | G10: =IF($D$5=0,0,C10/$D$5*D10*F10) -> 0 | H10: =+G10*$D$5 -> 0
B11: Cull Breeding Females | C11: 0 | D11: 0 | E11: CWT | F11: 0 | G11: 0 | H11: 0
B12: Cull Breeding Males | C12: 0 | D12: 0 | E12: CWT | F12: 0 | G12: 0 | H12: 0
B13: Stocker or Feed Animal | C13: 0 | D13: 0 | E13: CWT | F13: 0 | G13: 0 | H13: 0
B14: Other Revenue | C14: 0 | D14: 0 | E14: CWT | F14: 0 | G14: 0 | H14: 0
B15: Other Revenue | C15: 0 | D15: 0 | E15: CWT | F15: 0 | G15: 0 | H15: 0
B16: Other Revenue | C16: 0 | D16: 0 | E16: CWT | F16: 0 | G16: 0 | H16: 0
A18: Total Revenue | G18: =+SUM(G9:G17) -> 0 | H18: =+SUM(H9:H17) -> 0
H20: Enterprise
A21: VARIABLE COSTS | D21: Quantity | E21: Units | F21: $/Unit | G21: Total | H21: Total
A22: Production Costs
B23: Animal Purchase Price, if applicable | D23: 0 | E23: Cwt | F23: 0 | G23: =D23*F23 -> 0 | H23: =+G23*$D$5 -> 0
B24: Pasture | C24: =+SUM(G25:G28) -> 0
C25: Pasture 1 | D25: 0 | E25: Acre | F25: 0 | G25: =D25*F25 -> 0 | H25: =+G25*$D$5 -> 0
C26: Pasture 2 | D26: 0 | E26: Acre | F26: 0 | G26: 0 | H26: 0
C27: Pasture 3 | D27: 0 | E27: Acre | F27: 0 | G27: 0 | H27: 0
C28: Pasture 4 | D28: 0 | E28: Acre | F28: 0 | G28: 0 | H28: 0
B29: Feed | C29: =SUM(G30:G37) -> 0
C30: Hay | D30: 0 | E30: Bales | F30: 0 | G30: =D30*F30 -> 0 | H30: =+G30*$D$5 -> 0
C31: Supplement | D31: 0 | E31: Cwt,lb,etc | F31: 0 | G31: =D31*F31 -> 0 | H31: =+G31*$D$5 -> 0
C32: Salt Minerals | D32: 0 | E32: Cwt | F32: 0 | G32: 0 | H32: 0
C33: Other Feed | D33: 0 | E33: Cwt,lb,etc | F33: 0 | G33: 0 | H33: 0
C34: Other Feed | D34: 0 | E34: Cwt,lb,etc | F34: 0 | G34: 0 | H34: 0
C35: Other Feed | D35: 0 | E35: Cwt,lb,etc | F35: 0 | G35: 0 | H35: 0
C36: Other Feed | D36: 0 | E36: Cwt,lb,etc | F36: 0 | G36: 0 | H36: 0
C37: Other Feed | D37: 0 | E37: Cwt,lb,etc | F37: 0 | G37: 0 | H37: 0
B38: Health | C38: =SUM(G39:G48) -> 0
C39: Vet/Medicine 1 | D39: 0 | E39: Visit,dose,cc's, etc. | F39: 0 | G39: =D39*F39 -> 0 | H39: =+G39*$D$5 -> 0
C40: Vet/Medicine 2 | D40: 0 | E40: Visit,dose,cc's, etc. | F40: 0 | G40: 0 | H40: 0
C41: Vet/Medicine 3 | D41: 0 | E41: Visit,dose,cc's, etc. | F41: 0 | G41: 0 | H41: 0
C42: Vet/Medicine 4 | D42: 0 | E42: Visit,dose,cc's, etc. | F42: 0 | G42: 0 | H42: 0
C43: Vet/Medicine 5 | D43: 0 | E43: Visit,dose,cc's, etc. | F43: 0 | G43: 0 | H43: 0
C44: Vet/Medicine 6 | D44: 0 | E44: Visit,dose,cc's, etc. | F44: 0 | G44: 0 | H44: 0
C45: Vet/Medicine 7 | D45: 0 | E45: Visit,dose,cc's, etc. | F45: 0 | G45: 0 | H45: 0
C46: Vet/Medicine 8 | D46: 0 | E46: Visit,dose,cc's, etc. | F46: 0 | G46: 0 | H46: 0
C47: Vet/Medicine 9 | D47: 0 | E47: Visit,dose,cc's, etc. | F47: 0 | G47: 0 | H47: 0
C48: Vet/Medicine 10 | D48: 0 | E48: Visit,dose,cc's, etc. | F48: 0 | G48: 0 | H48: 0
B50: Fuel, Lube, Repair | D50: 1 | E50: Head | F50: 0 | G50: 0 | H50: 0
B52: Labor | D52: 0 | E52: Hours | F52: 0 | G52: 0 | H52: 0
B54: Other Variable Expense | D54: 0 | E54: Cwt,lb,etc | F54: 0 | G54: 0 | H54: 0
B55: Other Variable Expense | D55: 0 | E55: Cwt,lb,etc | F55: 0 | G55: 0 | H55: 0
B56: Other Variable Expense | D56: 0 | E56: Cwt,lb,etc | F56: 0 | G56: 0 | H56: 0
B57: Other Variable Expense | D57: 0 | E57: Cwt,lb,etc | F57: 0 | G57: 0 | H57: 0
B58: Other Variable Expense | D58: 0 | E58: Cwt,lb,etc | F58: 0 | G58: 0 | H58: 0
B59: Other Variable Expense | D59: 0 | E59: Cwt,lb,etc | F59: 0 | G59: 0 | H59: 0
B61: Operating Interest | F61: 0 | G61: =+SUM(G23:G59)/2*F61 -> 0 | H61: 0
A63: Total Variable Costs | G63: =+SUM(G23:G62) -> 0 | H63: =+SUM(H23:H62) -> 0
A65: Planned Returns Above Variable Costs | G65: =+G18-G63 -> 0 | H65: =+H18-H63 -> 0
B67: Breakeven Price to Cover Variable Costs | E67: =IF((H101/100+C13*D13)=0,0,(G63-SUM(G11:G12,G14:G16))/(H101/100+C13/D5*D13)) -> 0 | F67: =+E9 -> CWT
H69: Enterprise
A70: FIXED COSTS | D70: Quantity | E70: Units | F70: $/Unit | G70: Total | H70: Total
B71: Depreciation - Equipment | D71: 0 | E71: Head,$,etc | F71: 0 | G71: =D71*F71 -> 0 | H71: =+G71*$D$5 -> 0
B72: Depreciation - Livestock | D72: 0 | E72: Head,$,etc | F72: 0 | G72: =D72*F72 -> 0 | H72: 0
B73: Equipment Investment | D73: 0 | E73: Head,$,etc | F73: 0 | G73: 0 | H73: 0
B74: Insurance | D74: 0 | E74: Head,$,etc | F74: 0 | G74: 0 | H74: 0
B75: Management Fee | D75: 0 | E75: Head,$,etc | F75: 0 | G75: 0 | H75: 0
B76: Owner/Operator Labor | D76: 0 | E76: Head,$,etc | F76: 0 | G76: 0 | H76: 0
B77: Salaried Labor | D77: 0 | E77: Head,$,etc | F77: 0 | G77: 0 | H77: 0
B78: Other Fixed Expense | D78: 0 | E78: Head,$,etc | F78: 0 | G78: 0 | H78: 0
B79: Other Fixed Expense | D79: 0 | E79: Head,$,etc | F79: 0 | G79: 0 | H79: 0
B80: Other Fixed Expense | D80: 0 | E80: Head,$,etc | F80: 0 | G80: 0 | H80: 0
B81: Other Fixed Expense | D81: 0 | E81: Head,$,etc | F81: 0 | G81: 0 | H81: 0
B82: Other Fixed Expense | D82: 0 | E82: Head,$,etc | F82: 0 | G82: 0 | H82: 0
D84: Total Fixed Costs | G84: =+SUM(G71:G83) -> 0 | H84: =+SUM(H71:H83) -> 0
D86: Total Specified Costs | G86: =+G63+G84 -> 0 | H86: =+H63+H84 -> 0
D88: Returns Above Specifiied Costs | G88: =+G18-G86 -> 0 | H88: =+H18-H86 -> 0
B90: Breakeven Price to Cover Total Costs | E90: =IF((H101/100+C13*D13)=0,0,(G86-SUM(G11:G12,G14:G16))/(H101/100+C13/D5*D13)) -> 0 | F90: =+F67 -> CWT
B93: Sensitivity Analysis for Your Breeding Herd or Flock Values
B94: Your Weaning Percent | C94: Your Gross Sales per Head | D94: Pounds Produced per Head | E94: ="Your Breakeven Pay Weight to Cover Total Cost" -> Your Breakeven Pay Weight to Cover Total Cost | G94: Your Average Breakeven Price to Cover Total Cost
B95: =+B96-0.03 -> -0.06 | C95: =+IF($B$97=0,0,YTotRet-$G$9-$G$10+($G$9+$G$10)*B95/$B$97) -> 0 | D95: =IF($B$97=0,0,$H$101*B95/$B$97+$H$102) -> 0 | E95: =IF($C$97=0,0,(YTotExp-($G$18-$G$9-$G$10))/(YPrice/100)/(B95-$C$11/$D$5)) -> 0 | G95: =IF(D95-$H$102=0,0,(YTotExp-($G$18-$G$9-$G$10))/(D95-$H$102)*100) -> 0
B96: =+B97-0.03 -> -0.03 | C96: =+IF($B$97=0,0,YTotRet-$G$9-$G$10+($G$9+$G$10)*B96/$B$97) -> 0 | D96: =IF($B$97=0,0,$H$101*B96/$B$97+$H$102) -> 0 | E96: =IF($C$97=0,0,(YTotExp-($G$18-$G$9-$G$10))/(YPrice/100)/(B96-$C$11/$D$5)) -> 0 | G96: =IF(D96-$H$102=0,0,(YTotExp-($G$18-$G$9-$G$10))/(D96-$H$102)*100) -> 0
B97: 0 | C97: =+G18 -> 0 | D97: =H101+H102 -> 0 | E97: =IF($C$97=0,0,(YTotExp-($G$18-$G$9-$G$10))/(YPrice/100)/(B97-$C$11/$D$5)) -> 0 | G97: =IF(D97-$H$102=0,0,(YTotExp-($G$18-$G$9-$G$10))/(D97-$H$102)*100) -> 0
B98: =+B97+0.03 -> 0.03 | C98: =+IF($B$97=0,0,YTotRet-$G$9-$G$10+($G$9+$G$10)*B98/$B$97) -> 0 | D98: =IF($B$97=0,0,$H$101*B98/$B$97+$H$102) -> 0 | E98: =IF($C$97=0,0,(YTotExp-($G$18-$G$9-$G$10))/(YPrice/100)/(B98-$C$11/$D$5)) -> 0 | G98: =IF(D98-$H$102=0,0,(YTotExp-($G$18-$G$9-$G$10))/(D98-$H$102)*100) -> 0
B99: =+B98+0.03 -> 0.06 | C99: =+IF($B$97=0,0,YTotRet-$G$9-$G$10+($G$9+$G$10)*B99/$B$97) -> 0 | D99: =IF($B$97=0,0,$H$101*B99/$B$97+$H$102) -> 0 | E99: =IF($C$97=0,0,(YTotExp-($G$18-$G$9-$G$10))/(YPrice/100)/(B99-$C$11/$D$5)) -> 0 | G99: =IF(D99-$H$102=0,0,(YTotExp-($G$18-$G$9-$G$10))/(D99-$H$102)*100) -> 0
C101: Your Male Price | F101: =+F9 -> 0 | H101: =IF(D5=0,0,(C9*D9+C10*D10)*100/D5) -> 0
C102: Your Female Price | F102: =+F10 -> 0 | H102: =IF(D5=0,0,(C11*D11+C12*D12)*100/D5) -> 0
C103: Your Weighted Average Price ($/cwt) | F103: =+IF((C9*D9+C10*D10)=0,F13,(G9+G10)/((C9*D9+C10*D10)/D5)) -> 0
C105: Your Stocker or Feeder Breakeven Sensitivity Analysis
C106: Your Average Daily Gain | E106: 0 | F106: Pounds per Day
C107: =+"Your Animal"&IF(M25="Stocker"," Grazing"," Feeding")&" Days" -> Your Animal Feeding Days | E107: 0 | F107: Days
C108: Your Sale Shrink | E108: 0
C109: Average Daily Gain (Pounds/day) | D109: Net Pay Weight with Shrink (Pounds) | F109: =+"Purchase Weight (Pounds/Head): "&D23*100 -> Purchase Weight (Pounds/Head): 0 | H109: Sales Price/Cwt of $Total
F110: ="Sales Price "&IF(F13="",".00",TEXT(F13,"#.00")) -> Sales Price .00 | H110: ="Purchase Price "&IF(F23="",".00",TEXT(F23,"#.00")) -> Purchase Price .00
F111: Breakeven Purchase Price ($/CWT) | H111: Breakeven Sales Price ($/CWT)
C112: =+C114*1.2 -> 0 | D112: =+(C112*$E$107+$D$23*100)*(1-$E$108) -> 0 | F112: =IF($D$23=0,0,(((D112*$F$13/100*($C$13/$D$5))-($G$86-SUM($G$14:$G$16)-$G$23))/(100*$D$23))*100) -> 0 | H112: =IF($C$13=0,0,($G$86-SUM($G$14:$G$16))/(D112*($C$13/$D$5)*100)) -> 0
C113: =+C114*1.1 -> 0 | D113: =+(C113*$E$107+$D$23*100)*(1-$E$108) -> 0 | F113: =IF($D$23=0,0,(((D113*$F$13/100*($C$13/$D$5))-($G$86-SUM($G$14:$G$16)-$G$23))/(100*$D$23))*100) -> 0 | H113: =IF($C$13=0,0,($G$86-SUM($G$14:$G$16))/(D113*($C$13/$D$5)*100)) -> 0
C114: =+E106 -> 0 | D114: =+(C114*$E$107+$D$23*100)*(1-$E$108) -> 0 | F114: =IF($D$23=0,0,(((D114*$F$13/100*($C$13/$D$5))-($G$86-SUM($G$14:$G$16)-$G$23))/(100*$D$23))*100) -> 0 | H114: =IF($C$13=0,0,($G$86-SUM($G$14:$G$16))/(D114*($C$13/$D$5)*100)) -> 0
C115: =+C114*0.9 -> 0 | D115: =+(C115*$E$107+$D$23*100)*(1-$E$108) -> 0 | F115: =IF($D$23=0,0,(((D115*$F$13/100*($C$13/$D$5))-($G$86-SUM($G$14:$G$16)-$G$23))/(100*$D$23))*100) -> 0 | H115: =IF($C$13=0,0,($G$86-SUM($G$14:$G$16))/(D115*($C$13/$D$5)*100)) -> 0
C116: =+C114*0.8 -> 0 | D116: =+(C116*$E$107+$D$23*100)*(1-$E$108) -> 0 | F116: =IF($D$23=0,0,(((D116*$F$13/100*($C$13/$D$5))-($G$86-SUM($G$14:$G$16)-$G$23))/(100*$D$23))*100) -> 0 | H116: =IF($C$13=0,0,($G$86-SUM($G$14:$G$16))/(D116*($C$13/$D$5)*100)) -> 0

Sheet Crop Budget
A1: Estimated Costs and Returns per Acre
A3: Crop Enterprise
A5: Number of Acres of Crop | D5: 0
A7: Enter Your Values in the cells highlighed in MAROON. | G7: Enterprise
A8: REVENUE | C8: Quantity | D8: Units | E8: $/Unit | F8: Total | G8: Total
B9: Primary Product | C9: 0 | D9: Cwt,lb,etc | E9: 0 | F9: =C9*E9 -> 0 | G9: =+F9*$D$5 -> 0
B10: Secondary Product | C10: 0 | D10: Cwt,lb,etc | E10: 0 | F10: =C10*E10 -> 0 | G10: =+F10*$D$5 -> 0
B11: Secondary Product | C11: 0 | D11: Cwt,lb,etc | E11: 0 | F11: 0 | G11: 0
B12: Secondary Product | C12: 0 | D12: Cwt,lb,etc | E12: 0 | F12: 0 | G12: 0
B13: Secondary Product | C13: 0 | D13: Cwt,lb,etc | E13: 0 | F13: 0 | G13: 0
B14: Secondary Product | C14: 0 | D14: Cwt,lb,etc | E14: 0 | F14: 0 | G14: 0
B15: Secondary Product | C15: 0 | D15: Cwt,lb,etc | E15: 0 | F15: 0 | G15: 0
B16: Secondary Product | C16: 0 | D16: Cwt,lb,etc | E16: 0 | F16: 0 | G16: 0
A18: Total Revenue | F18: =+SUM(F9:F16) -> 0 | G18: =+SUM(G9:G16) -> 0
G20: Enterprise
A21: VARIABLE COSTS | C21: Quantity | D21: Units | E21: $/Unit | F21: Total | G21: Total
A23: Custom Field and Harvest Operations
B24: Custom Field Operation 1 | C24: 0 | D24: Acre | E24: 0 | F24: =C24*E24 -> 0 | G24: =+F24*$D$5 -> 0
B25: Custom Field Operation 2 | C25: 0 | D25: Acre | E25: 0 | F25: 0 | G25: 0
B26: Custom Field Operation 3 | C26: 0 | D26: Acre | E26: 0 | F26: 0 | G26: 0
B27: Custom Field Operation 4 | C27: 0 | D27: Acre | E27: 0 | F27: 0 | G27: 0
B28: Custom Field Operation 5 | C28: 0 | D28: Acre | E28: 0 | F28: 0 | G28: 0
B29: Custom Field Operation 6 | C29: 0 | D29: Acre | E29: 0 | F29: 0 | G29: 0
A30: Machinery Expenses
B31: Diesel | C31: 0 | D31: Gallon | E31: 0 | F31: =C31*E31 -> 0 | G31: 0
B32: Gasoline | C32: 0 | D32: Gallon | E32: 0 | F32: 0 | G32: 0
B33: Lube | C33: 0 | D33: Acre | E33: 0 | F33: 0 | G33: 0
B34: Repairs | C34: 0 | D34: Acre | E34: 0 | F34: 0 | G34: 0
B35: Other Machinery Expense 1 | C35: 0 | D35: Acre | E35: 0 | F35: 0 | G35: 0
B36: Other Machinery Expense 2 | C36: 0 | D36: Acre | E36: 0 | F36: 0 | G36: 0
A37: Labor
B38: Labor 1 | C38: 0 | D38: Hour | E38: 0 | F38: =C38*E38 -> 0 | G38: 0
B39: Labor 2 | C39: 0 | D39: Hour | E39: 0 | F39: 0 | G39: 0
B40: Labor 3 | C40: 0 | D40: Hour | E40: 0 | F40: 0 | G40: 0
B41: Labor 4 | C41: 0 | D41: Hour | E41: 0 | F41: 0 | G41: 0
B42: Labor 5 | C42: 0 | D42: Hour | E42: 0 | F42: 0 | G42: 0
B43: Irrigation Labor | C43: 0 | D43: Hour | E43: 0 | F43: 0 | G43: 0
A44: Seed or Transplants
B45: Seed | C45: 0 | D45: Pound | E45: 0 | F45: =C45*E45 -> 0 | G45: 0
B46: Seed Treatment | C46: 0 | D46: Pound | E46: 0 | F46: 0 | G46: 0
B47: Seed Fee | C47: 0 | D47: Pound | E47: 0 | F47: 0 | G47: 0
B48: Transplants | C48: 0 | D48: Thousand | E48: 0 | F48: 0 | G48: 0
B49: Mulch | C49: 0 | D49: Foot | E49: 0 | F49: 0 | G49: 0
B50: Other Seed or Transplant | C50: 0 | D50: Pound | E50: 0 | F50: 0 | G50: 0
A51: Fertilizer and Lime
B52: Fertlizer 1 | C52: 0 | D52: Pound | E52: 0 | F52: =C52*E52 -> 0 | G52: 0
B53: Fertlizer 2 | C53: 0 | D53: Pound | E53: 0 | F53: 0 | G53: 0
B54: Fertlizer 3 | C54: 0 | D54: Pound | E54: 0 | F54: 0 | G54: 0
B55: Fertlizer 4 | C55: 0 | D55: Pound | E55: 0 | F55: 0 | G55: 0
B56: Fertlizer 5 | C56: 0 | D56: Pound | E56: 0 | F56: 0 | G56: 0
B57: Lime | C57: 0 | D57: Ton | E57: 0 | F57: 0 | G57: 0
B58: Other Soil Amendment 1 | C58: 0 | D58: Pound | E58: 0 | F58: 0 | G58: 0
B59: Other Soil Amendment 2 | C59: 0 | D59: Pound | E59: 0 | F59: 0 | G59: 0
A60: Herbicides
B61: Herbicide 1 | C61: 0 | D61: Lb,Oz,Acre | E61: 0 | F61: =C61*E61 -> 0 | G61: 0
B62: Herbicide 2 | C62: 0 | D62: Lb,Oz,Acre | E62: 0 | F62: 0 | G62: 0
B63: Herbicide 3 | C63: 0 | D63: Lb,Oz,Acre | E63: 0 | F63: 0 | G63: 0
B64: Herbicide 4 | C64: 0 | D64: Lb,Oz,Acre | E64: 0 | F64: 0 | G64: 0
B65: Herbicide 5 | C65: 0 | D65: Lb,Oz,Acre | E65: 0 | F65: 0 | G65: 0
B66: Herbicide 6 | C66: 0 | D66: Lb,Oz,Acre | E66: 0 | F66: 0 | G66: 0
A67: Insecticides
B68: Insecticide 1 | C68: 0 | D68: Lb,Oz,Acre | E68: 0 | F68: =C68*E68 -> 0 | G68: 0
B69: Insecticide 2 | C69: 0 | D69: Lb,Oz,Acre | E69: 0 | F69: 0 | G69: 0
B70: Insecticide 3 | C70: 0 | D70: Lb,Oz,Acre | E70: 0 | F70: 0 | G70: 0
B71: Insecticide 4 | C71: 0 | D71: Lb,Oz,Acre | E71: 0 | F71: 0 | G71: 0
B72: Insecticide 5 | C72: 0 | D72: Lb,Oz,Acre | E72: 0 | F72: 0 | G72: 0
B73: Insecticide 6 | C73: 0 | D73: Lb,Oz,Acre | E73: 0 | F73: 0 | G73: 0
A74: Fungicides
B75: Fungicide 1 | C75: 0 | D75: Lb,Oz,Acre | E75: 0 | F75: =C75*E75 -> 0 | G75: 0
B76: Fungicide 2 | C76: 0 | D76: Lb,Oz,Acre | E76: 0 | F76: 0 | G76: 0
B77: Fungicide 3 | C77: 0 | D77: Lb,Oz,Acre | E77: 0 | F77: 0 | G77: 0
B78: Fungicide 4 | C78: 0 | D78: Lb,Oz,Acre | E78: 0 | F78: 0 | G78: 0
B79: Fungicide 5 | C79: 0 | D79: Lb,Oz,Acre | E79: 0 | F79: 0 | G79: 0
B80: Fungicide 6 | C80: 0 | D80: Lb,Oz,Acre | E80: 0 | F80: 0 | G80: 0
A81: Growth Regulators
B82: Growth Regulator 1 | C82: 0 | D82: Lb,Oz,Acre | E82: 0 | F82: =C82*E82 -> 0 | G82: 0
B83: Growth Regulator 2 | C83: 0 | D83: Lb,Oz,Acre | E83: 0 | F83: 0 | G83: 0
B84: Growth Regulator 3 | C84: 0 | D84: Lb,Oz,Acre | E84: 0 | F84: 0 | G84: 0
B85: Growth Regulator 4 | C85: 0 | D85: Lb,Oz,Acre | E85: 0 | F85: 0 | G85: 0
B86: Growth Regulator 5 | C86: 0 | D86: Lb,Oz,Acre | E86: 0 | F86: 0 | G86: 0
B87: Growth Regulator 6 | C87: 0 | D87: Lb,Oz,Acre | E87: 0 | F87: 0 | G87: 0
A88: Other Chemicals
B89: Fumigant | C89: 0 | D89: Lb,Oz,Acre | E89: 0 | F89: =C89*E89 -> 0 | G89: 0
B90: Other Chemical 1 | C90: 0 | D90: Lb,Oz,Acre | E90: 0 | F90: 0 | G90: =+F90*$D$5 -> 0
B91: Other Chemical 2 | C91: 0 | D91: Lb,Oz,Acre | E91: 0 | F91: 0 | G91: =+F91*$D$5 -> 0
B92: Other Chemical 3 | C92: 0 | D92: Lb,Oz,Acre | E92: 0 | F92: 0 | G92: =+F92*$D$5 -> 0
B93: Other Chemical 4 | C93: 0 | D93: Lb,Oz,Acre | E93: 0 | F93: 0 | G93: =+F93*$D$5 -> 0
B94: Other Chemical 5 | C94: 0 | D94: Lb,Oz,Acre | E94: 0 | F94: 0 | G94: =+F94*$D$5 -> 0
A95: Irrigation
B96: Well Expense | C96: 0 | D96: Acre | E96: 0 | F96: =C96*E96 -> 0 | G96: =+F96*$D$5 -> 0
B97: Pump Fuel | C97: 0 | D97: Mcf,kWh,Gallon | E97: 0 | F97: 0 | G97: 0
B98: Pump Expense | C98: 0 | D98: Acre | E98: 0 | F98: 0 | G98: 0
B99: Irrigation Equipment Expense | C99: 0 | D99: Acre | E99: 0 | F99: 0 | G99: 0
B100: Repairs | C100: 0 | D100: Acre | E100: 0 | F100: 0 | G100: 0
B101: Drip Tape | C101: 0 | D101: Foot,Acre | E101: 0 | F101: 0 | G101: 0
B102: Water Cost | C102: 0 | D102: AcIn,Gallon | E102: 0 | F102: 0 | G102: 0
B103: Other Irrigation Expense 1 | C103: 0 | D103: Acre | E103: 0 | F103: 0 | G103: 0
B104: Other Irrigation Expense 2 | C104: 0 | D104: Acre | E104: 0 | F104: 0 | G104: 0
A105: Miscellaneous Expenses
B106: Crop Insurance | C106: 0 | D106: Acre | E106: 0 | F106: =C106*E106 -> 0 | G106: 0
B107: Other Variable Expense 1 | C107: 0 | D107: Enter Unit | E107: 0 | F107: 0 | G107: 0
B108: Other Variable Expense 2 | C108: 0 | D108: Enter Unit | E108: 0 | F108: 0 | G108: 0
B109: Other Variable Expense 3 | C109: 0 | D109: Enter Unit | E109: 0 | F109: 0 | G109: 0
B110: Other Variable Expense 4 | C110: 0 | D110: Enter Unit | E110: 0 | F110: 0 | G110: 0
B111: Other Variable Expense 5 | C111: 0 | D111: Enter Unit | E111: 0 | F111: 0 | G111: 0
B112: Other Variable Expense 6 | C112: 0 | D112: Enter Unit | E112: 0 | F112: 0 | G112: 0
B113: Other Variable Expense 7 | C113: 0 | D113: Enter Unit | E113: 0 | F113: 0 | G113: 0
B114: Other Variable Expense 8 | C114: 0 | D114: Enter Unit | E114: 0 | F114: 0 | G114: 0
B116: Operating Interest | E116: 0 | F116: =+SUM(F23:F115)/2*E116 -> 0 | G116: =+F116*$D$6 -> 0
A118: Total Variable Costs | F118: =+SUM(F23:F116) -> 0 | G118: =+SUM(G23:G116) -> 0
A120: Planned Returns Above Variable Costs | F120: =+F18-F118 -> 0 | G120: =+G18-G118 -> 0
B122: Breakeven Price to Cover Variable Costs | E122: =+IF(C9=0,0,F118-SUM(F10:F16)/C9) -> 0 | F122: =+D9 -> Cwt,lb,etc
G124: Enterprise
A125: FIXED COSTS | C125: Quantity | D125: Units | E125: $/Unit | F125: Total | G125: Total
B126: Land Rent or Expense | C126: 1 | D126: Acre | E126: 0 | F126: =C126*E126 -> 0 | G126: =+F126*$D$6 -> 0
B127: Depreciation - Equipment | C127: 1 | D127: Acre | E127: 0 | F127: =C127*E127 -> 0 | G127: 0
B128: Equipment Investment | C128: 0 | D128: $ | E128: 0 | F128: 0 | G128: 0
B129: Insurance | C129: 1 | D129: Acre | E129: 0 | F129: 0 | G129: 0
B130: Management Fee | C130: 1 | D130: Acre | E130: 0 | F130: 0 | G130: 0
B131: Owner/Operator Labor | C131: 0 | D131: Acre | E131: 0 | F131: 0 | G131: 0
B132: Salaried Labor | C132: 1 | D132: Acre,$,etc | E132: 0 | F132: 0 | G132: 0
B133: Other Fixed Expense | C133: 0 | D133: Acre,$,etc | E133: 0 | F133: 0 | G133: 0
B134: Other Fixed Expense | C134: 0 | D134: Acre,$,etc | E134: 0 | F134: 0 | G134: 0
B135: Other Fixed Expense | C135: 0 | D135: Acre,$,etc | E135: 0 | F135: 0 | G135: 0
B136: Other Fixed Expense | C136: 0 | D136: Acre,$,etc | E136: 0 | F136: 0 | G136: 0
B137: Other Fixed Expense | C137: 0 | D137: Acre,$,etc | E137: 0 | F137: 0 | G137: 0
D139: Total Fixed Costs | F139: =+SUM(F126:F137) -> 0 | G139: =+SUM(G126:G137) -> 0
D141: Total Specified Costs | F141: =+F118+F139 -> 0 | G141: =+G118+G139 -> 0
D143: Returns Above Specifiied Costs | F143: =+F18-F141 -> 0 | G143: =+G18-G141 -> 0
B145: Breakeven Price to Cover Total Costs | E145: =+IF(C9=0,0,F141-SUM(F10:F16)/C9) -> 0 | F145: =+D9 -> Cwt,lb,etc
B147: Breakeven Prices for Your Crop
E148: Price To Cover | G148: Price To Cover
B149: Yield | C149: Yield | E149: Variable | G149: Total
B150: Percent | C150: =+D9 -> Cwt,lb,etc | E150: Costs | G150: Costs
B151: 0.75 | C151: =+$C$153*B151 -> 0 | E151: =+IF(C151=0,0,($F$118-SUM($F$10:$F$16))/C151) -> 0 | G151: =+IF(C151=0,0,($F$141-SUM($F$10:$F$16))/C151) -> 0
B152: 0.9 | C152: =+$C$153*B152 -> 0 | E152: =+IF(C152=0,0,($F$118-SUM($F$10:$F$16))/C152) -> 0 | G152: =+IF(C152=0,0,($F$141-SUM($F$10:$F$16))/C152) -> 0
B153: 1 | C153: =+C9 -> 0 | E153: =+IF(C153=0,0,($F$118-SUM($F$10:$F$16))/C153) -> 0 | G153: =+IF(C153=0,0,($F$141-SUM($F$10:$F$16))/C153) -> 0
B154: 1.1 | C154: 0 | E154: =+IF(C154=0,0,($F$118-SUM($F$10:$F$16))/C154) -> 0 | G154: =+IF(C154=0,0,($F$141-SUM($F$10:$F$16))/C154) -> 0
B155: 1.25 | C155: 0 | E155: =+IF(C155=0,0,($F$118-SUM($F$10:$F$16))/C155) -> 0 | G155: =+IF(C155=0,0,($F$141-SUM($F$10:$F$16))/C155) -> 0

Sheet Comparative Returns - Cash Rent
A1: Comparative Returns - Cash Rent
B3: Returns Above Total Specified Expenses | E3: Total Direct Expenses | H3: Breakeven Yield to Cover Total Costs at Price Entered
B4: Total Costs | C4: Variable Costs | E4: Total Costs | F4: Variable Costs | H4: Price | I4: Units | J4: Total Costs | K4: Variable Costs
A5: FORAGE CROPS
A7: =+CoastalEstablishFarmland!A3 -> Coastal Bermudagrass Establishment - Farmland | B7: =+CoastalEstablishFarmland!TotRet -> -196.4094249 | C7: =+CoastalEstablishFarmland!VarRet -> -187.9026054 | E7: =+CoastalEstablishFarmland!TotExp -> 196.4094249 | F7: =+CoastalEstablishFarmland!VarExp -> 187.9026054 | H7: =+CoastalEstablishFarmland!Price -> 0 | I7: =+CoastalEstablishFarmland!Unit ->  | J7: =+IF($H7=0,0,E7/$H7) -> 0 | K7: 0
A8: =+CoastalEstablishNative!A3 -> Coastal Bermudagrass Establishment - Native Prairie | B8: =+CoastalEstablishNative!TotRet -> -369.5265539 | C8: =+CoastalEstablishNative!VarRet -> -355.3354492 | E8: =+CoastalEstablishNative!TotExp -> 369.5265539 | F8: =+CoastalEstablishNative!VarExp -> 355.3354492 | H8: =+CoastalEstablishNative!Price -> 0 | I8: =+CoastalEstablishNative!Unit ->  | J8: 0 | K8: 0
A9: =+CoastalHay!A3 -> Coastal Bermudagrass Hay | B9: =+CoastalHay!TotRet -> 108.7508501 | C9: =+CoastalHay!VarRet -> 116.8456113 | E9: =+CoastalHay!TotExp -> 311.2491499 | F9: =+CoastalHay!VarExp -> 303.1543887 | H9: =+CoastalHay!Price -> 70 | I9: =+CoastalHay!Unit -> Roll | J9: 4.446416427 | K9: 4.330776981
A10: =+CoastalPasture!A3 -> Coastal Bermudagrass Pasture | B10: =+CoastalPasture!TotRet -> 34.89474658 | C10: =+CoastalPasture!VarRet -> 34.89474658 | E10: =+CoastalPasture!TotExp -> 75.10525342 | F10: =+CoastalPasture!VarExp -> 75.10525342 | H10: =+CoastalPasture!Price -> 22 | I10: =+CoastalPasture!Unit -> AUM | J10: 3.413875156 | K10: 3.413875156
A11: =SmallGrainGrazing!A3 -> Small Grain with Grazing | B11: =SmallGrainGrazing!TotRet -> -5.231358558 | C11: =SmallGrainGrazing!VarRet -> 48.32950838 | E11: =SmallGrainGrazing!TotExp -> 194.2313586 | F11: =SmallGrainGrazing!VarExp -> 140.6704916 | H11: =SmallGrainGrazing!Price -> 0.6 | I11: =SmallGrainGrazing!Unit -> Pound | J11: =IF(H11=0,0,E11/H11) -> 323.7189309 | K11: =IF(H11=0,0,F11/H11) -> 234.4508194
A12: =CornSilageDryland!A3 -> RR Corn Silage - Dryland | B12: =CornSilageDryland!TotRet -> 61.43032839 | C12: =CornSilageDryland!VarRet -> 115.9070863 | E12: =CornSilageDryland!TotExp -> 406.5696716 | F12: =CornSilageDryland!VarExp -> 352.0929137 | H12: =CornSilageDryland!Price -> 39 | I12: =CornSilageDryland!Unit -> Ton | J12: =IF(H12=0,0,E12/H12) -> 10.42486337 | K12: =IF(H12=0,0,F12/H12) -> 9.028023429
A13: =CornSilageIrrigated!A3 -> RR Corn Silage - Irrigated | B13: =CornSilageIrrigated!TotRet -> 60.63254545 | C13: =CornSilageIrrigated!VarRet -> 135.1093033 | E13: =CornSilageIrrigated!TotExp -> 797.3674545 | F13: =CornSilageIrrigated!VarExp -> 722.8906967 | H13: =CornSilageIrrigated!Price -> 39 | I13: =CornSilageIrrigated!Unit -> Ton | J13: =IF(H13=0,0,E13/H13) -> 20.44531935 | K13: =IF(H13=0,0,F13/H13) -> 18.53565889
A15: FIELD CROPS
A17: =+Barley!A3 -> Malting Barley | B17: =+Barley!TotRet -> -7.218418129 | C17: =+Barley!VarRet -> 63.3220637 | E17: =+Barley!TotExp -> 247.2184181 | F17: =+Barley!VarExp -> 176.6779363 | H17: =+Barley!Price -> 4 | I17: =+Barley!Unit -> Bushel | J17: =+IF($H17=0,0,E17/$H17) -> 61.80460453 | K17: 44.16948408
A18: =+Canola!A3 -> Canola | B18: =+Canola!TotRet -> -44.28802693 | C18: =+Canola!VarRet -> 26.2524549 | E18: =+Canola!TotExp -> 252.2880269 | F18: =+Canola!VarExp -> 181.7475451 | H18: =+Canola!Price -> 16 | I18: =+Canola!Unit -> CWT | J18: 15.76800168 | K18: 11.35922157
A19: =+Corn!A3 -> Herbicide Resistant Corn | B19: =+Corn!TotRet -> -129.1866086 | C19: =+Corn!VarRet -> 9.612001307 | E19: =+Corn!TotExp -> 507.1866086 | F19: =+Corn!VarExp -> 368.3879987 | H19: =+Corn!Price -> 4.2 | I19: =+Corn!Unit -> Bushel | J19: 120.7587163 | K19: 87.71142826
A20: =+CornReducedTill!A3 -> Herbicide Resistant Corn - Reduced Tillage | B20: =+CornReducedTill!TotRet -> -115.158744 | C20: =+CornReducedTill!VarRet -> 16.9876259 | E20: =+CornReducedTill!TotExp -> 493.158744 | F20: =+CornReducedTill!VarExp -> 361.0123741 | H20: =+CornReducedTill!Price -> 4.2 | I20: =+CornReducedTill!Unit -> Bushel | J20: 117.4187486 | K20: 85.95532717
A21: =+Cotton!A3 -> Stacked Cotton | B21: =+Cotton!TotRet -> -115.0131634 | C21: =+Cotton!VarRet -> -1.80083071 | E21: =+Cotton!TotExp -> 539.2631634 | F21: =+Cotton!VarExp -> 426.0508307 | H21: =+Cotton!Price -> 0.7 | I21: =+Cotton!Unit -> Pound | J21: 770.3759478 | K21: 608.6440439
A22: =+OatsGrain!A3 -> Oats for Grain | B22: =+OatsGrain!TotRet -> -32.32244323 | C22: =+OatsGrain!VarRet -> 41.44129659 | E22: =+OatsGrain!TotExp -> 282.3224432 | F22: =+OatsGrain!VarExp -> 208.5587034 | H22: =+OatsGrain!Price -> 2.5 | I22: =+OatsGrain!Unit -> Bushel | J22: 112.9289773 | K22: 83.42348136
A23: =+Sorghum!A3 -> Grain Sorghum | B23: =+Sorghum!TotRet -> 32.62604927 | C23: =+Sorghum!VarRet -> 114.664528 | E23: =+Sorghum!TotExp -> 259.8739507 | F23: =+Sorghum!VarExp -> 177.835472 | H23: =+Sorghum!Price -> 6.5 | I23: =+Sorghum!Unit -> CWT | J23: =+IF($H23=0,0,E23/$H23) -> 39.9806078 | K23: =+IF($H23=0,0,F23/$H23) -> 27.35930339
A24: =+Wheat!A3 -> Hard Red Winter Wheat | B24: =+Wheat!TotRet -> -41.24536642 | C24: =+Wheat!VarRet -> 28.65359231 | E24: =+Wheat!TotExp -> 266.8453664 | F24: =+Wheat!VarExp -> 196.9464077 | H24: =+Wheat!Price -> 4.7 | I24: =+Wheat!Unit -> Bushel | J24: =+IF($H24=0,0,E24/$H24) -> 56.77560988 | K24: 41.903491
A26: LIVESTOCK
A28: =+CowCalfImprove!A3 -> Cow-Calf Improved Pasture | B28: =+CowCalfImprove!TotRet -> -91.27183317 | C28: =+CowCalfImprove!VarRet -> 227.222822 | E28: =+CowCalfImprove!TotExp -> 700.0343332 | F28: =+CowCalfImprove!VarExp -> 381.539678 | H28: =+CowCalfImprove!Price -> 140.9744409 | I28: =+CowCalfImprove!Unit -> CWT | J28: =+IF($H28=0,0,E28/$H28) -> 4.965682635 | K28: 2.706445761
A29: =CowCalfNative!A3 -> Cow-Calf Native Pasture | B29: =CowCalfNative!TotRet -> -263.9424565 | C29: =CowCalfNative!VarRet -> 154.5521987 | E29: =CowCalfNative!TotExp -> 872.7049565 | F29: =CowCalfNative!VarExp -> 454.2103013 | H29: =CowCalfNative!Price -> 140.9744409 | I29: =CowCalfNative!Unit -> CWT | J29: =IF(H29=0,0,E29/H29) -> 6.190519011 | K29: =IF(H29=0,0,F29/H29) -> 3.221933695
A30: =+StockersNative!A3 -> Stockers on Native Pasture | B30: =+StockersNative!TotRet -> 13.65700829 | C30: =+StockersNative!VarRet -> 44.64024043 | E30: =+StockersNative!TotExp -> 880.5929917 | F30: =+StockersNative!VarExp -> 849.6097596 | H30: =+StockersNative!Price -> 125 | I30: =+StockersNative!Unit -> CWT | J30: 7.044743934 | K30: 6.796878077

Sheet Your Returns - Cash Rent
A1: Your Returns - Cash Rent
B3: Quantity | C3: Returns Above Total Specified Expenses | F3: Total Direct Expenses | I3: Breakeven Yield to Cover Total Costs at Price Entered
B4: Acres, AUs, or Head | C4: Total Costs | D4: Variable Costs | F4: Total Costs | G4: Variable Costs | I4: Price | J4: Units | K4: Total Costs | L4: Variable Costs
A5: FORAGE CROPS
A7: =+CoastalEstablishFarmland!A3 -> Coastal Bermudagrass Establishment - Farmland | B7: =+CoastalEstablishFarmland!E7 -> 0 | C7: =+CoastalEstablishFarmland!YTotRet -> 0 | D7: =+CoastalEstablishFarmland!YVarRet -> 0 | F7: =+CoastalEstablishFarmland!YTotExp -> 0 | G7: =+CoastalEstablishFarmland!YVarExp -> 0 | I7: =+CoastalEstablishFarmland!YPrice -> 0 | J7: =+CoastalEstablishFarmland!Unit ->  | K7: =+IF($I7=0,0,F7/$I7) -> 0 | L7: 0
A8: =+CoastalEstablishNative!A3 -> Coastal Bermudagrass Establishment - Native Prairie | B8: =+CoastalEstablishNative!E7 -> 0 | C8: =+CoastalEstablishNative!YTotRet -> 0 | D8: =+CoastalEstablishNative!YVarRet -> 0 | F8: =+CoastalEstablishNative!YTotExp -> 0 | G8: =+CoastalEstablishNative!YVarExp -> 0 | I8: =+CoastalEstablishNative!YPrice -> 0 | J8: =+CoastalEstablishNative!Unit ->  | K8: 0 | L8: 0
A9: =+CoastalHay!A3 -> Coastal Bermudagrass Hay | B9: =+CoastalHay!E7 -> 0 | C9: =+CoastalHay!YTotRet -> 0 | D9: =+CoastalHay!YVarRet -> 0 | F9: =+CoastalHay!YTotExp -> 0 | G9: =+CoastalHay!YVarExp -> 0 | I9: =+CoastalHay!YPrice -> 0 | J9: =+CoastalHay!Unit -> Roll | K9: 0 | L9: 0
A10: =+CoastalPasture!A3 -> Coastal Bermudagrass Pasture | B10: =+CoastalPasture!E7 -> 0 | C10: =+CoastalPasture!YTotRet -> 0 | D10: =+CoastalPasture!YVarRet -> 0 | F10: =+CoastalPasture!YTotExp -> 0 | G10: =+CoastalPasture!YVarExp -> 0 | I10: =+CoastalPasture!YPrice -> 0 | J10: =+CoastalPasture!Unit -> AUM | K10: 0 | L10: 0
A11: =SmallGrainGrazing!A3 -> Small Grain with Grazing | B11: =SmallGrainGrazing!E7 -> 0 | C11: =SmallGrainGrazing!YTotRet -> 0 | D11: =SmallGrainGrazing!YVarRet -> 0 | F11: =SmallGrainGrazing!YTotExp -> 0 | G11: =SmallGrainGrazing!YVarExp -> 0 | I11: =SmallGrainGrazing!YPrice -> 0 | J11: =SmallGrainGrazing!Unit -> Pound | K11: =IF(I11=0,0,F11/I11) -> 0 | L11: =IF(I11=0,0,G11/I11) -> 0
A12: =CornSilageDryland!A3 -> RR Corn Silage - Dryland | B12: =CornSilageDryland!E7 -> 0 | C12: =CornSilageDryland!YTotRet -> 0 | D12: =CornSilageDryland!YVarRet -> 0 | F12: =CornSilageDryland!YTotExp -> 0 | G12: =CornSilageDryland!YVarExp -> 0 | I12: =CornSilageDryland!YPrice -> 0 | J12: =CornSilageDryland!Unit -> Ton | K12: =IF(I12=0,0,F12/I12) -> 0 | L12: =IF(I12=0,0,G12/I12) -> 0
A13: =CornSilageIrrigated!A3 -> RR Corn Silage - Irrigated | B13: =CornSilageIrrigated!E7 -> 0 | C13: =CornSilageIrrigated!YTotRet -> 0 | D13: =CornSilageIrrigated!YVarRet -> 0 | F13: =CornSilageIrrigated!YTotExp -> 0 | G13: =CornSilageIrrigated!YVarExp -> 0 | I13: =CornSilageIrrigated!YPrice -> 0 | J13: =CornSilageIrrigated!Unit -> Ton | K13: =IF(I13=0,0,F13/I13) -> 0 | L13: =IF(I13=0,0,G13/I13) -> 0
A15: FIELD CROPS
A17: =+Barley!A3 -> Malting Barley | B17: =+Barley!E7 -> 0 | C17: =+Barley!YTotRet -> 0 | D17: =+Barley!YVarRet -> 0 | F17: =+Barley!YTotExp -> 0 | G17: =+Barley!YVarExp -> 0 | I17: =+Barley!YPrice -> 0 | J17: =+Barley!Unit -> Bushel | K17: =+IF($I17=0,0,F17/$I17) -> 0 | L17: 0
A18: =+Canola!A3 -> Canola | B18: =+Canola!E7 -> 0 | C18: =+Canola!YTotRet -> 0 | D18: =+Canola!YVarRet -> 0 | F18: =+Canola!YTotExp -> 0 | G18: =+Canola!YVarExp -> 0 | I18: =+Canola!YPrice -> 0 | J18: =+Canola!Unit -> CWT | K18: 0 | L18: 0
A19: =+Corn!A3 -> Herbicide Resistant Corn | B19: =+Corn!E7 -> 0 | C19: =+Corn!YTotRet -> 0 | D19: =+Corn!YVarRet -> 0 | F19: =+Corn!YTotExp -> 0 | G19: =+Corn!YVarExp -> 0 | I19: =+Corn!YPrice -> 0 | J19: =+Corn!Unit -> Bushel | K19: 0 | L19: 0
A20: =+CornReducedTill!A3 -> Herbicide Resistant Corn - Reduced Tillage | B20: =+CornReducedTill!E7 -> 0 | C20: =+CornReducedTill!YTotRet -> 0 | D20: =+CornReducedTill!YVarRet -> 0 | F20: =+CornReducedTill!YTotExp -> 0 | G20: =+CornReducedTill!YVarExp -> 0 | I20: =+CornReducedTill!YPrice -> 0 | J20: =+CornReducedTill!Unit -> Bushel | K20: 0 | L20: 0
A21: =+Cotton!A3 -> Stacked Cotton | B21: =+Cotton!E7 -> 0 | C21: =+Cotton!YTotRet -> 0 | D21: =+Cotton!YVarRet -> 0 | F21: =+Cotton!YTotExp -> 0 | G21: =+Cotton!YVarExp -> 0 | I21: =+Cotton!YPrice -> 0 | J21: =+Cotton!Unit -> Pound | K21: 0 | L21: 0
A22: =+OatsGrain!A3 -> Oats for Grain | B22: =+OatsGrain!E7 -> 0 | C22: =+OatsGrain!YTotRet -> 0 | D22: =+OatsGrain!YVarRet -> 0 | F22: =+OatsGrain!YTotExp -> 0 | G22: =+OatsGrain!YVarExp -> 0 | I22: =+OatsGrain!YPrice -> 0 | J22: =+OatsGrain!Unit -> Bushel | K22: 0 | L22: 0
A23: =+Sorghum!A3 -> Grain Sorghum | B23: =+Sorghum!E7 -> 0 | C23: =+Sorghum!YTotRet -> 0 | D23: =+Sorghum!YVarRet -> 0 | F23: =+Sorghum!YTotExp -> 0 | G23: =+Sorghum!YVarExp -> 0 | I23: =+Sorghum!YPrice -> 0 | J23: =+Sorghum!Unit -> CWT | K23: =+IF($I23=0,0,F23/$I23) -> 0 | L23: =+IF($I23=0,0,G23/$I23) -> 0
A24: =+Wheat!A3 -> Hard Red Winter Wheat | B24: =+Wheat!E7 -> 0 | C24: =+Wheat!YTotRet -> 0 | D24: =+Wheat!YVarRet -> 0 | F24: =+Wheat!YTotExp -> 0 | G24: =+Wheat!YVarExp -> 0 | I24: =+Wheat!YPrice -> 0 | J24: =+Wheat!Unit -> Bushel | K24: =+IF($I24=0,0,F24/$I24) -> 0 | L24: 0
A26: LIVESTOCK
A28: =+CowCalfImprove!A3 -> Cow-Calf Improved Pasture | B28: =+CowCalfImprove!E7 -> 0 | C28: =+CowCalfImprove!YTotRet -> 0 | D28: =+CowCalfImprove!YVarRet -> 0 | F28: =+CowCalfImprove!YTotExp -> 0 | G28: =+CowCalfImprove!YVarExp -> 0 | I28: =+CowCalfImprove!YPrice -> 0 | J28: =+CowCalfImprove!Unit -> CWT | K28: =+IF($I28=0,0,F28/$I28) -> 0 | L28: 0
A29: =CowCalfNative!A3 -> Cow-Calf Native Pasture | B29: =CowCalfNative!E7 -> 0 | C29: =CowCalfNative!YTotRet -> 0 | D29: =CowCalfNative!YVarRet -> 0 | F29: =CowCalfNative!YTotExp -> 0 | G29: =CowCalfNative!YVarExp -> 0 | I29: =CowCalfNative!YPrice -> 0 | J29: =CowCalfNative!Unit -> CWT | K29: =IF(I29=0,0,F29/I29) -> 0 | L29: =IF(I29=0,0,G29/I29) -> 0
A30: =+StockersNative!A3 -> Stockers on Native Pasture | B30: =+StockersNative!E7 -> 0 | C30: =+StockersNative!YTotRet -> 0 | D30: =+StockersNative!YVarRet -> 0 | F30: =+StockersNative!YTotExp -> 0 | G30: =+StockersNative!YVarExp -> 0 | I30: =+StockersNative!YPrice -> 0 | J30: =+StockersNative!Unit -> CWT | K30: 0 | L30: 0
A32: OTHER BUDGETS
A34: =+'Livestock Budget'!A3 -> Livestock Budget | B34: =+'Livestock Budget'!D5 -> 0 | C34: =+'Livestock Budget'!YTotRet -> 0 | D34: =+'Livestock Budget'!YVarRet -> 0 | F34: =+'Livestock Budget'!YTotExp -> 0 | G34: =+'Livestock Budget'!YVarExp -> 0 | I34: =+'Livestock Budget'!YPrice -> 0 | J34: =+'Livestock Budget'!Unit -> CWT | K34: =+IF($I34=0,0,F34/$I34) -> 0 | L34: =+IF($I34=0,0,G34/$I34) -> 0
A35: =+'Crop Budget'!A3 -> Crop Enterprise | B35: =+'Crop Budget'!D5 -> 0 | C35: =+'Crop Budget'!YTotRet -> 0 | D35: =+'Crop Budget'!YVarRet -> 0 | F35: =+'Crop Budget'!YTotExp -> 0 | G35: =+'Crop Budget'!YVarExp -> 0 | I35: =+'Crop Budget'!YPrice -> 0 | J35: =+'Crop Budget'!Unit -> Cwt,lb,etc | K35: =+IF($I35=0,0,F35/$I35) -> 0 | L35: =+IF($I35=0,0,G35/$I35) -> 0
